{"text_format":"1","workbook":"xlsx","n_sheets":16,"sheets":["INSTRUCTIONS - READ THIS FIRST","Country profile","country","Data coll & ax","Prev & Ctrl","Lab dx","Dog popn","IEC","Cross-cutting issues","Legislation","S0-S5","masterlist","SUMMARY (Score)","SUMMARY (S0-S5)","PRIORITISATION","RULES"],"not_rendered":{"charts":0,"images":6,"macros":1,"external_links":1,"defined_names":37,"comments":0,"pivot_tables":0},"unopened":[],"bounds":{"document_bytes":16777216,"sheet_cells":100000,"rows_first":2000,"rows_last":500,"rows_between":2000,"halvings":0,"cell_chars":16384,"cell_head_chars":4096},"cells_cut":0,"cells_raw":0,"read":"whole","date_system":"1900"}

{"sheet":"INSTRUCTIONS - READ THIS FIRST","index":0,"n_rows":22,"n_cols":3,"rows_kept":22,"cut":false,"hidden":false,"merged":[[26,2,26,8],[27,2,27,8],[28,2,28,8],[23,0,23,2],[29,19,29,21],[8,9,8,11],[21,2,21,8],[56,1,59,8],[35,2,35,8],[36,2,36,8],[29,2,29,8],[24,11,24,17],[25,11,25,17],[26,11,26,17],[27,11,27,17],[28,11,28,17],[24,2,24,8],[25,2,25,8],[41,1,52,8]]}
[]
[]
[]
[]
[]
[]
[]
[]
[]
[]
[]
[]
[]
[]
[]
[]
[]
[]
[]
[]
[]
[null,null,"\n"]

{"sheet":"Country profile","index":1,"n_rows":24,"n_cols":8,"rows_kept":24,"cut":false,"hidden":false,"merged":[[25,3,25,5],[26,3,26,5],[27,3,27,5],[28,3,28,5],[29,3,29,5],[19,3,19,5],[20,3,20,5],[21,3,21,5],[22,3,22,5],[23,3,23,5],[24,3,24,5],[19,1,29,1],[2,4,2,5],[5,1,6,1],[10,1,11,1],[15,1,16,1],[14,2,14,4],[15,3,15,4],[16,3,16,4],[2,2,2,3],[4,2,4,4],[5,3,5,4],[6,3,6,4],[9,2,9,4],[10,3,10,4],[11,3,11,4]]}
[]
[]
[null,null,"Country:",null,"Zambia",null,"(You may select your country's name from the drop-down list)"]
[]
[null,null,"Prepared by:"]
[null,"HUMAN HEALTH:",null,"Designation:"]
[null,null,null,"Office:"]
[null,null,null,"Date prepared:",null,null,null,"(The date may appear as month-date-year or date-month-year depending on your computer's settings)"]
[]
[null,null,"Prepared by:",null,null,"Dr. Edgar Kayesa"]
[null,"ANIMAL HEALTH:",null,"Designation:",null,"SVRO"]
[null,null,null,"Office:",null,"Ministry of Fisheries and Livestock"]
[null,null,null,"Date prepared:",null,"2017-09-13",null,"(The date may appear as month-date-year or date-month-year depending on your computer's settings)"]
[]
[null,null,"Prepared by:"]
[null,"OTHERS:",null,"Designation:"]
[null,null,null,"Office:"]
[null,null,null,"Date prepared:",null,null,null,"(The date may appear as month-date-year or date-month-year depending on your computer's settings)"]
[]
[null,"NAMES OF\nMEMBERS OF\nNATIONAL RABIES \nTASK FORCE:",null,"Veterinary Department"]
[null,null,null,"Ministry of Health"]
[null,null,null,"Ministry of Local Government"]
[null,null,null,"Ministry of Home Affairs"]
[null,null,null,"School of Veterinary Medicine"]

{"sheet":"country","index":2,"n_rows":267,"n_cols":1,"rows_kept":267,"cut":false,"hidden":true,"merged":[]}
["Afghanistan"]
["Africa"]
["Aland Islands"]
["Albania"]
["Algeria"]
["American Samoa"]
["Andorra"]
["Angola"]
["Anguilla"]
["Antarctica"]
["Antigua & Barbuda"]
["Argentina"]
["Armenia"]
["Aruba"]
["Asia"]
["Australia"]
["Austria"]
["Azerbaijan"]
["Bahamas, The"]
["Bahrain"]
["Bangladesh"]
["Barbados"]
["Belarus"]
["Belgium"]
["Belize"]
["Benin"]
["Bermuda"]
["Bhutan"]
["Bolivia"]
["Bonaire, St.Eustat, Saba"]
["Bosnia and Herzegovina"]
["Botswana"]
["Bouvet Island"]
["Brazil"]
["British Indian Ocean T."]
["British Virgin Islands"]
["Brunei Darussalam"]
["Bulgaria"]
["Burkina Faso"]
["Burundi"]
["Cabo Verde"]
["Cambodia"]
["Cameroon"]
["Canada"]
["Caribbean, the"]
["Cayman Islands"]
["Central African Republic"]
["Central America"]
["Chad"]
["Chile"]
["China"]
["Christmas Island"]
["Cocos (Keeling) Islands"]
["Colombia"]
["Comoros"]
["Congo"]
["Congo, Dem. Rep. of the"]
["Cook Islands"]
["Costa Rica"]
["Cote D'Ivoire"]
["Croatia"]
["Cuba"]
["Curaçao"]
["Cyprus"]
["Czech Republic"]
["Denmark"]
["Djibouti"]
["Dominica"]
["Dominican Republic"]
["East Timor (Timor-Leste)"]
["Ecuador"]
["Egypt"]
["El Salvador"]
["Equatorial Guinea"]
["Eritrea"]
["Estonia"]
["Ethiopia"]
["Europe"]
["European Union"]
["Falkland Is. (Malvinas)"]
["Faroe Islands"]
["Fiji"]
["Finland"]
["France"]
["French Guiana"]
["French Polynesia"]
["French Southern Terr."]
["Gabon"]
["Gambia, the"]
["Georgia"]
["Germany"]
["Ghana"]
["Gibraltar"]
["Greece"]
["Greenland"]
["Grenada"]
["Guadeloupe"]
["Guam"]
["Guatemala"]
["Guernsey and Alderney"]
["Guiana, French"]
["Guinea"]
["Guinea-Bissau"]
["Guinea, Equatorial"]
["Guyana"]
["Haiti"]
["Heard & McDonald Is."]
["Holy See (Vatican)"]
["Honduras"]
["Hong Kong, (China)"]
["Hungary"]
["Iceland"]
["India"]
["Indonesia"]
["Iran, Islamic Republic of"]
["Iraq"]
["Ireland"]
["Israel"]
["Italy"]
["Ivory Coast (Cote d'Ivoire)"]
["Jamaica"]
["Japan"]
["Jersey"]
["Jordan"]
["Kazakhstan"]
["Kenya"]
["Kiribati"]
["Korea Dem. People's Rep."]
["Korea, (South) Republic of"]
["Kosovo"]
["Kuwait"]
["Kyrgyzstan"]
["Lao People's Dem. Rep."]
["Latvia"]
["Lebanon"]
["Lesotho"]
["Liberia"]
["Libyan Arab Jamahiriya"]
["Liechtenstein"]
["Lithuania"]
["Luxembourg"]
["Macao, (China)"]
["Macedonia, TFYR"]
["Madagascar"]
["Malawi"]
["Malaysia"]
["Maldives"]
["Mali"]
["Malta"]
["Man, Isle of"]
["Marshall Islands"]
["Martinique (FR)"]
["Mauritania"]
["Mauritius"]
["Mayotte (FR)"]
["Mexico"]
["Micronesia, Fed. States of"]
["Middle East"]
["Moldova, Republic of"]
["Monaco"]
["Mongolia"]
["Montenegro"]
["Montserrat"]
["Morocco"]
["Mozambique"]
["Myanmar (ex-Burma)"]
["Namibia"]
["Nauru"]
["Nepal"]
["Netherlands"]
["Netherlands Antilles"]
["New Caledonia"]
["New Zealand"]
["Nicaragua"]
["Niger"]
["Nigeria"]
["Niue"]
["Norfolk Island"]
["North America"]
["Northern Mariana Islands"]
["Norway"]
["Oceania"]
["Oman"]
["Pakistan"]
["Palau"]
["Palestinian Territory"]
["Panama"]
["Papua New Guinea"]
["Paraguay"]
["Peru"]
["Philippines"]
["Pitcairn Island"]
["Poland"]
["Portugal"]
["Puerto Rico"]
["Qatar"]
["Reunion (FR)"]
["Romania"]
["Russia (Russian Fed.)"]
["Rwanda"]
["Sahara, Western"]
["Saint Barthelemy (FR)"]
["Saint Helena (UK)"]
["Saint Kitts and Nevis"]
["Saint Lucia"]
["Saint Martin (FR)"]
["S Pierre & Miquelon(FR)"]
["S Vincent & Grenadines"]
["Samoa"]
["San Marino"]
["Sao Tome and Principe"]
["Saudi Arabia"]
["Senegal"]
["Serbia"]
["Seychelles"]
["Sierra Leone"]
["Singapore"]
["Slovakia"]
["Slovenia"]
["Solomon Islands"]
["Somalia"]
["South Africa"]
["South America"]
["S.George & S.Sandwich"]
["South Sudan"]
["Spain"]
["Sri Lanka (ex-Ceilan)"]
["Sudan"]
["Suriname"]
["Svalbard & Jan Mayen Is."]
["Swaziland"]
["Sweden"]
["Switzerland"]
["Syrian Arab Republic"]
["Taiwan"]
["Tajikistan"]
["Tanzania, United Rep. of"]
["Thailand"]
["Timor-Leste (East Timor)"]
["Togo"]
["Tokelau"]
["Tonga"]
["Trinidad & Tobago"]
["Tunisia"]
["Turkey"]
["Turkmenistan"]
["Turks and Caicos Is."]
["Tuvalu"]
["Uganda"]
["Ukraine"]
["United Arab Emirates"]
["United Kingdom"]
["United States"]
["US Minor Outlying Isl."]
["Uruguay"]
["Uzbekistan"]
["Vanuatu"]
["Vatican (Holy See)"]
["Venezuela"]
["Viet Nam"]
["Virgin Islands, British"]
["Virgin Islands, U.S."]
["Wallis and Futuna"]
["Western Sahara"]
["Yemen"]
["Zambia"]
["Zimbabwe"]

{"sheet":"Data coll & ax","index":3,"n_rows":32,"n_cols":10,"rows_kept":32,"cut":false,"hidden":false,"merged":[[3,6,3,9],[30,2,30,3],[31,2,31,3]]}
[]
["Instructions: Enter \"0\" under Status if No or None, or \"1\" if Yes"]
[]
["STAGE","subcomponent","ACHIEVEMENTS / ACTIVITIES","OTHER IMPORTANT INFORMATION\n(please include in REMARKS)","STATUS","REMARKS","Rabies Blueprint references and other links"]
[1,"Surveillance","Are dog rabies cases reported from a local to the national level? ",null,1,null,"3.1.3-Infrastructure-surveillance","Challenges of animal health information systems and surveillance for animal diseases and zoonoses ","Zoonotic diseases : a guide to establishing collaboration"," 6. Reporting of rabies data"]
[1,null,"Are human rabies cases reported from a local to the national level? ",null,1,null,"3.1.3-Infrastructure-surveillance","Challenges of animal health information systems and surveillance for animal diseases and zoonoses ","Zoonotic diseases : a guide to establishing collaboration"," 6. Reporting of rabies data"]
[1,null,"Are all human or animal rabies testing results being reported to a relevant international database such as WHO, OIE or PARACON?",null,1,null,"6.7 International databases"]
[1,null,"Is there capacity to analyze dog rabies data at the national level? ","For example, data analysis infrastructure in place for other diseases/programmes, adequately trained staff, sufficient technology, etc. ",1,null,"3.1.3-Infrastructure-surveillance","Challenges of animal health information systems and surveillance for animal diseases and zoonoses ","2.3 Animal rabies surveillance"]
[1,null,"Is there capacity to analyze human rabies data at the national level? ","For example, data analysis infrastructure in place for other diseases/programmes, adequately trained staff, sufficient technology, etc.",1,null,"3.1.3-Infrastructure-surveillance","Challenges of animal health information systems and surveillance for animal diseases and zoonoses ","2.2 Human rabies surveillance"]
[1,null,"Has an animal rabies surveillance* system been established at the national level?",null,1,null,"3.1.3-Infrastructure-surveillance","Challenges of animal health information systems and surveillance for animal diseases and zoonoses ","Zoonotic diseases : a guide to establishing collaboration","2.3 Animal rabies surveillance"]
[1,null,"Has a human rabies surveillance* system been established at the national level?",null,1,null,"3.1.3-Infrastructure-surveillance","Challenges of animal health information systems and surveillance for animal diseases and zoonoses ","Zoonotic diseases : a guide to establishing collaboration","2.2 Human rabies surveillance "]
[1,null,"Have reports on the number of humans bitten by dogs been compiled and reviewed?",null,1,null,"5.3.1-Rabies-surveillance"]
[1,null,"Have dog population studies and KAP surveys been conducted to determine size, turn-over and accessibility of dogs for vaccination on a small scale?","Mention the years in which the studies were conducted",0,null,"5.4.1-estimate the number of dogs"]
[2,null,"Have linked human and animal rabies surveillance systems, including agreed SOPs, been established?","Please describe the surveillance systems briefly, showing how data are shared. Note: Implementation of these linked measures is covered under 'Prevention and Control'",0]
[2,null,"Are human rabies surveillance systems, including feedback mechanisms, functioning and coordinated between administrative levels (national, province, district, municipal, etc.)? ","Timeliness (e.g. monthly or real time) of reporting and feedback, feedback mechanisms established and stakeholders involved with clear reporting channels. (Follows on from establishment of data analysis capacity above)",1,null,"5.1.1-epidemiology-of-rabies","WHO International Health Regulations"]
[2,null,"Are animal rabies surveillance systems, including feedback mechanisms, functioning and coordinated between administrative levels (national, province, district, municipal, etc.)?","Timeliness (e.g. monthly or real time) of reporting and feedback, feedback mechanisms established and stakeholders involved with clear reporting channels. (Follows on from establishment of data analysis capacity above)",1,null,"5.1.1-epidemiology-of-rabies","OIE Terrestrial Animal Health Code"]
[2,null,"Is information on the epidemiology of rabies regularly shared with all stakeholders?","Stakeholders involved - for example, policy makers, educators, NGOs and other relevant individuals and organisations",0,null,"5.1.1-epidemiology-of-rabies","WHO International Health Regulations","OIE Terrestrial Animal Health Code","2. Roles-and-Responsibilities"]
[2,null,"Is the on-going surveillance system for rabies being maintained?",null,0,null,"WHO International Health Regulations","OIE Terrestrial Animal Health Code"]
[3,null,"Have field investigations for all suspected human rabies cases been conducted? ","Data shared between human and animal sectors in real time and joint actions taken",0,null,"2.2 Human rabies surveillance "]
[3,null,"Is epidemiological evidence available to rule out dog-transmitted human rabies cases?",null,0]
[3,null,"Has an advocacy plan been approved by the government for local level implementation?",null,1]
[3,null,"Are field investigations and laboratory confirmations conducted for all suspected rabies outbreaks in dogs?",null,1]
[4,null,"Are existing surveillance activities for all suspected cases in humans maintained in the country?","Please answer '1' only if you have adequate functional surveillance based on your answers for earlier stages.",0]
[4,null,"Has the epidemiological data from the routine surveillance of all animals (working animals, livestock and wildlife) been used to refine the national rabies strategy?",null,0,null,"WHO International Health Regulations"]
[3,"Health economic studies","Has the collection of local or national health economic and/or other disease prioritization tool data* on rabies control been initiated to make the case for rabies control investment?",null,0,null,"Public-health-and-economic-burden-of rabies","Health economic studies on rabies"]
[3,null,"Have the health economic data and/or other disease prioritization tool analyses been expanded to support further prioritization within the national rabies control programme?",null,0,null,"Health economic studies on rabies","Comparing-PEP-costs"]
[]
[]
[]
["*Definitions"]
[null,"Surveillance","Surveillance means the systematic ongoing collection, collation, and analysis of information related to human and animal health and the timely dissemination of information to those who need to know so that action can be taken. (Adapted from the OIE Terrestrial Animal Health Code 2010). It is the flow of data up to the national level and back down to the local level where activities are implemented. "]
[null,"Health economics","Health economics is the discipline of economics applied to the topic of health care. It helps with the analysis of decision-making by individuals, health care providers and governments with respect to health and health care. "]

{"sheet":"Prev & Ctrl","index":4,"n_rows":38,"n_cols":9,"rows_kept":38,"cut":false,"hidden":false,"merged":[[36,2,36,3],[37,2,37,3],[19,1,20,1],[11,1,18,1],[3,6,3,8],[34,2,34,3],[35,2,35,3]]}
[]
["Instructions: Enter \"0\" under Status if No or None, or \"1\" if Yes"]
[]
["STAGE","subcomponent","ACHIEVEMENTS / ACTIVITIES","OTHER IMPORTANT INFORMATION\n(please include in REMARKS)","STATUS","REMARKS","Rabies Blueprint references and other links"]
[1,"Human vaccines","Are vaccines for human rabies prophylaxis available in one or more parts of the country?",null,1,null,"5.5.3-human-biologics","Human-vaccination-supply"]
[1,null,"Has the supply and access to WHO pre-qualified human rabies vaccines for PrEP for professionals at risk been ensured in local areas?",null,1]
[2,null,"Has an assessment* been done to determine the availability and access to PEP (and PreP)?",null,1,null,"3.1-Infrastructure"]
[2,null,"Are WHO pre-qualified human rabies vaccines available and accessible in most parts of the country?","Areas available and accessible",1,null,"WHO expert consultation on rabies","WHO vaccines position papers"]
[2,null,"Are any human biologics that are not WHO-pre-qualified being phased out? (e.g. nerve tissue vaccines, low quality vaccines)","If only WHO pre-qualified humans rabies vaccines are being used, mark the status as \"1\"\n",1,null,"WHO prequalified vaccines list"]
[3,null,"Is WHO pre-qualified Pre- and Post- Exposure Prophylaxis available and accessible to high risk and exposed individuals throughout the country?",null,1,null,"WHO prequalified vaccines list"]
[5,null,"Have modified protocols for PEP administration for rabies-free areas been implemented?",null,0,null,"WHO expert consultation on rabies",null,"Guidelines on human prophylaxis"]
[1,"Dog vaccines","Are dog rabies vaccines available in at least one location in the country?",null,1,null,"3.1-Infrastructure"]
[1,null,"Has dog vaccination been initiated in some parts of the country? ","Areas covered",1,null,"5.4-What-are-we-going-to-do-dog-component"]
[2,null,"Are only quality dog vaccines in accordance with OIE standards being used?",null,1,null,"OIE terrestrial-manual"]
[2,null,"Are dog vaccination campaigns regularly implemented in response to human cases and animal outbreaks?",null,1,null,"5.4-What-are-we-going-to-do-dog-component"]
[3,null,"Are mass dog vaccination campaigns reaching at least 70% of the total dog population conducted according to the national rabies strategy? ",null,0,null,"5.4.13-Vaccination campaign-coverage"]
[3,null,"Are post-vaccination surveys* in dogs being carried out to evaluate vaccination coverage?","Briefly describe post-vaccination survey",0,null,"5.6-Evaluation"]
[4,null,"Are dog vaccination campaigns maintained in zones where dog rabies is still present or where otherwise justified (e.g. risk of introduction)?",null,1]
[5,null,"Based on risk assessments, are dog vaccination campaigns being maintained where justified?",null,1,null,"5.4-What-are-we-going-to-do-dog-component"]
[1,"Outbreak response and other rabies control activities","Has Integrated Bite Case Management (IBCM)* been implemented at a local level? ",null,1,null,"Operational-activities"]
[1,null,"Have Standard Operating Procedures (SOPs) for coordinated action on reported outbreaks* been established?",null,1,null,"Challenges of animal health information systems and surveillance for animal diseases and zoonoses"]
[2,null,"Have IBCM SOPs, including sharing of information between sectors, been agreed upon?","Sectors involved. ",0,"Need for sectorwide meetings","WHO expert consultation on rabies","Challenges of animal health information systems and surveillance for animal diseases and zoonoses ","Zoonotic diseases: A guide to collaboration"]
[2,null,"Are SOPs available for the observation of dogs involved in biting incidents? ",null,1,null,"Guidelines-animal-shelters","WHO expert consultation on rabies"]
[2,null,"Have facilities or protocols been established for the observation of rabies-suspected dogs?","Home quarantine is adequate so long as the owner ensures the dog is provided sufficient food, water and shelter during the observation period.",1,null,"Guidelines-animal-shelters"]
[3,null,"Is there capacity to conduct field investigations and planned outbreak responses for animal and human rabies cases in the entire country?","Agencies of personnel involved in field investigations and outbreak response",1,null,"WHO International Health Regulations","Challenges of animal health information systems and surveillance for animal diseases and zoonoses "]
[3,null,"Have potential rabies-free zones been identified where canine variant cases have been absent for at least a 2 year period?","Names of rabies-free zones",0,null,"5.4.17 Keeping an area rabies-free"]
[3,null,"Has dialogue been initiated with neighbouring countries to prevent the re-introduction of rabies into designated rabies-free zones?",null,0,null,"5.4.17-successful-maintenance","Challenges of animal health information systems and surveillance for animal diseases and zoonoses "]
[4,null,"Has freedom from dog-transmitted rabies in the entire country been verified by the absence of canine variant cases for at least a 2 year period?",null,0,null,"5.4.17 Keeping an area rabies-free"]
[4,null,"Has an emergency response/contingency plan been developed to address any reintroduced case of animal rabies involving a canine variant?",null,0,null,"5.4.20 Reintroduction response "]
[5,null,"Has the capacity for outbreak and re-introduction response been maintained?",null,0,null,"5.4.17-successful-maintenance"]
[]
[]
[]
["* Definitions"]
[null,"Assessment on access to PEP and PrEP","Determination of the extent to which people can actually obtain post-exposure and pre-exposure treatment. This may differ from the availability of the vaccine, because other factors such as the cost and location of the vaccine influence access."]
[null,"Post-vaccination surveys in dogs","Any survey conducted after a mass vaccination campaign has been implemented, and is used to determine the percentage of the dog population that has been vaccinated."]
[null,"IBCM","Integrated Bite Case Management (IBCM) is a coordinated One Health approach to managing human dog bite cases, with the goal of improved communication and data sharing between the animal health and human health sectors following a bite case. It has a positive impact on animal rabies surveillance, identification of additional human exposures (bite cases), reduction in human rabies cases, and helps to target emergency canine vaccinations to areas where there are confirmed canine rabies cases."]
[null,"Coordinated action on reported outbreaks","When an outbreak is reported, the human and animal health services need to work in collaboration to ensure that it is investigated and dealt with effectively. SOPs should be created so that everyone understands their roles in an outbreak. "]

{"sheet":"Lab dx","index":5,"n_rows":17,"n_cols":11,"rows_kept":17,"cut":false,"hidden":false,"merged":[[3,6,3,10]]}
[]
["Instructions: Enter \"0\" under Status if No or None, or \"1\" if Yes"]
[]
["STAGE","subcomponent","ACHIEVEMENTS / ACTIVITIES","OTHER IMPORTANT INFORMATION\n(please include in REMARKS)","STATUS","REMARKS","Rabies Blueprint references and other links"]
[0,"Specimen referral","Have contacts with an international rabies reference laboratory or international collaborating/reference center been established?","Names of international rabies reference laboratories or collaborating/reference centers",1,"OIE Reference Laboratory","3.1.7 Which laboratories are-available","OIE reference laboratories","WHO collaborating centres","FAO reference centre","WHO expert consultation on rabies"]
[0,null,"Has at least one human or animal rabies suspect sample been submitted to an international rabies reference laboratory for confirmation?","Year of most recent specimen referral;\nName of international rabies reference laboratory",1,"OIE Reference Laboratory at OVI (2009)","Simple-techniques-for animal brain-sampling","3.6 Human samples"]
[1,"Laboratory capacity and testing","Is there capacity to conduct rabies diagnosis in at least one national laboratory (veterinary or medical laboratory)?",null,1,null,"3.1.8 Minimum laboratory requirements","OIE Manual of Diagnostic Tests and Vaccines  for Terrestrial Animals  "," Laboratory biorisk management/"]
[1,null,"Have several rabies suspect samples of animals or humans been submitted to a national laboratory and analysed? ","Name of national laboratory;\nLaboratory test used",1,"CVRI (FAT, PCR) UNZAVET SCHOOL (FAT,PCR, HISTOPATHOLOGY) UTH (HISTOPATHOLOGY)","Simple-techniques-for animal brain-sampling","Manual of Diagnostic Tests and Vaccines for Terrestrial Animals 2016","WHO guidance on regulations for the transport of infectious substances"]
[1,null,"Is animal rabies diagnosis conducted in at least one national laboratory?",null,1,null,"4. Laboratory rabies diagnosis"]
[1,null,"Are rabies suspect samples of animals or humans submitted twice yearly to an international laboratory and analysed?",null,0,null,"6.7 International databases"]
[2,null,"Is there regular laboratory diagnosis of animal rabies cases in country?","Name and location of laboratories; how often (regularly) samples are diagnosed",1,"CVRI (FAT, PCR) LUSAKA","3.1.8 Minimum laboratory requirements","Laboratory biorisk management"]
[2,null,"Has capacity for regular sample collection and transportation been established and functioning?","Capacity includes the following: costing and payment system for sample transport, contact persons, transport companies/vehicles, packaging etc. ",1,"PVO & DVO ","OIE Manual of Diagnostic Tests and Vaccines  for Terrestrial Animals ","Laboratory biorisk management","5.3.1-Rabies-surveillance"]
[3,null,"Are wildlife samples submitted for rabies laboratory diagnosis?",null,1]
[3,null,"Is access to reliable laboratory diagnosis available throughout the country for animal samples (and if possible also for human and wildlife samples)?","Names and locations of laboratories",1,"CVRI  & UNZAVET SCHOOL LUSAKA","3.1.8-laboratory diagnosis","4. Laboratory rabies diagnosis"]
[3,null,"Is there regular characterization and analysis of circulating rabies virus variants by a national or international laboratory?","Name of laboratory/institute where molecular tests are being performed",0,null,"OIE reference laboratories","WHO collaborating centres  ","WHO expert consultation on rabies","FAO reference centre"]
[4,null,"Is there maintenance of existing surveillance activities, including ongoing laboratory investigation, for all suspected cases in dogs in the country?",null,0,null,"OIE Terrestrial Animal Health Code"]
[5,null,"Are there on-going laboratory investigations of all suspected cases in domestic and wild animal species in the country?",null,0,null,"OIE Terrestrial Animal Health Code"]

{"sheet":"Dog popn","index":6,"n_rows":24,"n_cols":8,"rows_kept":24,"cut":false,"hidden":false,"merged":[[3,6,3,7],[22,2,22,3],[23,2,23,3]]}
[]
["Instructions: Enter \"0\" under Status if No or None, or \"1\" if Yes"]
[]
["STAGE","subcomponent","ACHIEVEMENTS / ACTIVITIES","OTHER IMPORTANT INFORMATION\n(please include in REMARKS)","STATUS","REMARKS","Rabies Blueprint references and other links"]
[1,null,"Have discussions been held with stakeholders to create a dog population management strategy at a local level?","Stakeholders involved, how this integrates with rabies control strategy. Studies and surveys from \"Prevention and Control\" need to be completed before this item.",1,"Local taskforces are organised in every district","5.4.16 Dog population management tools","Guidelines-dog-population-management"]
[1,null,"Have you involved officials in waste management in your stakeholder meetings","Removal of garbage or preventing animals from reaching the garbage takes away available food sources for dogs. This will help to reduce the number of free-roaming dogs in the community.",1,"Focal point person from local govt is involved"]
[2,null,"Has a DPM* strategy and programmebeen  drafted and shared with all relevant stakeholders at a local level?",null,0,"Need for DPM strategy to be developed"]
[2,null,"Has the DPM strategy been finalized?",null,0,"as above"]
[2,null,"Has public sensitisation about DPM been built into rabies awareness campaigns at a local level?",null,0,"No DPM strategy in place"]
[2,null,"Has dog population management been implemented at a local level?","Please list what strategies are currently being used. \nNOTE: Mass culling is NOT considered an effective DPM strategy. However, controlled euthanasia of suspect rabid animals is considered appropriate.",1,"Through local authority disease preparedness","Monitoring and evaluation of dog population management programmes"]
[2,null,"Have training or refresher courses on animal handling and sterilisation been initiated for professionals in animal health at a local level?",null,1,"through VAZ CPDs","GARC Animal Handling and Vaccination course"]
[3,null,"Has the DPM strategy been assessed and refined based on current dog ecology or KAP surveys?",null,0,"No KAP surveys done","Knowledge-Attitude-Practice"]
[3,null,"Have rabies awareness campaigns, including responsible dog ownership, been expanded to more areas?","Intended audience and areas covered\n",1,null,"Communication-plan","5.4.16- dog-population-management"]
[3,null,"Has veterinary and animal technician training been completed across most of country?",null,1]
[3,null,"Has the dog population management strategy been implemented nationwide?",null,0,"Need for DPM strategy to be developed"]
[4,null,"Have dog population management and responsible dog ownership campaigns been continued after the elimination of canine-mediated human rabies?",null,1]
[5,null,"Have dog population management and responsible dog ownership campaigns been continued as part of the post-elimination strategy?",null,0,null,"Guidelines-dog-population-management"]
[]
[]
[]
[]
["* Dog Population Management"]
[null,null,"Dog population management: Dog population management (DPM) is a multifaceted concept which aims to improve the health and  wellbeing of free-roaming dogs and reduce problems they may present, within which permanently  reducing the size or turnover rate of a dog population may be a goal (International Companion Animal Management Coalition, 2007). This goes far beyond dog population control which refers  to a program with the aim of reducing a dog population to a particular level and/or maintaining it  at that level and/or managing it in order to meet a predetermined objective (OIE, 2015a). Whilst  the former is usually practiced using humane approaches and long-term objectives, the latter has  often utilized inhumane methods with short-sighted goals."]
[null,null,"DPM may be enacted for numerous animal welfare, public health or safety reasons associated  with dogs, including human bite injuries, secondary infections and death, the spread of rabies and  other zoonoses, noise and faecal contamination of the environment, traffic accidents, negative  publicity for the government or an impact on tourism (International Companion Animal  Management Coalition, 2007; Arluke and Atema, 2015; OIE, 2015a; World Animal Protection,  2015). Therefore, DPM programs can have one or more goals depending on the specific situation,  and will require a ‘One Health’ approach involving close collaboration between animal health,  human health and environmental sectors. A DPM program with potential to improve animal,  human and environmental health may increase motivation to tackle the issues and bring on board  more stakeholders to support efforts. (From new paper under review: The Role of Dog Population Managementin Rabies Elimination – Current Tools andthe Need for Improvements. Taylor, LH et al)"]

{"sheet":"IEC","index":7,"n_rows":32,"n_cols":8,"rows_kept":32,"cut":false,"hidden":false,"merged":[[3,6,3,7],[29,2,29,3],[30,2,30,3],[31,2,31,3]]}
[]
["Instructions: Enter \"0\" under Status if No or None, or \"1\" if Yes"]
[]
["STAGE","subcomponent","ACHIEVEMENTS / ACTIVITIES","OTHER IMPORTANT INFORMATION\n(please include in REMARKS)","STATUS","REMARKS","Rabies Blueprint references and other links"]
[1,"Public awareness","Has an assessment been done to determine what message should be communicated to the target audience at a local level?","Determine who the target audience is and what message is appropriate to them. For example, through focus groups or surveys. ",1,null,"Examples of KAP surveys"]
[1,null,"Have the target audiences been identified at a local level (e.g. at-risk communities, dog owners, children)?",null,1,null,"4.2.3 Understanding who needs to be involved"]
[1,null,"Has an IEC plan* been developed and implemented on a small scale?","Main messages and intended audiences (e.g. responsible dog ownership, rabies and bite prevention and management, and any other relevant messages for audiences such as dog owners, teachers, children, etc.)",0,"Main messages disseminated on adhoc basis. NO IEC plan in palce","Communication-plan","5.4.7-Awareness-campaign"]
[1,null,"Has broad public awareness messaging started at a national level?","To increase awareness about responsible dog ownership, rabies and bite prevention and management (through channels such as World Rabies Day, other health days, newspaper radio and television campaigns, and other channels)  ",1,"Through TV and Radio programmes on world rabies day annually. VAZ also carries out broad public awarenes through distribution of print materials during AGM","World Rabies Day"]
[2,null,"Has an IEC plan been implemented beyond a local level?","Main messages, intended audience and areas covered",0,"No official plan in place"]
[2,null,"Has the IEC plan been reviewed and updated?",null,0,"No official plan in place","Communication-plan"]
[3,null,"Has the IEC plan been integrated into the national rabies strategy and implemented at national level?",null,0]
[5,null,"Have awareness programmes focusing on the maintenance of freedom from dog and dog transmitted human rabies been implemented?","What are the main messages? Who is the intended audience?",0]
[1,"Professional education","Has an assessment been undertaken to determine the training needs of the professionals at a local level? ","For example: Did officials assess whether doctors can diagnose rabies? Did officials assess whether veterinarians can vaccinate dogs safely?",1,"Training needs though not focused on Rabies prevention and control are available","5.3-Who-do-we-need-to-train"]
[1,null,"Have human and animal health professionals involved in rabies control been identified at a local level?",null,1]
[1,null,"Has a training plan been developed at a local level?",null,1,"Implemented but not specific for Rabies","5.5-What-are-we-going-to-do-human-component"]
[1,null,"Have training or refresher courses on rabies and public communication been initiated for professionals in human and animal health at a local level?","Participant organisations/agencies",1,"Done adhoc basis","GARC Education Platform"]
[2,null,"Has training of human and animal health personnel been conducted in most parts of the country?","Participant organisations/agencies",1,null,"5.3-Who-do-we-need-to-train","GARC Education Platform"]
[1,"Advocacy","Has an advocacy stakeholder analysis* been done at a local level and target audiences been identified?","For example, at-risk community leaders/authorities, politicians and other policy influencers and decision makers ",1,"Rabies advocay is neglected compared to FMD","Drafting an advocacy strategy","A toolkit for influencing policy"]
[1,null,"Has an advocacy plan* been developed and implemented at a local level?",null,0,"need to develop advocacy plans at all levels"]
[2,null,"Have small-scale program successes been communicated to authorities/leaders in other parts of the country?","Main messages, audiences, areas covered",0,"Successes are not reviewed"]
[2,null,"Has an advocacy stakeholder analysis* been done at a national level and have the target audiences been identified?",null,0]
[2,null,"Has an advocacy campaign to national leaders/authorities been undertaken to ensure that a national rabies control strategy is created and properly resourced?","Main messages, audiences",0]
[3,null,"Have human rabies free zones been declared publicly?","Areas covered",0]
[4,null,"Has national freedom from dog-transmitted rabies been publically declared? ",null,0]
[4,null,"Has national freedom from canine-mediated human rabies been publically declared? ",null,0]
[]
[]
[]
["* DEFINITIONS"]
[null,"IEC Plan","A structured plan for Information, Education and Communication (IEC) that has agreed objectives, audiences, messages, channels and timelines to increase awareness of rabies prevention and control. (See Blueprint links in SARE tool for guidance on creating a plan.)"]
[null,"Advocacy Plan","A structured plan to make rabies prevention and control a priority among leaders, decision-makers and policy influencers. (See Blueprint links in SARE tool for guidance on creating a plan.)"]
[null,"Advocacy stakeholder analysis","Identification of the people and organisations who play a role in rabies prevention and control, and determination of the most effective ways to help make rabies a priority for them.  (See Blueprint links in SARE tool for guidance on creating a plan.)"]

{"sheet":"Cross-cutting issues","index":8,"n_rows":16,"n_cols":9,"rows_kept":16,"cut":false,"hidden":false,"merged":[[3,6,3,8]]}
[]
["Instructions: Enter \"0\" under Status if No or None, or \"1\" if Yes"]
[]
["STAGE","subcomponent","ACHIEVEMENTS / ACTIVITIES","OTHER IMPORTANT INFORMATION\n(please include in REMARKS)","STATUS","REMARKS","Rabies Blueprint references and other links"]
[0,"Intersectoral collaboration","Are the results of rabies sample(s) shared appropriately with local and national authorities? ","Agencies involved",1,"The National Epidemic committee has a frequent meetings to discuss zoonotic diseases which include Rabies","6. Reporting of rabies data"]
[1,null,"Have the main national stakeholders in rabies prevention and control been identified?","Agencies of stakeholders involved",1,"Ministry of Fisheries & Livestock, MOH, MLGH, MHA, Academia","2. Roles-and-Responsibilities","Challenges of animal health information systems and surveillance for animal diseases and zoonoses "]
[1,null,"Have stakeholder consultations been held within the last 3 years at the national level?",null,0,"Not specific for rabies but zoonotic diseases in general","2. Roles-and-Responsibilities"]
[1,null,"Has an intersectoral rabies task force, committee or working group been established at a local or national level and do they meet at least twice a year?","Agencies of members of task force",0,"Only at local levels.","2. Roles-and-Responsibilities","Challenges of animal health information systems and surveillance for animal diseases and zoonoses "]
[2,null,"Are mechanisms for regular intersectoral collaboration in place and are they implemented?",null,0,null,"2. Roles-and-Responsibilities"]
[2,null,"Has the contribution and role of  private sector been clarified and shared with other stakeholders?",null,0,null,"2. Roles-and-Responsibilities"]
[1,"National programme and strategy","Based on a small-scale experience, has a short term rabies action plan been developed and endorsed by relevant stakeholders at local / national level?",null,1,"Only in areas that have had confirmed rabies outbreaks","5.1-What-do-we-need-to-know-before","1.8-What-measures-are-available","2. Roles-and-Responsibilities"]
[1,null,"Have mechanisms for mobilizing emergency funds in case of an outbreak been identified?",null,1,"Only at local levels. Govt has established a disease control fund and the DMMU under the vice president's office.","3.3-Costs-and-Funding"]
[2,null,"Has a national strategy for rabies prevention, control and eventual elimination been drafted, shared with all relevant stakeholders and finalised?",null,0,"No national strategy in place","Components-of-a-successful-rabies-programme"]
[2,null,"Have government resources been identified and allocated in support of the national rabies control strategy?  ",null,1,"Rabies budgeted under the ministrial national budget","3.3-Costs-and-Funding"]
[3,null,"Has the national strategy been refined based on monitoring and evaluation? ",null,0,null,"5.6-Evaluation","5.7.1-Sustainability"]
[4,null,"Have veterinary border inspection and quarantine measures been fully implemented in accordance with national regulations?",null,1,"Import permits issuance done according to national regulations","OIE Terrestrial Animal Health Code"]

{"sheet":"Legislation","index":9,"n_rows":17,"n_cols":10,"rows_kept":17,"cut":false,"hidden":false,"merged":[[4,1,5,1],[6,1,7,1],[3,6,3,9]]}
[]
["Instructions: Enter \"0\" under Status if No or None, or \"1\" if Yes"]
[]
["STAGE","subcomponent","ACHIEVEMENTS / ACTIVITIES","OTHER IMPORTANT INFORMATION\n(please include in REMARKS)","STATUS","REMARKS","Rabies Blueprint references and other links"]
[0,"National case definition for animal rabies","Is a case definition available that is consistent with the OIE guidelines for animal rabies?",null,0,"Need to develop case definitions. Priority for the Vet Dept in Zambia","OIE Terrestrial Animal Health Code"]
[1,null,"Do all of the relevant professionals know the case definition for animal rabies?","Agencies the case definition was disseminated to",0,null,"OIE Terrestrial Animal Health Code"]
[0,"National case definition for human rabies","Is a case definition available that is consistent with the WHO guidelines for human rabies?",null,1,"Not sure whether in line with WHO standards","WHO expert consultation on rabies"]
[1,null,"Do all of the relevant professionals know the case definition for human rabies?","Agencies the case definition was disseminated to",0,"Include in training","WHO expert consultation on rabies"]
[0,"Legal framework","Does the national authority report at least one confirmed rabies case to the WHO, OIE or PARACON?","Year of last reported rabies case",1,null,"WHO Collaborating Centres and OIE Reference Laboratories"]
[1,null,"Is there national legislation that is relevant to rabies prevention and control?","For example: an Animal act; compulsory vaccination, etc.\nTitle of the framework and the year it was passed",1,"Control of Dogs Act, Animal Health Act, ZAMRA Act","3.2. Legislation"]
[1,null,"If there is legislation, has it been reviewed and endorsed?","Year the framework was reviewed",1,"Animal Health Act 2010, ZAMRA Act, 2013","3.2. Legislation"]
[1,null,"Has rabies been made a notifiable disease in animals?",null,1,null,"3.2. Legislation","3.2.3-Why-does-rabies-need-to-be-notifiable","OIE Terrestrial Animal Health Code","3.2.9-How-to-make-rabies-notifiable"]
[1,null,"Has rabies been made a notifiable disease in humans?",null,1,null,"3.2. Legislation","3.2.3-Why-does-rabies-need-to-be-notifiable","WHO expert consultation on rabies","3.2.9-How-to-make-rabies-notifiable"]
[1,null,"Is there legislation that includes the compulsory rabies vaccination of dogs or has it been proposed if it is not already in place?",null,1,"Control of Dogs Act"]
[1,null,"Does legislation include measures for rabies outbreak response?",null,1]
[2,null,"Has legislation been updated to include specifications on the compulsory vaccination of dogs and the international movement of animals? ",null,1,null,"General-guide-on-veterinary legislation","3.2.11- laws-and-by-laws"]
[3,null,"Is the relevant legislation enforced at the national level?",null,1]

{"sheet":"S0-S5","index":10,"n_rows":27,"n_cols":20,"rows_kept":27,"cut":false,"hidden":true,"merged":[[0,12,1,12],[0,14,0,19],[0,0,1,0],[0,2,1,2],[0,4,1,4],[0,6,1,6],[0,8,1,8],[0,10,1,10]]}
["LEGISLATION",null,"DATA COLLECTION AND ANALYSIS",null,"LABORATORY DIAGNOSIS",null,"INFORMATION, EDUCATION AND COMMUNICATION",null,"PREVENTION AND CONTROL",null,"DOG POPULATION RELATED ISSUES",null,"CROSS CUTTING ISSUES",null,"STAGE LEGEND"]
[null,null,null,null,null,null,null,null,null,null,null,null,null,null,0,1,2,3,4,5]
["A case definition consistent with OIE for animal rabies is available",null,"Reporting of dog rabies from local to national level ",null,"Contacts with an international rabies reference laboratory or international collaborating/reference center are established",null,"Communications situation and needs (KAP, training needs, stakeholder analysis) assessed at pilot level",null,"Vaccines for human rabies prophylaxis are available in the country",null,"Dog population studies to determine size, turn-over and accessibility have been conducted in pilot areas",null,"Result of rabies sample(s) are shared appropriately with local and national authorities "]
["A case definition consistent with WHO for human rabies is available",null,"Reporting of human rabies from local to national level",null,"At least one rabies suspect sample of animals or humans is submitted to an international rabies reference laboratory for confirmation ",null,"Target audiences identified for public, professional and advocacy communications (at-risk communities, dog owners, health professionals, at-risk community leaders/authorities, politicians)",null,"A first assessment on access to PEP (and PreP) has been carried out",null,"Other rabies control activities such as IBCM, dog population management have been implemented (at least in pilot areas) ",null,"Identification of main national stakeholders in rabies prevention and control has been carried out"]
["The national authority reports at least one confirmed rabies case to WHO or OIE ",null,"Dog rabies data analysis capacity at the national level has been established",null,"Several rabies suspect samples of animals or humans are submitted to a national laboratory and analysed by an internationally recommended method  ",null,"A rabies communication plan developed for public, professional and advocacy target audiences",null,"Dog rabies vaccines are available in the country",null,"Rabies awareness campaigns including responsible dog ownership have been expanded to more areas",null,"Stakeholder consultations held within the last 3 years"]
["The animal rabies case definition has been disseminated to relevant professionals",null,"Human rabies data analysis capacity at the national level has been established",null,"Rabies diagnostic capacity has been established in at least one national laboratory ",null,"Public awareness activities on rabies prevention, dog bite management and dog vaccination initiated (e.g. WRD)  ",null,"Dog vaccination is initiated in some parts or pilot areas of the country ",null,"Refinement of strategy based on current dog ecology and KAP surveys",null,"Intersectoral rabies task force, committee or working group established at local or national level and meeting at least twice a year"]
["The human rabies case definition has been disseminated to relevant professionals",null,"Dog bite reporting and documentation have been reviewed and data compiled",null,"Routine laboratory diagnosis of animal rabies cases in country",null,"Training or refresher courses on rabies initiated for professionals in human and animal health ",null,"Other rabies control activities such as IBCM, dog population management have been implemented (at least in pilot areas) ",null,"Dog population management and responsible dog ownership campaigns are continued ",null,"Based on pilot area experience, a short term rabies action plan has been developed and endorsed by relevant stakeholders at local / national level"]
["There is a legal framework relevant to rabies prevention and control",null,"Dog population studies to determine size, turn-over and accessibility have been conducted in pilot areas",null,"Capacity for sample collection and transportation has been established ",null,"Information on the epidemiology of rabies is regularly shared with all stakeholders",null,"WHO pre-qualified human rabies vaccines available and accessible in most parts of the country",null,null,null,"Mechanisms for mobilizing emergency funds in case of an outbreak have been identified"]
["If there is a legal framework, the framework has been reviewed to determine if it is adequate.  ",null,"Establishment of linked human and animal rabies surveillance systems, including agreed SOPs",null,"Access to laboratory diagnosis is available throughout the country  for animal samples (and if possible also for human samples)",null,"Rabies communication plan reviewed and updated ",null,"Any use of human biologics not WHO-pre-qualified is being phased out (e.g. nerve tissue vaccines, low quality vaccines)",null,null,null,"Mechanisms for regular intersectoral collaboration are in place and implemented"]
["Rabies is made a notifiable disease in animals ",null,"Human rabies surveillance systems, including feedback mechanism, coordinated between administrative levels (national, province, district, municipal, etc.) ",null,"Regular characterization and analysis of circulating rabies virus variants by a national or international laboratory",null,"Rabies awareness campaigns including responsible dog ownership have been expanded to more areas",null,"Supply and access to WHO pre-qualified human rabies vaccines for PrEP for professionals at risk ensured throughout the pilot areas",null,null,null,"Contribution and role of  private sector clarified and shared with other stakeholders"]
["Rabies is made a notifiable disease in humans ",null,"Animal rabies surveillance systems, including feedback mechanism, coordinated between administrative levels (national, province, district, municipal, etc.)",null,"Maintenance of existing surveillance activities, including ongoing laboratory investigation, for all suspected cases in dogs in the country",null,"Public awareness and sensitization campaigns are tailored to specific target groups (e.g. community leaders, authorities and health professionals, World Rabies Day Activities).",null,"Only quality dog vaccines in accordance with OIE standards are being used",null,null,null,"A national strategy and programme for rabies prevention, control and eventual elimination has been  drafted and shared with all relevant stakeholders"]
["Legislation includes compulsory rabies vaccination of dogs or proposed if not in place",null,"Information on the epidemiology of rabies is regularly shared with all stakeholders",null,"Epidemiological data from routine surveillance of all animals (working animals, livestock and wildlife) used to refine the national rabies strategy",null,"Training of human and animal health personnel has been conducted in most parts of the country",null,"Dog vaccination campaigns are regularly implemented in response to human cases and animal outbreaks",null,null,null,"Government resources identified and allocated in support of the national rabies control strategy and programme  "]
["Legislation includes measures for outbreak response",null,"Conduct field investigations for all suspected human rabies cases ",null,"On-going laboratory investigation of all suspected cases in domestic and wild animal species in the country",null,"Communication plan on rabies elimination is implemented",null,"IBCM SOPs agreed, including sharing of information between sectors",null,null,null,"Refinement of national strategy based on monitoring and evaluation "]
["The animal rabies case definition has been reviewed and endorsed (intersectoral approach)",null,"Epidemiological evidence available to rule out dog- transmitted human rabies cases",null,null,null,"Declaration of  dog-transmitted rabies free zones publicized",null,"SOPs for the observation of dogs involved in biting incidents available ",null,null,null,"Veterinary border inspection and quarantine measures are fully implemented in accordance with national regulations"]
["The human rabies case definition has been reviewed and endorsed (intersectoral approach)",null,"Conduct field investigations and laboratory confirmation for all suspected rabies outbreaks in dogs",null,null,null,"Promote responsible dog ownership together with rabies awareness campaigns",null,"WHO pre-qualified Pre- and Post- Exposure Prophylaxis available and accessible to high risk and exposed individuals throughout the country"]
["Legal frameworks updated to include specifications on compulsory vaccination of dogs and international movement of animals. ",null,"Initiate collection of local or national health economic data on rabies control to make the case for rabies control investment ",null,null,null,"Strengthen public awareness campaigns to advocate dog vaccination to leaders and authorities ",null,"Mass dog vaccination campaigns (at least 70% of the total dog population) are conducted according to the national rabies strategy "]
["Declaration of national dog-transmitted rabies freedom publicized",null,"Expand health economic studies to support further prioritization within the national rabies control programme",null,null,null,"Declaration of national dog-transmitted rabies freedom publicized",null,"Post-vaccination surveys in dogs to evaluate vaccination coverage"]
[null,null,"Maintenance of existing surveillance activities for all suspected cases in humans in the country",null,null,null,"Awareness programmes focusing on maintenance of freedom from dog and dog transmitted human rabies",null,"Capacity to conduct field investigations and planned outbreak response for animal and human rabies cases is available in the entire country"]
[null,null,"Epidemiological data from routine surveillance of all animals (working animals, livestock and wildlife) used to refine the national rabies strategy",null,null,null,"Dog population management and responsible dog ownership campaigns are continued ",null,"Sufficient facilities for observation of rabies-suspected dogs established and comply with international animal welfare regulations"]
[null,null,"On-going surveillance system for rabies maintained",null,null,null,null,null,"Identification of potential rabies free zones where canine variant cases is absent for at least a 2 year period"]
[null,null,null,null,null,null,null,null,"Dog vaccination campaigns are maintained in zones where dog rabies is still present or where otherwise justified (e.g. risk of introduction)"]
[null,null,null,null,null,null,null,null,"Freedom from dog-transmitted rabies in the entire country verified by the absence of canine variant cases for at least a 2 year period"]
[null,null,null,null,null,null,null,null,"Measures to prevent re-introduction applied in designated rabies free zones including dialogue with neighbouring countries."]
[null,null,null,null,null,null,null,null,"Emergency response/contingency plan to any case of animal rabies involving a canine variant developed in preparation of the post elimination phase"]
[null,null,null,null,null,null,null,null,"Modified protocols for PEP administration for rabies free areas implemented"]
[null,null,null,null,null,null,null,null,"Based on risk assessment, dog vaccination campaigns are maintained where justified "]
[null,null,null,null,null,null,null,null,"Capacity for outbreak and re-introduction response maintained"]

{"sheet":"masterlist","index":11,"n_rows":121,"n_cols":7,"rows_kept":121,"cut":false,"hidden":true,"merged":[]}
["#","STAGE","COMPONENT","ACTIVITY","KEY","COUNTRY STATUS","COUNTRY NOTES"]
[49,0,"LAB","Have contacts with an international rabies reference laboratory or international collaborating/reference center been established?","KEY",{"$f":"IFERROR(VLOOKUP(D2,'Data coll & ax'!$C$5:$E$26,3,FALSE),IFERROR(VLOOKUP(D2,'Prev & Ctrl'!$C$5:$E$30,3,FALSE),IFERROR(VLOOKUP(D2,'Lab dx'!$C$5:$E$17,3,FALSE),IFERROR(VLOOKUP(D2,'Dog popn'!$C$5:$E$17,3,FALSE),IFERROR(VLOOKUP(D2,IEC!$C$5:$E$25,3,FALSE),IFERROR(VLOOKUP(D2,'Cross-cutting issues'!$C$5:$E$16,3,FALSE),(VLOOKUP(D2,Legislation!$C$5:$E$17,3,FALSE))))))))","v":1},{"$f":"IFERROR(VLOOKUP(D2,'Data coll & ax'!$C$5:$F$26,4,FALSE),IFERROR(VLOOKUP(D2,'Prev & Ctrl'!$C$5:$F$30,4,FALSE),IFERROR(VLOOKUP(D2,'Lab dx'!$C$5:$F$17,4,FALSE),IFERROR(VLOOKUP(D2,'Dog popn'!$C$5:$F$17,4,FALSE),IFERROR(VLOOKUP(D2,IEC!$C$5:$F$25,4,FALSE),IFERROR(VLOOKUP(D2,'Cross-cutting issues'!$C$5:$F$16,4,FALSE),(VLOOKUP(D2,Legislation!$C$5:$F$17,4,FALSE))))))))","v":"OIE Reference Laboratory"}]
[50,0,"LAB","Has at least one human or animal rabies suspect sample been submitted to an international rabies reference laboratory for confirmation?","KEY",{"$f":"IFERROR(VLOOKUP(D3,'Data coll & ax'!$C$5:$E$26,3,FALSE),IFERROR(VLOOKUP(D3,'Prev & Ctrl'!$C$5:$E$30,3,FALSE),IFERROR(VLOOKUP(D3,'Lab dx'!$C$5:$E$17,3,FALSE),IFERROR(VLOOKUP(D3,'Dog popn'!$C$5:$E$17,3,FALSE),IFERROR(VLOOKUP(D3,IEC!$C$5:$E$25,3,FALSE),IFERROR(VLOOKUP(D3,'Cross-cutting issues'!$C$5:$E$16,3,FALSE),(VLOOKUP(D3,Legislation!$C$5:$E$17,3,FALSE))))))))","v":1},{"$f":"IFERROR(VLOOKUP(D3,'Data coll & ax'!$C$5:$F$26,4,FALSE),IFERROR(VLOOKUP(D3,'Prev & Ctrl'!$C$5:$F$30,4,FALSE),IFERROR(VLOOKUP(D3,'Lab dx'!$C$5:$F$17,4,FALSE),IFERROR(VLOOKUP(D3,'Dog popn'!$C$5:$F$17,4,FALSE),IFERROR(VLOOKUP(D3,IEC!$C$5:$F$25,4,FALSE),IFERROR(VLOOKUP(D3,'Cross-cutting issues'!$C$5:$F$16,4,FALSE),(VLOOKUP(D3,Legislation!$C$5:$F$17,4,FALSE))))))))","v":"OIE Reference Laboratory at OVI (2009)"}]
[96,0,"CCI","Are the results of rabies sample(s) shared appropriately with local and national authorities? ",null,{"$f":"IFERROR(VLOOKUP(D4,'Data coll & ax'!$C$5:$E$26,3,FALSE),IFERROR(VLOOKUP(D4,'Prev & Ctrl'!$C$5:$E$30,3,FALSE),IFERROR(VLOOKUP(D4,'Lab dx'!$C$5:$E$17,3,FALSE),IFERROR(VLOOKUP(D4,'Dog popn'!$C$5:$E$17,3,FALSE),IFERROR(VLOOKUP(D4,IEC!$C$5:$E$25,3,FALSE),IFERROR(VLOOKUP(D4,'Cross-cutting issues'!$C$5:$E$16,3,FALSE),(VLOOKUP(D4,Legislation!$C$5:$E$17,3,FALSE))))))))","v":1},{"$f":"IFERROR(VLOOKUP(D4,'Data coll & ax'!$C$5:$F$26,4,FALSE),IFERROR(VLOOKUP(D4,'Prev & Ctrl'!$C$5:$F$30,4,FALSE),IFERROR(VLOOKUP(D4,'Lab dx'!$C$5:$F$17,4,FALSE),IFERROR(VLOOKUP(D4,'Dog popn'!$C$5:$F$17,4,FALSE),IFERROR(VLOOKUP(D4,IEC!$C$5:$F$25,4,FALSE),IFERROR(VLOOKUP(D4,'Cross-cutting issues'!$C$5:$F$16,4,FALSE),(VLOOKUP(D4,Legislation!$C$5:$F$17,4,FALSE))))))))","v":"The National Epidemic committee has a frequent meetings to discuss zoonotic diseases which include Rabies"}]
[108,0,"LEG","Is a case definition available that is consistent with the OIE guidelines for animal rabies?",null,{"$f":"IFERROR(VLOOKUP(D5,'Data coll & ax'!$C$5:$E$26,3,FALSE),IFERROR(VLOOKUP(D5,'Prev & Ctrl'!$C$5:$E$30,3,FALSE),IFERROR(VLOOKUP(D5,'Lab dx'!$C$5:$E$17,3,FALSE),IFERROR(VLOOKUP(D5,'Dog popn'!$C$5:$E$17,3,FALSE),IFERROR(VLOOKUP(D5,IEC!$C$5:$E$25,3,FALSE),IFERROR(VLOOKUP(D5,'Cross-cutting issues'!$C$5:$E$16,3,FALSE),(VLOOKUP(D5,Legislation!$C$5:$E$17,3,FALSE))))))))","v":0},{"$f":"IFERROR(VLOOKUP(D5,'Data coll & ax'!$C$5:$F$26,4,FALSE),IFERROR(VLOOKUP(D5,'Prev & Ctrl'!$C$5:$F$30,4,FALSE),IFERROR(VLOOKUP(D5,'Lab dx'!$C$5:$F$17,4,FALSE),IFERROR(VLOOKUP(D5,'Dog popn'!$C$5:$F$17,4,FALSE),IFERROR(VLOOKUP(D5,IEC!$C$5:$F$25,4,FALSE),IFERROR(VLOOKUP(D5,'Cross-cutting issues'!$C$5:$F$16,4,FALSE),(VLOOKUP(D5,Legislation!$C$5:$F$17,4,FALSE))))))))","v":"Need to develop case definitions. Priority for the Vet Dept in Zambia"}]
[110,0,"LEG","Is a case definition available that is consistent with the WHO guidelines for human rabies?",null,{"$f":"IFERROR(VLOOKUP(D6,'Data coll & ax'!$C$5:$E$26,3,FALSE),IFERROR(VLOOKUP(D6,'Prev & Ctrl'!$C$5:$E$30,3,FALSE),IFERROR(VLOOKUP(D6,'Lab dx'!$C$5:$E$17,3,FALSE),IFERROR(VLOOKUP(D6,'Dog popn'!$C$5:$E$17,3,FALSE),IFERROR(VLOOKUP(D6,IEC!$C$5:$E$25,3,FALSE),IFERROR(VLOOKUP(D6,'Cross-cutting issues'!$C$5:$E$16,3,FALSE),(VLOOKUP(D6,Legislation!$C$5:$E$17,3,FALSE))))))))","v":1},{"$f":"IFERROR(VLOOKUP(D6,'Data coll & ax'!$C$5:$F$26,4,FALSE),IFERROR(VLOOKUP(D6,'Prev & Ctrl'!$C$5:$F$30,4,FALSE),IFERROR(VLOOKUP(D6,'Lab dx'!$C$5:$F$17,4,FALSE),IFERROR(VLOOKUP(D6,'Dog popn'!$C$5:$F$17,4,FALSE),IFERROR(VLOOKUP(D6,IEC!$C$5:$F$25,4,FALSE),IFERROR(VLOOKUP(D6,'Cross-cutting issues'!$C$5:$F$16,4,FALSE),(VLOOKUP(D6,Legislation!$C$5:$F$17,4,FALSE))))))))","v":"Not sure whether in line with WHO standards"}]
[112,0,"LEG","Does the national authority report at least one confirmed rabies case to the WHO, OIE or PARACON?","KEY",{"$f":"IFERROR(VLOOKUP(D7,'Data coll & ax'!$C$5:$E$26,3,FALSE),IFERROR(VLOOKUP(D7,'Prev & Ctrl'!$C$5:$E$30,3,FALSE),IFERROR(VLOOKUP(D7,'Lab dx'!$C$5:$E$17,3,FALSE),IFERROR(VLOOKUP(D7,'Dog popn'!$C$5:$E$17,3,FALSE),IFERROR(VLOOKUP(D7,IEC!$C$5:$E$25,3,FALSE),IFERROR(VLOOKUP(D7,'Cross-cutting issues'!$C$5:$E$16,3,FALSE),(VLOOKUP(D7,Legislation!$C$5:$E$17,3,FALSE))))))))","v":1},{"$f":"IFERROR(VLOOKUP(D7,'Data coll & ax'!$C$5:$F$26,4,FALSE),IFERROR(VLOOKUP(D7,'Prev & Ctrl'!$C$5:$F$30,4,FALSE),IFERROR(VLOOKUP(D7,'Lab dx'!$C$5:$F$17,4,FALSE),IFERROR(VLOOKUP(D7,'Dog popn'!$C$5:$F$17,4,FALSE),IFERROR(VLOOKUP(D7,IEC!$C$5:$F$25,4,FALSE),IFERROR(VLOOKUP(D7,'Cross-cutting issues'!$C$5:$F$16,4,FALSE),(VLOOKUP(D7,Legislation!$C$5:$F$17,4,FALSE))))))))","v":0}]
[1,1,"DCA","Are dog rabies cases reported from a local to the national level? ","KEY",{"$f":"IFERROR(VLOOKUP(D8,'Data coll & ax'!$C$5:$E$26,3,FALSE),IFERROR(VLOOKUP(D8,'Prev & Ctrl'!$C$5:$E$30,3,FALSE),IFERROR(VLOOKUP(D8,'Lab dx'!$C$5:$E$17,3,FALSE),IFERROR(VLOOKUP(D8,'Dog popn'!$C$5:$E$17,3,FALSE),IFERROR(VLOOKUP(D8,IEC!$C$5:$E$25,3,FALSE),IFERROR(VLOOKUP(D8,'Cross-cutting issues'!$C$5:$E$16,3,FALSE),(VLOOKUP(D8,Legislation!$C$5:$E$17,3,FALSE))))))))","v":1},{"$f":"IFERROR(VLOOKUP(D8,'Data coll & ax'!$C$5:$F$26,4,FALSE),IFERROR(VLOOKUP(D8,'Prev & Ctrl'!$C$5:$F$30,4,FALSE),IFERROR(VLOOKUP(D8,'Lab dx'!$C$5:$F$17,4,FALSE),IFERROR(VLOOKUP(D8,'Dog popn'!$C$5:$F$17,4,FALSE),IFERROR(VLOOKUP(D8,IEC!$C$5:$F$25,4,FALSE),IFERROR(VLOOKUP(D8,'Cross-cutting issues'!$C$5:$F$16,4,FALSE),(VLOOKUP(D8,Legislation!$C$5:$F$17,4,FALSE))))))))","v":0}]
[2,1,"DCA","Are human rabies cases reported from a local to the national level? ","KEY",{"$f":"IFERROR(VLOOKUP(D9,'Data coll & ax'!$C$5:$E$26,3,FALSE),IFERROR(VLOOKUP(D9,'Prev & Ctrl'!$C$5:$E$30,3,FALSE),IFERROR(VLOOKUP(D9,'Lab dx'!$C$5:$E$17,3,FALSE),IFERROR(VLOOKUP(D9,'Dog popn'!$C$5:$E$17,3,FALSE),IFERROR(VLOOKUP(D9,IEC!$C$5:$E$25,3,FALSE),IFERROR(VLOOKUP(D9,'Cross-cutting issues'!$C$5:$E$16,3,FALSE),(VLOOKUP(D9,Legislation!$C$5:$E$17,3,FALSE))))))))","v":1},{"$f":"IFERROR(VLOOKUP(D9,'Data coll & ax'!$C$5:$F$26,4,FALSE),IFERROR(VLOOKUP(D9,'Prev & Ctrl'!$C$5:$F$30,4,FALSE),IFERROR(VLOOKUP(D9,'Lab dx'!$C$5:$F$17,4,FALSE),IFERROR(VLOOKUP(D9,'Dog popn'!$C$5:$F$17,4,FALSE),IFERROR(VLOOKUP(D9,IEC!$C$5:$F$25,4,FALSE),IFERROR(VLOOKUP(D9,'Cross-cutting issues'!$C$5:$F$16,4,FALSE),(VLOOKUP(D9,Legislation!$C$5:$F$17,4,FALSE))))))))","v":0}]
[3,1,"DCA","Are all human or animal rabies testing results being reported to a relevant international database such as WHO, OIE or PARACON?",null,{"$f":"IFERROR(VLOOKUP(D10,'Data coll & ax'!$C$5:$E$26,3,FALSE),IFERROR(VLOOKUP(D10,'Prev & Ctrl'!$C$5:$E$30,3,FALSE),IFERROR(VLOOKUP(D10,'Lab dx'!$C$5:$E$17,3,FALSE),IFERROR(VLOOKUP(D10,'Dog popn'!$C$5:$E$17,3,FALSE),IFERROR(VLOOKUP(D10,IEC!$C$5:$E$25,3,FALSE),IFERROR(VLOOKUP(D10,'Cross-cutting issues'!$C$5:$E$16,3,FALSE),(VLOOKUP(D10,Legislation!$C$5:$E$17,3,FALSE))))))))","v":1},{"$f":"IFERROR(VLOOKUP(D10,'Data coll & ax'!$C$5:$F$26,4,FALSE),IFERROR(VLOOKUP(D10,'Prev & Ctrl'!$C$5:$F$30,4,FALSE),IFERROR(VLOOKUP(D10,'Lab dx'!$C$5:$F$17,4,FALSE),IFERROR(VLOOKUP(D10,'Dog popn'!$C$5:$F$17,4,FALSE),IFERROR(VLOOKUP(D10,IEC!$C$5:$F$25,4,FALSE),IFERROR(VLOOKUP(D10,'Cross-cutting issues'!$C$5:$F$16,4,FALSE),(VLOOKUP(D10,Legislation!$C$5:$F$17,4,FALSE))))))))","v":0}]
[4,1,"DCA","Is there capacity to analyze dog rabies data at the national level? ",null,{"$f":"IFERROR(VLOOKUP(D11,'Data coll & ax'!$C$5:$E$26,3,FALSE),IFERROR(VLOOKUP(D11,'Prev & Ctrl'!$C$5:$E$30,3,FALSE),IFERROR(VLOOKUP(D11,'Lab dx'!$C$5:$E$17,3,FALSE),IFERROR(VLOOKUP(D11,'Dog popn'!$C$5:$E$17,3,FALSE),IFERROR(VLOOKUP(D11,IEC!$C$5:$E$25,3,FALSE),IFERROR(VLOOKUP(D11,'Cross-cutting issues'!$C$5:$E$16,3,FALSE),(VLOOKUP(D11,Legislation!$C$5:$E$17,3,FALSE))))))))","v":1},{"$f":"IFERROR(VLOOKUP(D11,'Data coll & ax'!$C$5:$F$26,4,FALSE),IFERROR(VLOOKUP(D11,'Prev & Ctrl'!$C$5:$F$30,4,FALSE),IFERROR(VLOOKUP(D11,'Lab dx'!$C$5:$F$17,4,FALSE),IFERROR(VLOOKUP(D11,'Dog popn'!$C$5:$F$17,4,FALSE),IFERROR(VLOOKUP(D11,IEC!$C$5:$F$25,4,FALSE),IFERROR(VLOOKUP(D11,'Cross-cutting issues'!$C$5:$F$16,4,FALSE),(VLOOKUP(D11,Legislation!$C$5:$F$17,4,FALSE))))))))","v":0}]
[5,1,"DCA","Is there capacity to analyze human rabies data at the national level? ",null,{"$f":"IFERROR(VLOOKUP(D12,'Data coll & ax'!$C$5:$E$26,3,FALSE),IFERROR(VLOOKUP(D12,'Prev & Ctrl'!$C$5:$E$30,3,FALSE),IFERROR(VLOOKUP(D12,'Lab dx'!$C$5:$E$17,3,FALSE),IFERROR(VLOOKUP(D12,'Dog popn'!$C$5:$E$17,3,FALSE),IFERROR(VLOOKUP(D12,IEC!$C$5:$E$25,3,FALSE),IFERROR(VLOOKUP(D12,'Cross-cutting issues'!$C$5:$E$16,3,FALSE),(VLOOKUP(D12,Legislation!$C$5:$E$17,3,FALSE))))))))","v":1},{"$f":"IFERROR(VLOOKUP(D12,'Data coll & ax'!$C$5:$F$26,4,FALSE),IFERROR(VLOOKUP(D12,'Prev & Ctrl'!$C$5:$F$30,4,FALSE),IFERROR(VLOOKUP(D12,'Lab dx'!$C$5:$F$17,4,FALSE),IFERROR(VLOOKUP(D12,'Dog popn'!$C$5:$F$17,4,FALSE),IFERROR(VLOOKUP(D12,IEC!$C$5:$F$25,4,FALSE),IFERROR(VLOOKUP(D12,'Cross-cutting issues'!$C$5:$F$16,4,FALSE),(VLOOKUP(D12,Legislation!$C$5:$F$17,4,FALSE))))))))","v":0}]
[6,1,"DCA","Has an animal rabies surveillance* system been established at the national level?",null,{"$f":"IFERROR(VLOOKUP(D13,'Data coll & ax'!$C$5:$E$26,3,FALSE),IFERROR(VLOOKUP(D13,'Prev & Ctrl'!$C$5:$E$30,3,FALSE),IFERROR(VLOOKUP(D13,'Lab dx'!$C$5:$E$17,3,FALSE),IFERROR(VLOOKUP(D13,'Dog popn'!$C$5:$E$17,3,FALSE),IFERROR(VLOOKUP(D13,IEC!$C$5:$E$25,3,FALSE),IFERROR(VLOOKUP(D13,'Cross-cutting issues'!$C$5:$E$16,3,FALSE),(VLOOKUP(D13,Legislation!$C$5:$E$17,3,FALSE))))))))","v":1},{"$f":"IFERROR(VLOOKUP(D13,'Data coll & ax'!$C$5:$F$26,4,FALSE),IFERROR(VLOOKUP(D13,'Prev & Ctrl'!$C$5:$F$30,4,FALSE),IFERROR(VLOOKUP(D13,'Lab dx'!$C$5:$F$17,4,FALSE),IFERROR(VLOOKUP(D13,'Dog popn'!$C$5:$F$17,4,FALSE),IFERROR(VLOOKUP(D13,IEC!$C$5:$F$25,4,FALSE),IFERROR(VLOOKUP(D13,'Cross-cutting issues'!$C$5:$F$16,4,FALSE),(VLOOKUP(D13,Legislation!$C$5:$F$17,4,FALSE))))))))","v":0}]
[7,1,"DCA","Has a human rabies surveillance* system been established at the national level?",null,{"$f":"IFERROR(VLOOKUP(D14,'Data coll & ax'!$C$5:$E$26,3,FALSE),IFERROR(VLOOKUP(D14,'Prev & Ctrl'!$C$5:$E$30,3,FALSE),IFERROR(VLOOKUP(D14,'Lab dx'!$C$5:$E$17,3,FALSE),IFERROR(VLOOKUP(D14,'Dog popn'!$C$5:$E$17,3,FALSE),IFERROR(VLOOKUP(D14,IEC!$C$5:$E$25,3,FALSE),IFERROR(VLOOKUP(D14,'Cross-cutting issues'!$C$5:$E$16,3,FALSE),(VLOOKUP(D14,Legislation!$C$5:$E$17,3,FALSE))))))))","v":1},{"$f":"IFERROR(VLOOKUP(D14,'Data coll & ax'!$C$5:$F$26,4,FALSE),IFERROR(VLOOKUP(D14,'Prev & Ctrl'!$C$5:$F$30,4,FALSE),IFERROR(VLOOKUP(D14,'Lab dx'!$C$5:$F$17,4,FALSE),IFERROR(VLOOKUP(D14,'Dog popn'!$C$5:$F$17,4,FALSE),IFERROR(VLOOKUP(D14,IEC!$C$5:$F$25,4,FALSE),IFERROR(VLOOKUP(D14,'Cross-cutting issues'!$C$5:$F$16,4,FALSE),(VLOOKUP(D14,Legislation!$C$5:$F$17,4,FALSE))))))))","v":0}]
[8,1,"DCA","Have reports on the number of humans bitten by dogs been compiled and reviewed?",null,{"$f":"IFERROR(VLOOKUP(D15,'Data coll & ax'!$C$5:$E$26,3,FALSE),IFERROR(VLOOKUP(D15,'Prev & Ctrl'!$C$5:$E$30,3,FALSE),IFERROR(VLOOKUP(D15,'Lab dx'!$C$5:$E$17,3,FALSE),IFERROR(VLOOKUP(D15,'Dog popn'!$C$5:$E$17,3,FALSE),IFERROR(VLOOKUP(D15,IEC!$C$5:$E$25,3,FALSE),IFERROR(VLOOKUP(D15,'Cross-cutting issues'!$C$5:$E$16,3,FALSE),(VLOOKUP(D15,Legislation!$C$5:$E$17,3,FALSE))))))))","v":1},{"$f":"IFERROR(VLOOKUP(D15,'Data coll & ax'!$C$5:$F$26,4,FALSE),IFERROR(VLOOKUP(D15,'Prev & Ctrl'!$C$5:$F$30,4,FALSE),IFERROR(VLOOKUP(D15,'Lab dx'!$C$5:$F$17,4,FALSE),IFERROR(VLOOKUP(D15,'Dog popn'!$C$5:$F$17,4,FALSE),IFERROR(VLOOKUP(D15,IEC!$C$5:$F$25,4,FALSE),IFERROR(VLOOKUP(D15,'Cross-cutting issues'!$C$5:$F$16,4,FALSE),(VLOOKUP(D15,Legislation!$C$5:$F$17,4,FALSE))))))))","v":0}]
[9,1,"DCA","Have dog population studies and KAP surveys been conducted to determine size, turn-over and accessibility of dogs for vaccination on a small scale?",null,{"$f":"IFERROR(VLOOKUP(D16,'Data coll & ax'!$C$5:$E$26,3,FALSE),IFERROR(VLOOKUP(D16,'Prev & Ctrl'!$C$5:$E$30,3,FALSE),IFERROR(VLOOKUP(D16,'Lab dx'!$C$5:$E$17,3,FALSE),IFERROR(VLOOKUP(D16,'Dog popn'!$C$5:$E$17,3,FALSE),IFERROR(VLOOKUP(D16,IEC!$C$5:$E$25,3,FALSE),IFERROR(VLOOKUP(D16,'Cross-cutting issues'!$C$5:$E$16,3,FALSE),(VLOOKUP(D16,Legislation!$C$5:$E$17,3,FALSE))))))))","v":0},{"$f":"IFERROR(VLOOKUP(D16,'Data coll & ax'!$C$5:$F$26,4,FALSE),IFERROR(VLOOKUP(D16,'Prev & Ctrl'!$C$5:$F$30,4,FALSE),IFERROR(VLOOKUP(D16,'Lab dx'!$C$5:$F$17,4,FALSE),IFERROR(VLOOKUP(D16,'Dog popn'!$C$5:$F$17,4,FALSE),IFERROR(VLOOKUP(D16,IEC!$C$5:$F$25,4,FALSE),IFERROR(VLOOKUP(D16,'Cross-cutting issues'!$C$5:$F$16,4,FALSE),(VLOOKUP(D16,Legislation!$C$5:$F$17,4,FALSE))))))))","v":0}]
[23,1,"PCO","Are vaccines for human rabies prophylaxis available in one or more parts of the country?","KEY",{"$f":"IFERROR(VLOOKUP(D17,'Data coll & ax'!$C$5:$E$26,3,FALSE),IFERROR(VLOOKUP(D17,'Prev & Ctrl'!$C$5:$E$30,3,FALSE),IFERROR(VLOOKUP(D17,'Lab dx'!$C$5:$E$17,3,FALSE),IFERROR(VLOOKUP(D17,'Dog popn'!$C$5:$E$17,3,FALSE),IFERROR(VLOOKUP(D17,IEC!$C$5:$E$25,3,FALSE),IFERROR(VLOOKUP(D17,'Cross-cutting issues'!$C$5:$E$16,3,FALSE),(VLOOKUP(D17,Legislation!$C$5:$E$17,3,FALSE))))))))","v":1},{"$f":"IFERROR(VLOOKUP(D17,'Data coll & ax'!$C$5:$F$26,4,FALSE),IFERROR(VLOOKUP(D17,'Prev & Ctrl'!$C$5:$F$30,4,FALSE),IFERROR(VLOOKUP(D17,'Lab dx'!$C$5:$F$17,4,FALSE),IFERROR(VLOOKUP(D17,'Dog popn'!$C$5:$F$17,4,FALSE),IFERROR(VLOOKUP(D17,IEC!$C$5:$F$25,4,FALSE),IFERROR(VLOOKUP(D17,'Cross-cutting issues'!$C$5:$F$16,4,FALSE),(VLOOKUP(D17,Legislation!$C$5:$F$17,4,FALSE))))))))","v":0}]
[24,1,"PCO","Has the supply and access to WHO pre-qualified human rabies vaccines for PrEP for professionals at risk been ensured in local areas?","KEY",{"$f":"IFERROR(VLOOKUP(D18,'Data coll & ax'!$C$5:$E$26,3,FALSE),IFERROR(VLOOKUP(D18,'Prev & Ctrl'!$C$5:$E$30,3,FALSE),IFERROR(VLOOKUP(D18,'Lab dx'!$C$5:$E$17,3,FALSE),IFERROR(VLOOKUP(D18,'Dog popn'!$C$5:$E$17,3,FALSE),IFERROR(VLOOKUP(D18,IEC!$C$5:$E$25,3,FALSE),IFERROR(VLOOKUP(D18,'Cross-cutting issues'!$C$5:$E$16,3,FALSE),(VLOOKUP(D18,Legislation!$C$5:$E$17,3,FALSE))))))))","v":1},{"$f":"IFERROR(VLOOKUP(D18,'Data coll & ax'!$C$5:$F$26,4,FALSE),IFERROR(VLOOKUP(D18,'Prev & Ctrl'!$C$5:$F$30,4,FALSE),IFERROR(VLOOKUP(D18,'Lab dx'!$C$5:$F$17,4,FALSE),IFERROR(VLOOKUP(D18,'Dog popn'!$C$5:$F$17,4,FALSE),IFERROR(VLOOKUP(D18,IEC!$C$5:$F$25,4,FALSE),IFERROR(VLOOKUP(D18,'Cross-cutting issues'!$C$5:$F$16,4,FALSE),(VLOOKUP(D18,Legislation!$C$5:$F$17,4,FALSE))))))))","v":0}]
[30,1,"PCO","Are dog rabies vaccines available in at least one location in the country?","KEY",{"$f":"IFERROR(VLOOKUP(D19,'Data coll & ax'!$C$5:$E$26,3,FALSE),IFERROR(VLOOKUP(D19,'Prev & Ctrl'!$C$5:$E$30,3,FALSE),IFERROR(VLOOKUP(D19,'Lab dx'!$C$5:$E$17,3,FALSE),IFERROR(VLOOKUP(D19,'Dog popn'!$C$5:$E$17,3,FALSE),IFERROR(VLOOKUP(D19,IEC!$C$5:$E$25,3,FALSE),IFERROR(VLOOKUP(D19,'Cross-cutting issues'!$C$5:$E$16,3,FALSE),(VLOOKUP(D19,Legislation!$C$5:$E$17,3,FALSE))))))))","v":1},{"$f":"IFERROR(VLOOKUP(D19,'Data coll & ax'!$C$5:$F$26,4,FALSE),IFERROR(VLOOKUP(D19,'Prev & Ctrl'!$C$5:$F$30,4,FALSE),IFERROR(VLOOKUP(D19,'Lab dx'!$C$5:$F$17,4,FALSE),IFERROR(VLOOKUP(D19,'Dog popn'!$C$5:$F$17,4,FALSE),IFERROR(VLOOKUP(D19,IEC!$C$5:$F$25,4,FALSE),IFERROR(VLOOKUP(D19,'Cross-cutting issues'!$C$5:$F$16,4,FALSE),(VLOOKUP(D19,Legislation!$C$5:$F$17,4,FALSE))))))))","v":0}]
[31,1,"PCO","Has dog vaccination been initiated in some parts of the country? ",null,{"$f":"IFERROR(VLOOKUP(D20,'Data coll & ax'!$C$5:$E$26,3,FALSE),IFERROR(VLOOKUP(D20,'Prev & Ctrl'!$C$5:$E$30,3,FALSE),IFERROR(VLOOKUP(D20,'Lab dx'!$C$5:$E$17,3,FALSE),IFERROR(VLOOKUP(D20,'Dog popn'!$C$5:$E$17,3,FALSE),IFERROR(VLOOKUP(D20,IEC!$C$5:$E$25,3,FALSE),IFERROR(VLOOKUP(D20,'Cross-cutting issues'!$C$5:$E$16,3,FALSE),(VLOOKUP(D20,Legislation!$C$5:$E$17,3,FALSE))))))))","v":1},{"$f":"IFERROR(VLOOKUP(D20,'Data coll & ax'!$C$5:$F$26,4,FALSE),IFERROR(VLOOKUP(D20,'Prev & Ctrl'!$C$5:$F$30,4,FALSE),IFERROR(VLOOKUP(D20,'Lab dx'!$C$5:$F$17,4,FALSE),IFERROR(VLOOKUP(D20,'Dog popn'!$C$5:$F$17,4,FALSE),IFERROR(VLOOKUP(D20,IEC!$C$5:$F$25,4,FALSE),IFERROR(VLOOKUP(D20,'Cross-cutting issues'!$C$5:$F$16,4,FALSE),(VLOOKUP(D20,Legislation!$C$5:$F$17,4,FALSE))))))))","v":0}]
[38,1,"PCO","Has Integrated Bite Case Management (IBCM)* been implemented at a local level? ",null,{"$f":"IFERROR(VLOOKUP(D21,'Data coll & ax'!$C$5:$E$26,3,FALSE),IFERROR(VLOOKUP(D21,'Prev & Ctrl'!$C$5:$E$30,3,FALSE),IFERROR(VLOOKUP(D21,'Lab dx'!$C$5:$E$17,3,FALSE),IFERROR(VLOOKUP(D21,'Dog popn'!$C$5:$E$17,3,FALSE),IFERROR(VLOOKUP(D21,IEC!$C$5:$E$25,3,FALSE),IFERROR(VLOOKUP(D21,'Cross-cutting issues'!$C$5:$E$16,3,FALSE),(VLOOKUP(D21,Legislation!$C$5:$E$17,3,FALSE))))))))","v":1},{"$f":"IFERROR(VLOOKUP(D21,'Data coll & ax'!$C$5:$F$26,4,FALSE),IFERROR(VLOOKUP(D21,'Prev & Ctrl'!$C$5:$F$30,4,FALSE),IFERROR(VLOOKUP(D21,'Lab dx'!$C$5:$F$17,4,FALSE),IFERROR(VLOOKUP(D21,'Dog popn'!$C$5:$F$17,4,FALSE),IFERROR(VLOOKUP(D21,IEC!$C$5:$F$25,4,FALSE),IFERROR(VLOOKUP(D21,'Cross-cutting issues'!$C$5:$F$16,4,FALSE),(VLOOKUP(D21,Legislation!$C$5:$F$17,4,FALSE))))))))","v":0}]
[39,1,"PCO","Have Standard Operating Procedures (SOPs) for coordinated action on reported outbreaks* been established?",null,{"$f":"IFERROR(VLOOKUP(D22,'Data coll & ax'!$C$5:$E$26,3,FALSE),IFERROR(VLOOKUP(D22,'Prev & Ctrl'!$C$5:$E$30,3,FALSE),IFERROR(VLOOKUP(D22,'Lab dx'!$C$5:$E$17,3,FALSE),IFERROR(VLOOKUP(D22,'Dog popn'!$C$5:$E$17,3,FALSE),IFERROR(VLOOKUP(D22,IEC!$C$5:$E$25,3,FALSE),IFERROR(VLOOKUP(D22,'Cross-cutting issues'!$C$5:$E$16,3,FALSE),(VLOOKUP(D22,Legislation!$C$5:$E$17,3,FALSE))))))))","v":1},{"$f":"IFERROR(VLOOKUP(D22,'Data coll & ax'!$C$5:$F$26,4,FALSE),IFERROR(VLOOKUP(D22,'Prev & Ctrl'!$C$5:$F$30,4,FALSE),IFERROR(VLOOKUP(D22,'Lab dx'!$C$5:$F$17,4,FALSE),IFERROR(VLOOKUP(D22,'Dog popn'!$C$5:$F$17,4,FALSE),IFERROR(VLOOKUP(D22,IEC!$C$5:$F$25,4,FALSE),IFERROR(VLOOKUP(D22,'Cross-cutting issues'!$C$5:$F$16,4,FALSE),(VLOOKUP(D22,Legislation!$C$5:$F$17,4,FALSE))))))))","v":0}]
[51,1,"LAB","Is there capacity to conduct rabies diagnosis in at least one national laboratory (veterinary or medical laboratory)?","KEY",{"$f":"IFERROR(VLOOKUP(D23,'Data coll & ax'!$C$5:$E$26,3,FALSE),IFERROR(VLOOKUP(D23,'Prev & Ctrl'!$C$5:$E$30,3,FALSE),IFERROR(VLOOKUP(D23,'Lab dx'!$C$5:$E$17,3,FALSE),IFERROR(VLOOKUP(D23,'Dog popn'!$C$5:$E$17,3,FALSE),IFERROR(VLOOKUP(D23,IEC!$C$5:$E$25,3,FALSE),IFERROR(VLOOKUP(D23,'Cross-cutting issues'!$C$5:$E$16,3,FALSE),(VLOOKUP(D23,Legislation!$C$5:$E$17,3,FALSE))))))))","v":1},{"$f":"IFERROR(VLOOKUP(D23,'Data coll & ax'!$C$5:$F$26,4,FALSE),IFERROR(VLOOKUP(D23,'Prev & Ctrl'!$C$5:$F$30,4,FALSE),IFERROR(VLOOKUP(D23,'Lab dx'!$C$5:$F$17,4,FALSE),IFERROR(VLOOKUP(D23,'Dog popn'!$C$5:$F$17,4,FALSE),IFERROR(VLOOKUP(D23,IEC!$C$5:$F$25,4,FALSE),IFERROR(VLOOKUP(D23,'Cross-cutting issues'!$C$5:$F$16,4,FALSE),(VLOOKUP(D23,Legislation!$C$5:$F$17,4,FALSE))))))))","v":0}]
[52,1,"LAB","Have several rabies suspect samples of animals or humans been submitted to a national laboratory and analysed? ",null,{"$f":"IFERROR(VLOOKUP(D24,'Data coll & ax'!$C$5:$E$26,3,FALSE),IFERROR(VLOOKUP(D24,'Prev & Ctrl'!$C$5:$E$30,3,FALSE),IFERROR(VLOOKUP(D24,'Lab dx'!$C$5:$E$17,3,FALSE),IFERROR(VLOOKUP(D24,'Dog popn'!$C$5:$E$17,3,FALSE),IFERROR(VLOOKUP(D24,IEC!$C$5:$E$25,3,FALSE),IFERROR(VLOOKUP(D24,'Cross-cutting issues'!$C$5:$E$16,3,FALSE),(VLOOKUP(D24,Legislation!$C$5:$E$17,3,FALSE))))))))","v":1},{"$f":"IFERROR(VLOOKUP(D24,'Data coll & ax'!$C$5:$F$26,4,FALSE),IFERROR(VLOOKUP(D24,'Prev & Ctrl'!$C$5:$F$30,4,FALSE),IFERROR(VLOOKUP(D24,'Lab dx'!$C$5:$F$17,4,FALSE),IFERROR(VLOOKUP(D24,'Dog popn'!$C$5:$F$17,4,FALSE),IFERROR(VLOOKUP(D24,IEC!$C$5:$F$25,4,FALSE),IFERROR(VLOOKUP(D24,'Cross-cutting issues'!$C$5:$F$16,4,FALSE),(VLOOKUP(D24,Legislation!$C$5:$F$17,4,FALSE))))))))","v":"CVRI (FAT, PCR) UNZAVET SCHOOL (FAT,PCR, HISTOPATHOLOGY) UTH (HISTOPATHOLOGY)"}]
[53,1,"LAB","Is animal rabies diagnosis conducted in at least one national laboratory?",null,{"$f":"IFERROR(VLOOKUP(D25,'Data coll & ax'!$C$5:$E$26,3,FALSE),IFERROR(VLOOKUP(D25,'Prev & Ctrl'!$C$5:$E$30,3,FALSE),IFERROR(VLOOKUP(D25,'Lab dx'!$C$5:$E$17,3,FALSE),IFERROR(VLOOKUP(D25,'Dog popn'!$C$5:$E$17,3,FALSE),IFERROR(VLOOKUP(D25,IEC!$C$5:$E$25,3,FALSE),IFERROR(VLOOKUP(D25,'Cross-cutting issues'!$C$5:$E$16,3,FALSE),(VLOOKUP(D25,Legislation!$C$5:$E$17,3,FALSE))))))))","v":1},{"$f":"IFERROR(VLOOKUP(D25,'Data coll & ax'!$C$5:$F$26,4,FALSE),IFERROR(VLOOKUP(D25,'Prev & Ctrl'!$C$5:$F$30,4,FALSE),IFERROR(VLOOKUP(D25,'Lab dx'!$C$5:$F$17,4,FALSE),IFERROR(VLOOKUP(D25,'Dog popn'!$C$5:$F$17,4,FALSE),IFERROR(VLOOKUP(D25,IEC!$C$5:$F$25,4,FALSE),IFERROR(VLOOKUP(D25,'Cross-cutting issues'!$C$5:$F$16,4,FALSE),(VLOOKUP(D25,Legislation!$C$5:$F$17,4,FALSE))))))))","v":0}]
[54,1,"LAB","Are rabies suspect samples of animals or humans submitted twice yearly to an international laboratory and analysed?",null,{"$f":"IFERROR(VLOOKUP(D26,'Data coll & ax'!$C$5:$E$26,3,FALSE),IFERROR(VLOOKUP(D26,'Prev & Ctrl'!$C$5:$E$30,3,FALSE),IFERROR(VLOOKUP(D26,'Lab dx'!$C$5:$E$17,3,FALSE),IFERROR(VLOOKUP(D26,'Dog popn'!$C$5:$E$17,3,FALSE),IFERROR(VLOOKUP(D26,IEC!$C$5:$E$25,3,FALSE),IFERROR(VLOOKUP(D26,'Cross-cutting issues'!$C$5:$E$16,3,FALSE),(VLOOKUP(D26,Legislation!$C$5:$E$17,3,FALSE))))))))","v":0},{"$f":"IFERROR(VLOOKUP(D26,'Data coll & ax'!$C$5:$F$26,4,FALSE),IFERROR(VLOOKUP(D26,'Prev & Ctrl'!$C$5:$F$30,4,FALSE),IFERROR(VLOOKUP(D26,'Lab dx'!$C$5:$F$17,4,FALSE),IFERROR(VLOOKUP(D26,'Dog popn'!$C$5:$F$17,4,FALSE),IFERROR(VLOOKUP(D26,IEC!$C$5:$F$25,4,FALSE),IFERROR(VLOOKUP(D26,'Cross-cutting issues'!$C$5:$F$16,4,FALSE),(VLOOKUP(D26,Legislation!$C$5:$F$17,4,FALSE))))))))","v":0}]
[62,1,"DPM","Have discussions been held with stakeholders to create a dog population management strategy at a local level?",null,{"$f":"IFERROR(VLOOKUP(D27,'Data coll & ax'!$C$5:$E$26,3,FALSE),IFERROR(VLOOKUP(D27,'Prev & Ctrl'!$C$5:$E$30,3,FALSE),IFERROR(VLOOKUP(D27,'Lab dx'!$C$5:$E$17,3,FALSE),IFERROR(VLOOKUP(D27,'Dog popn'!$C$5:$E$17,3,FALSE),IFERROR(VLOOKUP(D27,IEC!$C$5:$E$25,3,FALSE),IFERROR(VLOOKUP(D27,'Cross-cutting issues'!$C$5:$E$16,3,FALSE),(VLOOKUP(D27,Legislation!$C$5:$E$17,3,FALSE))))))))","v":1},{"$f":"IFERROR(VLOOKUP(D27,'Data coll & ax'!$C$5:$F$26,4,FALSE),IFERROR(VLOOKUP(D27,'Prev & Ctrl'!$C$5:$F$30,4,FALSE),IFERROR(VLOOKUP(D27,'Lab dx'!$C$5:$F$17,4,FALSE),IFERROR(VLOOKUP(D27,'Dog popn'!$C$5:$F$17,4,FALSE),IFERROR(VLOOKUP(D27,IEC!$C$5:$F$25,4,FALSE),IFERROR(VLOOKUP(D27,'Cross-cutting issues'!$C$5:$F$16,4,FALSE),(VLOOKUP(D27,Legislation!$C$5:$F$17,4,FALSE))))))))","v":"Local taskforces are organised in every district"}]
[63,1,"DPM","Have you involved officials in waste management in your stakeholder meetings",null,{"$f":"IFERROR(VLOOKUP(D28,'Data coll & ax'!$C$5:$E$26,3,FALSE),IFERROR(VLOOKUP(D28,'Prev & Ctrl'!$C$5:$E$30,3,FALSE),IFERROR(VLOOKUP(D28,'Lab dx'!$C$5:$E$17,3,FALSE),IFERROR(VLOOKUP(D28,'Dog popn'!$C$5:$E$17,3,FALSE),IFERROR(VLOOKUP(D28,IEC!$C$5:$E$25,3,FALSE),IFERROR(VLOOKUP(D28,'Cross-cutting issues'!$C$5:$E$16,3,FALSE),(VLOOKUP(D28,Legislation!$C$5:$E$17,3,FALSE))))))))","v":1},{"$f":"IFERROR(VLOOKUP(D28,'Data coll & ax'!$C$5:$F$26,4,FALSE),IFERROR(VLOOKUP(D28,'Prev & Ctrl'!$C$5:$F$30,4,FALSE),IFERROR(VLOOKUP(D28,'Lab dx'!$C$5:$F$17,4,FALSE),IFERROR(VLOOKUP(D28,'Dog popn'!$C$5:$F$17,4,FALSE),IFERROR(VLOOKUP(D28,IEC!$C$5:$F$25,4,FALSE),IFERROR(VLOOKUP(D28,'Cross-cutting issues'!$C$5:$F$16,4,FALSE),(VLOOKUP(D28,Legislation!$C$5:$F$17,4,FALSE))))))))","v":"Focal point person from local govt is involved"}]
[75,1,"IEC","Has an assessment been done to determine what message should be communicated to the target audience at a local level?",null,{"$f":"IFERROR(VLOOKUP(D29,'Data coll & ax'!$C$5:$E$26,3,FALSE),IFERROR(VLOOKUP(D29,'Prev & Ctrl'!$C$5:$E$30,3,FALSE),IFERROR(VLOOKUP(D29,'Lab dx'!$C$5:$E$17,3,FALSE),IFERROR(VLOOKUP(D29,'Dog popn'!$C$5:$E$17,3,FALSE),IFERROR(VLOOKUP(D29,IEC!$C$5:$E$25,3,FALSE),IFERROR(VLOOKUP(D29,'Cross-cutting issues'!$C$5:$E$16,3,FALSE),(VLOOKUP(D29,Legislation!$C$5:$E$17,3,FALSE))))))))","v":1},{"$f":"IFERROR(VLOOKUP(D29,'Data coll & ax'!$C$5:$F$26,4,FALSE),IFERROR(VLOOKUP(D29,'Prev & Ctrl'!$C$5:$F$30,4,FALSE),IFERROR(VLOOKUP(D29,'Lab dx'!$C$5:$F$17,4,FALSE),IFERROR(VLOOKUP(D29,'Dog popn'!$C$5:$F$17,4,FALSE),IFERROR(VLOOKUP(D29,IEC!$C$5:$F$25,4,FALSE),IFERROR(VLOOKUP(D29,'Cross-cutting issues'!$C$5:$F$16,4,FALSE),(VLOOKUP(D29,Legislation!$C$5:$F$17,4,FALSE))))))))","v":0}]
[76,1,"IEC","Have the target audiences been identified at a local level (e.g. at-risk communities, dog owners, children)?",null,{"$f":"IFERROR(VLOOKUP(D30,'Data coll & ax'!$C$5:$E$26,3,FALSE),IFERROR(VLOOKUP(D30,'Prev & Ctrl'!$C$5:$E$30,3,FALSE),IFERROR(VLOOKUP(D30,'Lab dx'!$C$5:$E$17,3,FALSE),IFERROR(VLOOKUP(D30,'Dog popn'!$C$5:$E$17,3,FALSE),IFERROR(VLOOKUP(D30,IEC!$C$5:$E$25,3,FALSE),IFERROR(VLOOKUP(D30,'Cross-cutting issues'!$C$5:$E$16,3,FALSE),(VLOOKUP(D30,Legislation!$C$5:$E$17,3,FALSE))))))))","v":1},{"$f":"IFERROR(VLOOKUP(D30,'Data coll & ax'!$C$5:$F$26,4,FALSE),IFERROR(VLOOKUP(D30,'Prev & Ctrl'!$C$5:$F$30,4,FALSE),IFERROR(VLOOKUP(D30,'Lab dx'!$C$5:$F$17,4,FALSE),IFERROR(VLOOKUP(D30,'Dog popn'!$C$5:$F$17,4,FALSE),IFERROR(VLOOKUP(D30,IEC!$C$5:$F$25,4,FALSE),IFERROR(VLOOKUP(D30,'Cross-cutting issues'!$C$5:$F$16,4,FALSE),(VLOOKUP(D30,Legislation!$C$5:$F$17,4,FALSE))))))))","v":0}]
[77,1,"IEC","Has an IEC plan* been developed and implemented on a small scale?","KEY",{"$f":"IFERROR(VLOOKUP(D31,'Data coll & ax'!$C$5:$E$26,3,FALSE),IFERROR(VLOOKUP(D31,'Prev & Ctrl'!$C$5:$E$30,3,FALSE),IFERROR(VLOOKUP(D31,'Lab dx'!$C$5:$E$17,3,FALSE),IFERROR(VLOOKUP(D31,'Dog popn'!$C$5:$E$17,3,FALSE),IFERROR(VLOOKUP(D31,IEC!$C$5:$E$25,3,FALSE),IFERROR(VLOOKUP(D31,'Cross-cutting issues'!$C$5:$E$16,3,FALSE),(VLOOKUP(D31,Legislation!$C$5:$E$17,3,FALSE))))))))","v":0},{"$f":"IFERROR(VLOOKUP(D31,'Data coll & ax'!$C$5:$F$26,4,FALSE),IFERROR(VLOOKUP(D31,'Prev & Ctrl'!$C$5:$F$30,4,FALSE),IFERROR(VLOOKUP(D31,'Lab dx'!$C$5:$F$17,4,FALSE),IFERROR(VLOOKUP(D31,'Dog popn'!$C$5:$F$17,4,FALSE),IFERROR(VLOOKUP(D31,IEC!$C$5:$F$25,4,FALSE),IFERROR(VLOOKUP(D31,'Cross-cutting issues'!$C$5:$F$16,4,FALSE),(VLOOKUP(D31,Legislation!$C$5:$F$17,4,FALSE))))))))","v":"Main messages disseminated on adhoc basis. NO IEC plan in palce"}]
[78,1,"IEC","Has broad public awareness messaging started at a national level?",null,{"$f":"IFERROR(VLOOKUP(D32,'Data coll & ax'!$C$5:$E$26,3,FALSE),IFERROR(VLOOKUP(D32,'Prev & Ctrl'!$C$5:$E$30,3,FALSE),IFERROR(VLOOKUP(D32,'Lab dx'!$C$5:$E$17,3,FALSE),IFERROR(VLOOKUP(D32,'Dog popn'!$C$5:$E$17,3,FALSE),IFERROR(VLOOKUP(D32,IEC!$C$5:$E$25,3,FALSE),IFERROR(VLOOKUP(D32,'Cross-cutting issues'!$C$5:$E$16,3,FALSE),(VLOOKUP(D32,Legislation!$C$5:$E$17,3,FALSE))))))))","v":1},{"$f":"IFERROR(VLOOKUP(D32,'Data coll & ax'!$C$5:$F$26,4,FALSE),IFERROR(VLOOKUP(D32,'Prev & Ctrl'!$C$5:$F$30,4,FALSE),IFERROR(VLOOKUP(D32,'Lab dx'!$C$5:$F$17,4,FALSE),IFERROR(VLOOKUP(D32,'Dog popn'!$C$5:$F$17,4,FALSE),IFERROR(VLOOKUP(D32,IEC!$C$5:$F$25,4,FALSE),IFERROR(VLOOKUP(D32,'Cross-cutting issues'!$C$5:$F$16,4,FALSE),(VLOOKUP(D32,Legislation!$C$5:$F$17,4,FALSE))))))))","v":"Through TV and Radio programmes on world rabies day annually. VAZ also carries out broad public awarenes through distribution of print materials during AGM"}]
[83,1,"IEC","Has an assessment been undertaken to determine the training needs of the professionals at a local level? ",null,{"$f":"IFERROR(VLOOKUP(D33,'Data coll & ax'!$C$5:$E$26,3,FALSE),IFERROR(VLOOKUP(D33,'Prev & Ctrl'!$C$5:$E$30,3,FALSE),IFERROR(VLOOKUP(D33,'Lab dx'!$C$5:$E$17,3,FALSE),IFERROR(VLOOKUP(D33,'Dog popn'!$C$5:$E$17,3,FALSE),IFERROR(VLOOKUP(D33,IEC!$C$5:$E$25,3,FALSE),IFERROR(VLOOKUP(D33,'Cross-cutting issues'!$C$5:$E$16,3,FALSE),(VLOOKUP(D33,Legislation!$C$5:$E$17,3,FALSE))))))))","v":1},{"$f":"IFERROR(VLOOKUP(D33,'Data coll & ax'!$C$5:$F$26,4,FALSE),IFERROR(VLOOKUP(D33,'Prev & Ctrl'!$C$5:$F$30,4,FALSE),IFERROR(VLOOKUP(D33,'Lab dx'!$C$5:$F$17,4,FALSE),IFERROR(VLOOKUP(D33,'Dog popn'!$C$5:$F$17,4,FALSE),IFERROR(VLOOKUP(D33,IEC!$C$5:$F$25,4,FALSE),IFERROR(VLOOKUP(D33,'Cross-cutting issues'!$C$5:$F$16,4,FALSE),(VLOOKUP(D33,Legislation!$C$5:$F$17,4,FALSE))))))))","v":"Training needs though not focused on Rabies prevention and control are available"}]
[84,1,"IEC","Have human and animal health professionals involved in rabies control been identified at a local level?",null,{"$f":"IFERROR(VLOOKUP(D34,'Data coll & ax'!$C$5:$E$26,3,FALSE),IFERROR(VLOOKUP(D34,'Prev & Ctrl'!$C$5:$E$30,3,FALSE),IFERROR(VLOOKUP(D34,'Lab dx'!$C$5:$E$17,3,FALSE),IFERROR(VLOOKUP(D34,'Dog popn'!$C$5:$E$17,3,FALSE),IFERROR(VLOOKUP(D34,IEC!$C$5:$E$25,3,FALSE),IFERROR(VLOOKUP(D34,'Cross-cutting issues'!$C$5:$E$16,3,FALSE),(VLOOKUP(D34,Legislation!$C$5:$E$17,3,FALSE))))))))","v":1},{"$f":"IFERROR(VLOOKUP(D34,'Data coll & ax'!$C$5:$F$26,4,FALSE),IFERROR(VLOOKUP(D34,'Prev & Ctrl'!$C$5:$F$30,4,FALSE),IFERROR(VLOOKUP(D34,'Lab dx'!$C$5:$F$17,4,FALSE),IFERROR(VLOOKUP(D34,'Dog popn'!$C$5:$F$17,4,FALSE),IFERROR(VLOOKUP(D34,IEC!$C$5:$F$25,4,FALSE),IFERROR(VLOOKUP(D34,'Cross-cutting issues'!$C$5:$F$16,4,FALSE),(VLOOKUP(D34,Legislation!$C$5:$F$17,4,FALSE))))))))","v":0}]
[85,1,"IEC","Has a training plan been developed at a local level?",null,{"$f":"IFERROR(VLOOKUP(D35,'Data coll & ax'!$C$5:$E$26,3,FALSE),IFERROR(VLOOKUP(D35,'Prev & Ctrl'!$C$5:$E$30,3,FALSE),IFERROR(VLOOKUP(D35,'Lab dx'!$C$5:$E$17,3,FALSE),IFERROR(VLOOKUP(D35,'Dog popn'!$C$5:$E$17,3,FALSE),IFERROR(VLOOKUP(D35,IEC!$C$5:$E$25,3,FALSE),IFERROR(VLOOKUP(D35,'Cross-cutting issues'!$C$5:$E$16,3,FALSE),(VLOOKUP(D35,Legislation!$C$5:$E$17,3,FALSE))))))))","v":1},{"$f":"IFERROR(VLOOKUP(D35,'Data coll & ax'!$C$5:$F$26,4,FALSE),IFERROR(VLOOKUP(D35,'Prev & Ctrl'!$C$5:$F$30,4,FALSE),IFERROR(VLOOKUP(D35,'Lab dx'!$C$5:$F$17,4,FALSE),IFERROR(VLOOKUP(D35,'Dog popn'!$C$5:$F$17,4,FALSE),IFERROR(VLOOKUP(D35,IEC!$C$5:$F$25,4,FALSE),IFERROR(VLOOKUP(D35,'Cross-cutting issues'!$C$5:$F$16,4,FALSE),(VLOOKUP(D35,Legislation!$C$5:$F$17,4,FALSE))))))))","v":"Implemented but not specific for Rabies"}]
[86,1,"IEC","Have training or refresher courses on rabies and public communication been initiated for professionals in human and animal health at a local level?",null,{"$f":"IFERROR(VLOOKUP(D36,'Data coll & ax'!$C$5:$E$26,3,FALSE),IFERROR(VLOOKUP(D36,'Prev & Ctrl'!$C$5:$E$30,3,FALSE),IFERROR(VLOOKUP(D36,'Lab dx'!$C$5:$E$17,3,FALSE),IFERROR(VLOOKUP(D36,'Dog popn'!$C$5:$E$17,3,FALSE),IFERROR(VLOOKUP(D36,IEC!$C$5:$E$25,3,FALSE),IFERROR(VLOOKUP(D36,'Cross-cutting issues'!$C$5:$E$16,3,FALSE),(VLOOKUP(D36,Legislation!$C$5:$E$17,3,FALSE))))))))","v":1},{"$f":"IFERROR(VLOOKUP(D36,'Data coll & ax'!$C$5:$F$26,4,FALSE),IFERROR(VLOOKUP(D36,'Prev & Ctrl'!$C$5:$F$30,4,FALSE),IFERROR(VLOOKUP(D36,'Lab dx'!$C$5:$F$17,4,FALSE),IFERROR(VLOOKUP(D36,'Dog popn'!$C$5:$F$17,4,FALSE),IFERROR(VLOOKUP(D36,IEC!$C$5:$F$25,4,FALSE),IFERROR(VLOOKUP(D36,'Cross-cutting issues'!$C$5:$F$16,4,FALSE),(VLOOKUP(D36,Legislation!$C$5:$F$17,4,FALSE))))))))","v":"Done adhoc basis"}]
[88,1,"IEC","Has an advocacy stakeholder analysis* been done at a local level and target audiences been identified?",null,{"$f":"IFERROR(VLOOKUP(D37,'Data coll & ax'!$C$5:$E$26,3,FALSE),IFERROR(VLOOKUP(D37,'Prev & Ctrl'!$C$5:$E$30,3,FALSE),IFERROR(VLOOKUP(D37,'Lab dx'!$C$5:$E$17,3,FALSE),IFERROR(VLOOKUP(D37,'Dog popn'!$C$5:$E$17,3,FALSE),IFERROR(VLOOKUP(D37,IEC!$C$5:$E$25,3,FALSE),IFERROR(VLOOKUP(D37,'Cross-cutting issues'!$C$5:$E$16,3,FALSE),(VLOOKUP(D37,Legislation!$C$5:$E$17,3,FALSE))))))))","v":1},{"$f":"IFERROR(VLOOKUP(D37,'Data coll & ax'!$C$5:$F$26,4,FALSE),IFERROR(VLOOKUP(D37,'Prev & Ctrl'!$C$5:$F$30,4,FALSE),IFERROR(VLOOKUP(D37,'Lab dx'!$C$5:$F$17,4,FALSE),IFERROR(VLOOKUP(D37,'Dog popn'!$C$5:$F$17,4,FALSE),IFERROR(VLOOKUP(D37,IEC!$C$5:$F$25,4,FALSE),IFERROR(VLOOKUP(D37,'Cross-cutting issues'!$C$5:$F$16,4,FALSE),(VLOOKUP(D37,Legislation!$C$5:$F$17,4,FALSE))))))))","v":"Rabies advocay is neglected compared to FMD"}]
[89,1,"IEC","Has an advocacy plan* been developed and implemented at a local level?",null,{"$f":"IFERROR(VLOOKUP(D38,'Data coll & ax'!$C$5:$E$26,3,FALSE),IFERROR(VLOOKUP(D38,'Prev & Ctrl'!$C$5:$E$30,3,FALSE),IFERROR(VLOOKUP(D38,'Lab dx'!$C$5:$E$17,3,FALSE),IFERROR(VLOOKUP(D38,'Dog popn'!$C$5:$E$17,3,FALSE),IFERROR(VLOOKUP(D38,IEC!$C$5:$E$25,3,FALSE),IFERROR(VLOOKUP(D38,'Cross-cutting issues'!$C$5:$E$16,3,FALSE),(VLOOKUP(D38,Legislation!$C$5:$E$17,3,FALSE))))))))","v":0},{"$f":"IFERROR(VLOOKUP(D38,'Data coll & ax'!$C$5:$F$26,4,FALSE),IFERROR(VLOOKUP(D38,'Prev & Ctrl'!$C$5:$F$30,4,FALSE),IFERROR(VLOOKUP(D38,'Lab dx'!$C$5:$F$17,4,FALSE),IFERROR(VLOOKUP(D38,'Dog popn'!$C$5:$F$17,4,FALSE),IFERROR(VLOOKUP(D38,IEC!$C$5:$F$25,4,FALSE),IFERROR(VLOOKUP(D38,'Cross-cutting issues'!$C$5:$F$16,4,FALSE),(VLOOKUP(D38,Legislation!$C$5:$F$17,4,FALSE))))))))","v":"need to develop advocacy plans at all levels"}]
[97,1,"CCI","Have the main national stakeholders in rabies prevention and control been identified?",null,{"$f":"IFERROR(VLOOKUP(D39,'Data coll & ax'!$C$5:$E$26,3,FALSE),IFERROR(VLOOKUP(D39,'Prev & Ctrl'!$C$5:$E$30,3,FALSE),IFERROR(VLOOKUP(D39,'Lab dx'!$C$5:$E$17,3,FALSE),IFERROR(VLOOKUP(D39,'Dog popn'!$C$5:$E$17,3,FALSE),IFERROR(VLOOKUP(D39,IEC!$C$5:$E$25,3,FALSE),IFERROR(VLOOKUP(D39,'Cross-cutting issues'!$C$5:$E$16,3,FALSE),(VLOOKUP(D39,Legislation!$C$5:$E$17,3,FALSE))))))))","v":1},{"$f":"IFERROR(VLOOKUP(D39,'Data coll & ax'!$C$5:$F$26,4,FALSE),IFERROR(VLOOKUP(D39,'Prev & Ctrl'!$C$5:$F$30,4,FALSE),IFERROR(VLOOKUP(D39,'Lab dx'!$C$5:$F$17,4,FALSE),IFERROR(VLOOKUP(D39,'Dog popn'!$C$5:$F$17,4,FALSE),IFERROR(VLOOKUP(D39,IEC!$C$5:$F$25,4,FALSE),IFERROR(VLOOKUP(D39,'Cross-cutting issues'!$C$5:$F$16,4,FALSE),(VLOOKUP(D39,Legislation!$C$5:$F$17,4,FALSE))))))))","v":"Ministry of Fisheries & Livestock, MOH, MLGH, MHA, Academia"}]
[98,1,"CCI","Have stakeholder consultations been held within the last 3 years at the national level?",null,{"$f":"IFERROR(VLOOKUP(D40,'Data coll & ax'!$C$5:$E$26,3,FALSE),IFERROR(VLOOKUP(D40,'Prev & Ctrl'!$C$5:$E$30,3,FALSE),IFERROR(VLOOKUP(D40,'Lab dx'!$C$5:$E$17,3,FALSE),IFERROR(VLOOKUP(D40,'Dog popn'!$C$5:$E$17,3,FALSE),IFERROR(VLOOKUP(D40,IEC!$C$5:$E$25,3,FALSE),IFERROR(VLOOKUP(D40,'Cross-cutting issues'!$C$5:$E$16,3,FALSE),(VLOOKUP(D40,Legislation!$C$5:$E$17,3,FALSE))))))))","v":0},{"$f":"IFERROR(VLOOKUP(D40,'Data coll & ax'!$C$5:$F$26,4,FALSE),IFERROR(VLOOKUP(D40,'Prev & Ctrl'!$C$5:$F$30,4,FALSE),IFERROR(VLOOKUP(D40,'Lab dx'!$C$5:$F$17,4,FALSE),IFERROR(VLOOKUP(D40,'Dog popn'!$C$5:$F$17,4,FALSE),IFERROR(VLOOKUP(D40,IEC!$C$5:$F$25,4,FALSE),IFERROR(VLOOKUP(D40,'Cross-cutting issues'!$C$5:$F$16,4,FALSE),(VLOOKUP(D40,Legislation!$C$5:$F$17,4,FALSE))))))))","v":"Not specific for rabies but zoonotic diseases in general"}]
[99,1,"CCI","Has an intersectoral rabies task force, committee or working group been established at a local or national level and do they meet at least twice a year?","KEY",{"$f":"IFERROR(VLOOKUP(D41,'Data coll & ax'!$C$5:$E$26,3,FALSE),IFERROR(VLOOKUP(D41,'Prev & Ctrl'!$C$5:$E$30,3,FALSE),IFERROR(VLOOKUP(D41,'Lab dx'!$C$5:$E$17,3,FALSE),IFERROR(VLOOKUP(D41,'Dog popn'!$C$5:$E$17,3,FALSE),IFERROR(VLOOKUP(D41,IEC!$C$5:$E$25,3,FALSE),IFERROR(VLOOKUP(D41,'Cross-cutting issues'!$C$5:$E$16,3,FALSE),(VLOOKUP(D41,Legislation!$C$5:$E$17,3,FALSE))))))))","v":0},{"$f":"IFERROR(VLOOKUP(D41,'Data coll & ax'!$C$5:$F$26,4,FALSE),IFERROR(VLOOKUP(D41,'Prev & Ctrl'!$C$5:$F$30,4,FALSE),IFERROR(VLOOKUP(D41,'Lab dx'!$C$5:$F$17,4,FALSE),IFERROR(VLOOKUP(D41,'Dog popn'!$C$5:$F$17,4,FALSE),IFERROR(VLOOKUP(D41,IEC!$C$5:$F$25,4,FALSE),IFERROR(VLOOKUP(D41,'Cross-cutting issues'!$C$5:$F$16,4,FALSE),(VLOOKUP(D41,Legislation!$C$5:$F$17,4,FALSE))))))))","v":"Only at local levels."}]
[102,1,"CCI","Based on a small-scale experience, has a short term rabies action plan been developed and endorsed by relevant stakeholders at local / national level?","KEY",{"$f":"IFERROR(VLOOKUP(D42,'Data coll & ax'!$C$5:$E$26,3,FALSE),IFERROR(VLOOKUP(D42,'Prev & Ctrl'!$C$5:$E$30,3,FALSE),IFERROR(VLOOKUP(D42,'Lab dx'!$C$5:$E$17,3,FALSE),IFERROR(VLOOKUP(D42,'Dog popn'!$C$5:$E$17,3,FALSE),IFERROR(VLOOKUP(D42,IEC!$C$5:$E$25,3,FALSE),IFERROR(VLOOKUP(D42,'Cross-cutting issues'!$C$5:$E$16,3,FALSE),(VLOOKUP(D42,Legislation!$C$5:$E$17,3,FALSE))))))))","v":1},{"$f":"IFERROR(VLOOKUP(D42,'Data coll & ax'!$C$5:$F$26,4,FALSE),IFERROR(VLOOKUP(D42,'Prev & Ctrl'!$C$5:$F$30,4,FALSE),IFERROR(VLOOKUP(D42,'Lab dx'!$C$5:$F$17,4,FALSE),IFERROR(VLOOKUP(D42,'Dog popn'!$C$5:$F$17,4,FALSE),IFERROR(VLOOKUP(D42,IEC!$C$5:$F$25,4,FALSE),IFERROR(VLOOKUP(D42,'Cross-cutting issues'!$C$5:$F$16,4,FALSE),(VLOOKUP(D42,Legislation!$C$5:$F$17,4,FALSE))))))))","v":"Only in areas that have had confirmed rabies outbreaks"}]
[103,1,"CCI","Have mechanisms for mobilizing emergency funds in case of an outbreak been identified?",null,{"$f":"IFERROR(VLOOKUP(D43,'Data coll & ax'!$C$5:$E$26,3,FALSE),IFERROR(VLOOKUP(D43,'Prev & Ctrl'!$C$5:$E$30,3,FALSE),IFERROR(VLOOKUP(D43,'Lab dx'!$C$5:$E$17,3,FALSE),IFERROR(VLOOKUP(D43,'Dog popn'!$C$5:$E$17,3,FALSE),IFERROR(VLOOKUP(D43,IEC!$C$5:$E$25,3,FALSE),IFERROR(VLOOKUP(D43,'Cross-cutting issues'!$C$5:$E$16,3,FALSE),(VLOOKUP(D43,Legislation!$C$5:$E$17,3,FALSE))))))))","v":1},{"$f":"IFERROR(VLOOKUP(D43,'Data coll & ax'!$C$5:$F$26,4,FALSE),IFERROR(VLOOKUP(D43,'Prev & Ctrl'!$C$5:$F$30,4,FALSE),IFERROR(VLOOKUP(D43,'Lab dx'!$C$5:$F$17,4,FALSE),IFERROR(VLOOKUP(D43,'Dog popn'!$C$5:$F$17,4,FALSE),IFERROR(VLOOKUP(D43,IEC!$C$5:$F$25,4,FALSE),IFERROR(VLOOKUP(D43,'Cross-cutting issues'!$C$5:$F$16,4,FALSE),(VLOOKUP(D43,Legislation!$C$5:$F$17,4,FALSE))))))))","v":"Only at local levels. Govt has established a disease control fund and the DMMU under the vice president's office."}]
[109,1,"LEG","Do all of the relevant professionals know the case definition for animal rabies?",null,{"$f":"IFERROR(VLOOKUP(D44,'Data coll & ax'!$C$5:$E$26,3,FALSE),IFERROR(VLOOKUP(D44,'Prev & Ctrl'!$C$5:$E$30,3,FALSE),IFERROR(VLOOKUP(D44,'Lab dx'!$C$5:$E$17,3,FALSE),IFERROR(VLOOKUP(D44,'Dog popn'!$C$5:$E$17,3,FALSE),IFERROR(VLOOKUP(D44,IEC!$C$5:$E$25,3,FALSE),IFERROR(VLOOKUP(D44,'Cross-cutting issues'!$C$5:$E$16,3,FALSE),(VLOOKUP(D44,Legislation!$C$5:$E$17,3,FALSE))))))))","v":0},{"$f":"IFERROR(VLOOKUP(D44,'Data coll & ax'!$C$5:$F$26,4,FALSE),IFERROR(VLOOKUP(D44,'Prev & Ctrl'!$C$5:$F$30,4,FALSE),IFERROR(VLOOKUP(D44,'Lab dx'!$C$5:$F$17,4,FALSE),IFERROR(VLOOKUP(D44,'Dog popn'!$C$5:$F$17,4,FALSE),IFERROR(VLOOKUP(D44,IEC!$C$5:$F$25,4,FALSE),IFERROR(VLOOKUP(D44,'Cross-cutting issues'!$C$5:$F$16,4,FALSE),(VLOOKUP(D44,Legislation!$C$5:$F$17,4,FALSE))))))))","v":0}]
[111,1,"LEG","Do all of the relevant professionals know the case definition for human rabies?",null,{"$f":"IFERROR(VLOOKUP(D45,'Data coll & ax'!$C$5:$E$26,3,FALSE),IFERROR(VLOOKUP(D45,'Prev & Ctrl'!$C$5:$E$30,3,FALSE),IFERROR(VLOOKUP(D45,'Lab dx'!$C$5:$E$17,3,FALSE),IFERROR(VLOOKUP(D45,'Dog popn'!$C$5:$E$17,3,FALSE),IFERROR(VLOOKUP(D45,IEC!$C$5:$E$25,3,FALSE),IFERROR(VLOOKUP(D45,'Cross-cutting issues'!$C$5:$E$16,3,FALSE),(VLOOKUP(D45,Legislation!$C$5:$E$17,3,FALSE))))))))","v":0},{"$f":"IFERROR(VLOOKUP(D45,'Data coll & ax'!$C$5:$F$26,4,FALSE),IFERROR(VLOOKUP(D45,'Prev & Ctrl'!$C$5:$F$30,4,FALSE),IFERROR(VLOOKUP(D45,'Lab dx'!$C$5:$F$17,4,FALSE),IFERROR(VLOOKUP(D45,'Dog popn'!$C$5:$F$17,4,FALSE),IFERROR(VLOOKUP(D45,IEC!$C$5:$F$25,4,FALSE),IFERROR(VLOOKUP(D45,'Cross-cutting issues'!$C$5:$F$16,4,FALSE),(VLOOKUP(D45,Legislation!$C$5:$F$17,4,FALSE))))))))","v":"Include in training"}]
[113,1,"LEG","Is there national legislation that is relevant to rabies prevention and control?",null,{"$f":"IFERROR(VLOOKUP(D46,'Data coll & ax'!$C$5:$E$26,3,FALSE),IFERROR(VLOOKUP(D46,'Prev & Ctrl'!$C$5:$E$30,3,FALSE),IFERROR(VLOOKUP(D46,'Lab dx'!$C$5:$E$17,3,FALSE),IFERROR(VLOOKUP(D46,'Dog popn'!$C$5:$E$17,3,FALSE),IFERROR(VLOOKUP(D46,IEC!$C$5:$E$25,3,FALSE),IFERROR(VLOOKUP(D46,'Cross-cutting issues'!$C$5:$E$16,3,FALSE),(VLOOKUP(D46,Legislation!$C$5:$E$17,3,FALSE))))))))","v":1},{"$f":"IFERROR(VLOOKUP(D46,'Data coll & ax'!$C$5:$F$26,4,FALSE),IFERROR(VLOOKUP(D46,'Prev & Ctrl'!$C$5:$F$30,4,FALSE),IFERROR(VLOOKUP(D46,'Lab dx'!$C$5:$F$17,4,FALSE),IFERROR(VLOOKUP(D46,'Dog popn'!$C$5:$F$17,4,FALSE),IFERROR(VLOOKUP(D46,IEC!$C$5:$F$25,4,FALSE),IFERROR(VLOOKUP(D46,'Cross-cutting issues'!$C$5:$F$16,4,FALSE),(VLOOKUP(D46,Legislation!$C$5:$F$17,4,FALSE))))))))","v":"Control of Dogs Act, Animal Health Act, ZAMRA Act"}]
[114,1,"LEG","If there is legislation, has it been reviewed and endorsed?",null,{"$f":"IFERROR(VLOOKUP(D47,'Data coll & ax'!$C$5:$E$26,3,FALSE),IFERROR(VLOOKUP(D47,'Prev & Ctrl'!$C$5:$E$30,3,FALSE),IFERROR(VLOOKUP(D47,'Lab dx'!$C$5:$E$17,3,FALSE),IFERROR(VLOOKUP(D47,'Dog popn'!$C$5:$E$17,3,FALSE),IFERROR(VLOOKUP(D47,IEC!$C$5:$E$25,3,FALSE),IFERROR(VLOOKUP(D47,'Cross-cutting issues'!$C$5:$E$16,3,FALSE),(VLOOKUP(D47,Legislation!$C$5:$E$17,3,FALSE))))))))","v":1},{"$f":"IFERROR(VLOOKUP(D47,'Data coll & ax'!$C$5:$F$26,4,FALSE),IFERROR(VLOOKUP(D47,'Prev & Ctrl'!$C$5:$F$30,4,FALSE),IFERROR(VLOOKUP(D47,'Lab dx'!$C$5:$F$17,4,FALSE),IFERROR(VLOOKUP(D47,'Dog popn'!$C$5:$F$17,4,FALSE),IFERROR(VLOOKUP(D47,IEC!$C$5:$F$25,4,FALSE),IFERROR(VLOOKUP(D47,'Cross-cutting issues'!$C$5:$F$16,4,FALSE),(VLOOKUP(D47,Legislation!$C$5:$F$17,4,FALSE))))))))","v":"Animal Health Act 2010, ZAMRA Act, 2013"}]
[115,1,"LEG","Has rabies been made a notifiable disease in animals?","KEY",{"$f":"IFERROR(VLOOKUP(D48,'Data coll & ax'!$C$5:$E$26,3,FALSE),IFERROR(VLOOKUP(D48,'Prev & Ctrl'!$C$5:$E$30,3,FALSE),IFERROR(VLOOKUP(D48,'Lab dx'!$C$5:$E$17,3,FALSE),IFERROR(VLOOKUP(D48,'Dog popn'!$C$5:$E$17,3,FALSE),IFERROR(VLOOKUP(D48,IEC!$C$5:$E$25,3,FALSE),IFERROR(VLOOKUP(D48,'Cross-cutting issues'!$C$5:$E$16,3,FALSE),(VLOOKUP(D48,Legislation!$C$5:$E$17,3,FALSE))))))))","v":1},{"$f":"IFERROR(VLOOKUP(D48,'Data coll & ax'!$C$5:$F$26,4,FALSE),IFERROR(VLOOKUP(D48,'Prev & Ctrl'!$C$5:$F$30,4,FALSE),IFERROR(VLOOKUP(D48,'Lab dx'!$C$5:$F$17,4,FALSE),IFERROR(VLOOKUP(D48,'Dog popn'!$C$5:$F$17,4,FALSE),IFERROR(VLOOKUP(D48,IEC!$C$5:$F$25,4,FALSE),IFERROR(VLOOKUP(D48,'Cross-cutting issues'!$C$5:$F$16,4,FALSE),(VLOOKUP(D48,Legislation!$C$5:$F$17,4,FALSE))))))))","v":0}]
[116,1,"LEG","Has rabies been made a notifiable disease in humans?","KEY",{"$f":"IFERROR(VLOOKUP(D49,'Data coll & ax'!$C$5:$E$26,3,FALSE),IFERROR(VLOOKUP(D49,'Prev & Ctrl'!$C$5:$E$30,3,FALSE),IFERROR(VLOOKUP(D49,'Lab dx'!$C$5:$E$17,3,FALSE),IFERROR(VLOOKUP(D49,'Dog popn'!$C$5:$E$17,3,FALSE),IFERROR(VLOOKUP(D49,IEC!$C$5:$E$25,3,FALSE),IFERROR(VLOOKUP(D49,'Cross-cutting issues'!$C$5:$E$16,3,FALSE),(VLOOKUP(D49,Legislation!$C$5:$E$17,3,FALSE))))))))","v":1},{"$f":"IFERROR(VLOOKUP(D49,'Data coll & ax'!$C$5:$F$26,4,FALSE),IFERROR(VLOOKUP(D49,'Prev & Ctrl'!$C$5:$F$30,4,FALSE),IFERROR(VLOOKUP(D49,'Lab dx'!$C$5:$F$17,4,FALSE),IFERROR(VLOOKUP(D49,'Dog popn'!$C$5:$F$17,4,FALSE),IFERROR(VLOOKUP(D49,IEC!$C$5:$F$25,4,FALSE),IFERROR(VLOOKUP(D49,'Cross-cutting issues'!$C$5:$F$16,4,FALSE),(VLOOKUP(D49,Legislation!$C$5:$F$17,4,FALSE))))))))","v":0}]
[117,1,"LEG","Is there legislation that includes the compulsory rabies vaccination of dogs or has it been proposed if it is not already in place?","KEY",{"$f":"IFERROR(VLOOKUP(D50,'Data coll & ax'!$C$5:$E$26,3,FALSE),IFERROR(VLOOKUP(D50,'Prev & Ctrl'!$C$5:$E$30,3,FALSE),IFERROR(VLOOKUP(D50,'Lab dx'!$C$5:$E$17,3,FALSE),IFERROR(VLOOKUP(D50,'Dog popn'!$C$5:$E$17,3,FALSE),IFERROR(VLOOKUP(D50,IEC!$C$5:$E$25,3,FALSE),IFERROR(VLOOKUP(D50,'Cross-cutting issues'!$C$5:$E$16,3,FALSE),(VLOOKUP(D50,Legislation!$C$5:$E$17,3,FALSE))))))))","v":1},{"$f":"IFERROR(VLOOKUP(D50,'Data coll & ax'!$C$5:$F$26,4,FALSE),IFERROR(VLOOKUP(D50,'Prev & Ctrl'!$C$5:$F$30,4,FALSE),IFERROR(VLOOKUP(D50,'Lab dx'!$C$5:$F$17,4,FALSE),IFERROR(VLOOKUP(D50,'Dog popn'!$C$5:$F$17,4,FALSE),IFERROR(VLOOKUP(D50,IEC!$C$5:$F$25,4,FALSE),IFERROR(VLOOKUP(D50,'Cross-cutting issues'!$C$5:$F$16,4,FALSE),(VLOOKUP(D50,Legislation!$C$5:$F$17,4,FALSE))))))))","v":"Control of Dogs Act"}]
[118,1,"LEG","Does legislation include measures for rabies outbreak response?",null,{"$f":"IFERROR(VLOOKUP(D51,'Data coll & ax'!$C$5:$E$26,3,FALSE),IFERROR(VLOOKUP(D51,'Prev & Ctrl'!$C$5:$E$30,3,FALSE),IFERROR(VLOOKUP(D51,'Lab dx'!$C$5:$E$17,3,FALSE),IFERROR(VLOOKUP(D51,'Dog popn'!$C$5:$E$17,3,FALSE),IFERROR(VLOOKUP(D51,IEC!$C$5:$E$25,3,FALSE),IFERROR(VLOOKUP(D51,'Cross-cutting issues'!$C$5:$E$16,3,FALSE),(VLOOKUP(D51,Legislation!$C$5:$E$17,3,FALSE))))))))","v":1},{"$f":"IFERROR(VLOOKUP(D51,'Data coll & ax'!$C$5:$F$26,4,FALSE),IFERROR(VLOOKUP(D51,'Prev & Ctrl'!$C$5:$F$30,4,FALSE),IFERROR(VLOOKUP(D51,'Lab dx'!$C$5:$F$17,4,FALSE),IFERROR(VLOOKUP(D51,'Dog popn'!$C$5:$F$17,4,FALSE),IFERROR(VLOOKUP(D51,IEC!$C$5:$F$25,4,FALSE),IFERROR(VLOOKUP(D51,'Cross-cutting issues'!$C$5:$F$16,4,FALSE),(VLOOKUP(D51,Legislation!$C$5:$F$17,4,FALSE))))))))","v":0}]
[10,2,"DCA","Have linked human and animal rabies surveillance systems, including agreed SOPs, been established?",null,{"$f":"IFERROR(VLOOKUP(D52,'Data coll & ax'!$C$5:$E$26,3,FALSE),IFERROR(VLOOKUP(D52,'Prev & Ctrl'!$C$5:$E$30,3,FALSE),IFERROR(VLOOKUP(D52,'Lab dx'!$C$5:$E$17,3,FALSE),IFERROR(VLOOKUP(D52,'Dog popn'!$C$5:$E$17,3,FALSE),IFERROR(VLOOKUP(D52,IEC!$C$5:$E$25,3,FALSE),IFERROR(VLOOKUP(D52,'Cross-cutting issues'!$C$5:$E$16,3,FALSE),(VLOOKUP(D52,Legislation!$C$5:$E$17,3,FALSE))))))))","v":0},{"$f":"IFERROR(VLOOKUP(D52,'Data coll & ax'!$C$5:$F$26,4,FALSE),IFERROR(VLOOKUP(D52,'Prev & Ctrl'!$C$5:$F$30,4,FALSE),IFERROR(VLOOKUP(D52,'Lab dx'!$C$5:$F$17,4,FALSE),IFERROR(VLOOKUP(D52,'Dog popn'!$C$5:$F$17,4,FALSE),IFERROR(VLOOKUP(D52,IEC!$C$5:$F$25,4,FALSE),IFERROR(VLOOKUP(D52,'Cross-cutting issues'!$C$5:$F$16,4,FALSE),(VLOOKUP(D52,Legislation!$C$5:$F$17,4,FALSE))))))))","v":0}]
[11,2,"DCA","Are human rabies surveillance systems, including feedback mechanisms, functioning and coordinated between administrative levels (national, province, district, municipal, etc.)? ",null,{"$f":"IFERROR(VLOOKUP(D53,'Data coll & ax'!$C$5:$E$26,3,FALSE),IFERROR(VLOOKUP(D53,'Prev & Ctrl'!$C$5:$E$30,3,FALSE),IFERROR(VLOOKUP(D53,'Lab dx'!$C$5:$E$17,3,FALSE),IFERROR(VLOOKUP(D53,'Dog popn'!$C$5:$E$17,3,FALSE),IFERROR(VLOOKUP(D53,IEC!$C$5:$E$25,3,FALSE),IFERROR(VLOOKUP(D53,'Cross-cutting issues'!$C$5:$E$16,3,FALSE),(VLOOKUP(D53,Legislation!$C$5:$E$17,3,FALSE))))))))","v":1},{"$f":"IFERROR(VLOOKUP(D53,'Data coll & ax'!$C$5:$F$26,4,FALSE),IFERROR(VLOOKUP(D53,'Prev & Ctrl'!$C$5:$F$30,4,FALSE),IFERROR(VLOOKUP(D53,'Lab dx'!$C$5:$F$17,4,FALSE),IFERROR(VLOOKUP(D53,'Dog popn'!$C$5:$F$17,4,FALSE),IFERROR(VLOOKUP(D53,IEC!$C$5:$F$25,4,FALSE),IFERROR(VLOOKUP(D53,'Cross-cutting issues'!$C$5:$F$16,4,FALSE),(VLOOKUP(D53,Legislation!$C$5:$F$17,4,FALSE))))))))","v":0}]
[12,2,"DCA","Are animal rabies surveillance systems, including feedback mechanisms, functioning and coordinated between administrative levels (national, province, district, municipal, etc.)?",null,{"$f":"IFERROR(VLOOKUP(D54,'Data coll & ax'!$C$5:$E$26,3,FALSE),IFERROR(VLOOKUP(D54,'Prev & Ctrl'!$C$5:$E$30,3,FALSE),IFERROR(VLOOKUP(D54,'Lab dx'!$C$5:$E$17,3,FALSE),IFERROR(VLOOKUP(D54,'Dog popn'!$C$5:$E$17,3,FALSE),IFERROR(VLOOKUP(D54,IEC!$C$5:$E$25,3,FALSE),IFERROR(VLOOKUP(D54,'Cross-cutting issues'!$C$5:$E$16,3,FALSE),(VLOOKUP(D54,Legislation!$C$5:$E$17,3,FALSE))))))))","v":1},{"$f":"IFERROR(VLOOKUP(D54,'Data coll & ax'!$C$5:$F$26,4,FALSE),IFERROR(VLOOKUP(D54,'Prev & Ctrl'!$C$5:$F$30,4,FALSE),IFERROR(VLOOKUP(D54,'Lab dx'!$C$5:$F$17,4,FALSE),IFERROR(VLOOKUP(D54,'Dog popn'!$C$5:$F$17,4,FALSE),IFERROR(VLOOKUP(D54,IEC!$C$5:$F$25,4,FALSE),IFERROR(VLOOKUP(D54,'Cross-cutting issues'!$C$5:$F$16,4,FALSE),(VLOOKUP(D54,Legislation!$C$5:$F$17,4,FALSE))))))))","v":0}]
[13,2,"DCA","Is information on the epidemiology of rabies regularly shared with all stakeholders?","KEY",{"$f":"IFERROR(VLOOKUP(D55,'Data coll & ax'!$C$5:$E$26,3,FALSE),IFERROR(VLOOKUP(D55,'Prev & Ctrl'!$C$5:$E$30,3,FALSE),IFERROR(VLOOKUP(D55,'Lab dx'!$C$5:$E$17,3,FALSE),IFERROR(VLOOKUP(D55,'Dog popn'!$C$5:$E$17,3,FALSE),IFERROR(VLOOKUP(D55,IEC!$C$5:$E$25,3,FALSE),IFERROR(VLOOKUP(D55,'Cross-cutting issues'!$C$5:$E$16,3,FALSE),(VLOOKUP(D55,Legislation!$C$5:$E$17,3,FALSE))))))))","v":0},{"$f":"IFERROR(VLOOKUP(D55,'Data coll & ax'!$C$5:$F$26,4,FALSE),IFERROR(VLOOKUP(D55,'Prev & Ctrl'!$C$5:$F$30,4,FALSE),IFERROR(VLOOKUP(D55,'Lab dx'!$C$5:$F$17,4,FALSE),IFERROR(VLOOKUP(D55,'Dog popn'!$C$5:$F$17,4,FALSE),IFERROR(VLOOKUP(D55,IEC!$C$5:$F$25,4,FALSE),IFERROR(VLOOKUP(D55,'Cross-cutting issues'!$C$5:$F$16,4,FALSE),(VLOOKUP(D55,Legislation!$C$5:$F$17,4,FALSE))))))))","v":0}]
[14,2,"DCA","Is the on-going surveillance system for rabies being maintained?","KEY",{"$f":"IFERROR(VLOOKUP(D56,'Data coll & ax'!$C$5:$E$26,3,FALSE),IFERROR(VLOOKUP(D56,'Prev & Ctrl'!$C$5:$E$30,3,FALSE),IFERROR(VLOOKUP(D56,'Lab dx'!$C$5:$E$17,3,FALSE),IFERROR(VLOOKUP(D56,'Dog popn'!$C$5:$E$17,3,FALSE),IFERROR(VLOOKUP(D56,IEC!$C$5:$E$25,3,FALSE),IFERROR(VLOOKUP(D56,'Cross-cutting issues'!$C$5:$E$16,3,FALSE),(VLOOKUP(D56,Legislation!$C$5:$E$17,3,FALSE))))))))","v":0},{"$f":"IFERROR(VLOOKUP(D56,'Data coll & ax'!$C$5:$F$26,4,FALSE),IFERROR(VLOOKUP(D56,'Prev & Ctrl'!$C$5:$F$30,4,FALSE),IFERROR(VLOOKUP(D56,'Lab dx'!$C$5:$F$17,4,FALSE),IFERROR(VLOOKUP(D56,'Dog popn'!$C$5:$F$17,4,FALSE),IFERROR(VLOOKUP(D56,IEC!$C$5:$F$25,4,FALSE),IFERROR(VLOOKUP(D56,'Cross-cutting issues'!$C$5:$F$16,4,FALSE),(VLOOKUP(D56,Legislation!$C$5:$F$17,4,FALSE))))))))","v":0}]
[25,2,"PCO","Has an assessment* been done to determine the availability and access to PEP (and PreP)?",null,{"$f":"IFERROR(VLOOKUP(D57,'Data coll & ax'!$C$5:$E$26,3,FALSE),IFERROR(VLOOKUP(D57,'Prev & Ctrl'!$C$5:$E$30,3,FALSE),IFERROR(VLOOKUP(D57,'Lab dx'!$C$5:$E$17,3,FALSE),IFERROR(VLOOKUP(D57,'Dog popn'!$C$5:$E$17,3,FALSE),IFERROR(VLOOKUP(D57,IEC!$C$5:$E$25,3,FALSE),IFERROR(VLOOKUP(D57,'Cross-cutting issues'!$C$5:$E$16,3,FALSE),(VLOOKUP(D57,Legislation!$C$5:$E$17,3,FALSE))))))))","v":1},{"$f":"IFERROR(VLOOKUP(D57,'Data coll & ax'!$C$5:$F$26,4,FALSE),IFERROR(VLOOKUP(D57,'Prev & Ctrl'!$C$5:$F$30,4,FALSE),IFERROR(VLOOKUP(D57,'Lab dx'!$C$5:$F$17,4,FALSE),IFERROR(VLOOKUP(D57,'Dog popn'!$C$5:$F$17,4,FALSE),IFERROR(VLOOKUP(D57,IEC!$C$5:$F$25,4,FALSE),IFERROR(VLOOKUP(D57,'Cross-cutting issues'!$C$5:$F$16,4,FALSE),(VLOOKUP(D57,Legislation!$C$5:$F$17,4,FALSE))))))))","v":0}]
[26,2,"PCO","Are WHO pre-qualified human rabies vaccines available and accessible in most parts of the country?","KEY",{"$f":"IFERROR(VLOOKUP(D58,'Data coll & ax'!$C$5:$E$26,3,FALSE),IFERROR(VLOOKUP(D58,'Prev & Ctrl'!$C$5:$E$30,3,FALSE),IFERROR(VLOOKUP(D58,'Lab dx'!$C$5:$E$17,3,FALSE),IFERROR(VLOOKUP(D58,'Dog popn'!$C$5:$E$17,3,FALSE),IFERROR(VLOOKUP(D58,IEC!$C$5:$E$25,3,FALSE),IFERROR(VLOOKUP(D58,'Cross-cutting issues'!$C$5:$E$16,3,FALSE),(VLOOKUP(D58,Legislation!$C$5:$E$17,3,FALSE))))))))","v":1},{"$f":"IFERROR(VLOOKUP(D58,'Data coll & ax'!$C$5:$F$26,4,FALSE),IFERROR(VLOOKUP(D58,'Prev & Ctrl'!$C$5:$F$30,4,FALSE),IFERROR(VLOOKUP(D58,'Lab dx'!$C$5:$F$17,4,FALSE),IFERROR(VLOOKUP(D58,'Dog popn'!$C$5:$F$17,4,FALSE),IFERROR(VLOOKUP(D58,IEC!$C$5:$F$25,4,FALSE),IFERROR(VLOOKUP(D58,'Cross-cutting issues'!$C$5:$F$16,4,FALSE),(VLOOKUP(D58,Legislation!$C$5:$F$17,4,FALSE))))))))","v":0}]
[27,2,"PCO","Are any human biologics that are not WHO-pre-qualified being phased out? (e.g. nerve tissue vaccines, low quality vaccines)",null,{"$f":"IFERROR(VLOOKUP(D59,'Data coll & ax'!$C$5:$E$26,3,FALSE),IFERROR(VLOOKUP(D59,'Prev & Ctrl'!$C$5:$E$30,3,FALSE),IFERROR(VLOOKUP(D59,'Lab dx'!$C$5:$E$17,3,FALSE),IFERROR(VLOOKUP(D59,'Dog popn'!$C$5:$E$17,3,FALSE),IFERROR(VLOOKUP(D59,IEC!$C$5:$E$25,3,FALSE),IFERROR(VLOOKUP(D59,'Cross-cutting issues'!$C$5:$E$16,3,FALSE),(VLOOKUP(D59,Legislation!$C$5:$E$17,3,FALSE))))))))","v":1},{"$f":"IFERROR(VLOOKUP(D59,'Data coll & ax'!$C$5:$F$26,4,FALSE),IFERROR(VLOOKUP(D59,'Prev & Ctrl'!$C$5:$F$30,4,FALSE),IFERROR(VLOOKUP(D59,'Lab dx'!$C$5:$F$17,4,FALSE),IFERROR(VLOOKUP(D59,'Dog popn'!$C$5:$F$17,4,FALSE),IFERROR(VLOOKUP(D59,IEC!$C$5:$F$25,4,FALSE),IFERROR(VLOOKUP(D59,'Cross-cutting issues'!$C$5:$F$16,4,FALSE),(VLOOKUP(D59,Legislation!$C$5:$F$17,4,FALSE))))))))","v":0}]
[32,2,"PCO","Are only quality dog vaccines in accordance with OIE standards being used?",null,{"$f":"IFERROR(VLOOKUP(D60,'Data coll & ax'!$C$5:$E$26,3,FALSE),IFERROR(VLOOKUP(D60,'Prev & Ctrl'!$C$5:$E$30,3,FALSE),IFERROR(VLOOKUP(D60,'Lab dx'!$C$5:$E$17,3,FALSE),IFERROR(VLOOKUP(D60,'Dog popn'!$C$5:$E$17,3,FALSE),IFERROR(VLOOKUP(D60,IEC!$C$5:$E$25,3,FALSE),IFERROR(VLOOKUP(D60,'Cross-cutting issues'!$C$5:$E$16,3,FALSE),(VLOOKUP(D60,Legislation!$C$5:$E$17,3,FALSE))))))))","v":1},{"$f":"IFERROR(VLOOKUP(D60,'Data coll & ax'!$C$5:$F$26,4,FALSE),IFERROR(VLOOKUP(D60,'Prev & Ctrl'!$C$5:$F$30,4,FALSE),IFERROR(VLOOKUP(D60,'Lab dx'!$C$5:$F$17,4,FALSE),IFERROR(VLOOKUP(D60,'Dog popn'!$C$5:$F$17,4,FALSE),IFERROR(VLOOKUP(D60,IEC!$C$5:$F$25,4,FALSE),IFERROR(VLOOKUP(D60,'Cross-cutting issues'!$C$5:$F$16,4,FALSE),(VLOOKUP(D60,Legislation!$C$5:$F$17,4,FALSE))))))))","v":0}]
[33,2,"PCO","Are dog vaccination campaigns regularly implemented in response to human cases and animal outbreaks?","KEY",{"$f":"IFERROR(VLOOKUP(D61,'Data coll & ax'!$C$5:$E$26,3,FALSE),IFERROR(VLOOKUP(D61,'Prev & Ctrl'!$C$5:$E$30,3,FALSE),IFERROR(VLOOKUP(D61,'Lab dx'!$C$5:$E$17,3,FALSE),IFERROR(VLOOKUP(D61,'Dog popn'!$C$5:$E$17,3,FALSE),IFERROR(VLOOKUP(D61,IEC!$C$5:$E$25,3,FALSE),IFERROR(VLOOKUP(D61,'Cross-cutting issues'!$C$5:$E$16,3,FALSE),(VLOOKUP(D61,Legislation!$C$5:$E$17,3,FALSE))))))))","v":1},{"$f":"IFERROR(VLOOKUP(D61,'Data coll & ax'!$C$5:$F$26,4,FALSE),IFERROR(VLOOKUP(D61,'Prev & Ctrl'!$C$5:$F$30,4,FALSE),IFERROR(VLOOKUP(D61,'Lab dx'!$C$5:$F$17,4,FALSE),IFERROR(VLOOKUP(D61,'Dog popn'!$C$5:$F$17,4,FALSE),IFERROR(VLOOKUP(D61,IEC!$C$5:$F$25,4,FALSE),IFERROR(VLOOKUP(D61,'Cross-cutting issues'!$C$5:$F$16,4,FALSE),(VLOOKUP(D61,Legislation!$C$5:$F$17,4,FALSE))))))))","v":0}]
[40,2,"PCO","Have IBCM SOPs, including sharing of information between sectors, been agreed upon?",null,{"$f":"IFERROR(VLOOKUP(D62,'Data coll & ax'!$C$5:$E$26,3,FALSE),IFERROR(VLOOKUP(D62,'Prev & Ctrl'!$C$5:$E$30,3,FALSE),IFERROR(VLOOKUP(D62,'Lab dx'!$C$5:$E$17,3,FALSE),IFERROR(VLOOKUP(D62,'Dog popn'!$C$5:$E$17,3,FALSE),IFERROR(VLOOKUP(D62,IEC!$C$5:$E$25,3,FALSE),IFERROR(VLOOKUP(D62,'Cross-cutting issues'!$C$5:$E$16,3,FALSE),(VLOOKUP(D62,Legislation!$C$5:$E$17,3,FALSE))))))))","v":0},{"$f":"IFERROR(VLOOKUP(D62,'Data coll & ax'!$C$5:$F$26,4,FALSE),IFERROR(VLOOKUP(D62,'Prev & Ctrl'!$C$5:$F$30,4,FALSE),IFERROR(VLOOKUP(D62,'Lab dx'!$C$5:$F$17,4,FALSE),IFERROR(VLOOKUP(D62,'Dog popn'!$C$5:$F$17,4,FALSE),IFERROR(VLOOKUP(D62,IEC!$C$5:$F$25,4,FALSE),IFERROR(VLOOKUP(D62,'Cross-cutting issues'!$C$5:$F$16,4,FALSE),(VLOOKUP(D62,Legislation!$C$5:$F$17,4,FALSE))))))))","v":"Need for sectorwide meetings"}]
[41,2,"PCO","Are SOPs available for the observation of dogs involved in biting incidents? ",null,{"$f":"IFERROR(VLOOKUP(D63,'Data coll & ax'!$C$5:$E$26,3,FALSE),IFERROR(VLOOKUP(D63,'Prev & Ctrl'!$C$5:$E$30,3,FALSE),IFERROR(VLOOKUP(D63,'Lab dx'!$C$5:$E$17,3,FALSE),IFERROR(VLOOKUP(D63,'Dog popn'!$C$5:$E$17,3,FALSE),IFERROR(VLOOKUP(D63,IEC!$C$5:$E$25,3,FALSE),IFERROR(VLOOKUP(D63,'Cross-cutting issues'!$C$5:$E$16,3,FALSE),(VLOOKUP(D63,Legislation!$C$5:$E$17,3,FALSE))))))))","v":1},{"$f":"IFERROR(VLOOKUP(D63,'Data coll & ax'!$C$5:$F$26,4,FALSE),IFERROR(VLOOKUP(D63,'Prev & Ctrl'!$C$5:$F$30,4,FALSE),IFERROR(VLOOKUP(D63,'Lab dx'!$C$5:$F$17,4,FALSE),IFERROR(VLOOKUP(D63,'Dog popn'!$C$5:$F$17,4,FALSE),IFERROR(VLOOKUP(D63,IEC!$C$5:$F$25,4,FALSE),IFERROR(VLOOKUP(D63,'Cross-cutting issues'!$C$5:$F$16,4,FALSE),(VLOOKUP(D63,Legislation!$C$5:$F$17,4,FALSE))))))))","v":0}]
[42,2,"PCO","Have facilities or protocols been established for the observation of rabies-suspected dogs?",null,{"$f":"IFERROR(VLOOKUP(D64,'Data coll & ax'!$C$5:$E$26,3,FALSE),IFERROR(VLOOKUP(D64,'Prev & Ctrl'!$C$5:$E$30,3,FALSE),IFERROR(VLOOKUP(D64,'Lab dx'!$C$5:$E$17,3,FALSE),IFERROR(VLOOKUP(D64,'Dog popn'!$C$5:$E$17,3,FALSE),IFERROR(VLOOKUP(D64,IEC!$C$5:$E$25,3,FALSE),IFERROR(VLOOKUP(D64,'Cross-cutting issues'!$C$5:$E$16,3,FALSE),(VLOOKUP(D64,Legislation!$C$5:$E$17,3,FALSE))))))))","v":1},{"$f":"IFERROR(VLOOKUP(D64,'Data coll & ax'!$C$5:$F$26,4,FALSE),IFERROR(VLOOKUP(D64,'Prev & Ctrl'!$C$5:$F$30,4,FALSE),IFERROR(VLOOKUP(D64,'Lab dx'!$C$5:$F$17,4,FALSE),IFERROR(VLOOKUP(D64,'Dog popn'!$C$5:$F$17,4,FALSE),IFERROR(VLOOKUP(D64,IEC!$C$5:$F$25,4,FALSE),IFERROR(VLOOKUP(D64,'Cross-cutting issues'!$C$5:$F$16,4,FALSE),(VLOOKUP(D64,Legislation!$C$5:$F$17,4,FALSE))))))))","v":0}]
[55,2,"LAB","Is there regular laboratory diagnosis of animal rabies cases in country?",null,{"$f":"IFERROR(VLOOKUP(D65,'Data coll & ax'!$C$5:$E$26,3,FALSE),IFERROR(VLOOKUP(D65,'Prev & Ctrl'!$C$5:$E$30,3,FALSE),IFERROR(VLOOKUP(D65,'Lab dx'!$C$5:$E$17,3,FALSE),IFERROR(VLOOKUP(D65,'Dog popn'!$C$5:$E$17,3,FALSE),IFERROR(VLOOKUP(D65,IEC!$C$5:$E$25,3,FALSE),IFERROR(VLOOKUP(D65,'Cross-cutting issues'!$C$5:$E$16,3,FALSE),(VLOOKUP(D65,Legislation!$C$5:$E$17,3,FALSE))))))))","v":1},{"$f":"IFERROR(VLOOKUP(D65,'Data coll & ax'!$C$5:$F$26,4,FALSE),IFERROR(VLOOKUP(D65,'Prev & Ctrl'!$C$5:$F$30,4,FALSE),IFERROR(VLOOKUP(D65,'Lab dx'!$C$5:$F$17,4,FALSE),IFERROR(VLOOKUP(D65,'Dog popn'!$C$5:$F$17,4,FALSE),IFERROR(VLOOKUP(D65,IEC!$C$5:$F$25,4,FALSE),IFERROR(VLOOKUP(D65,'Cross-cutting issues'!$C$5:$F$16,4,FALSE),(VLOOKUP(D65,Legislation!$C$5:$F$17,4,FALSE))))))))","v":"CVRI (FAT, PCR) LUSAKA"}]
[56,2,"LAB","Has capacity for regular sample collection and transportation been established and functioning?",null,{"$f":"IFERROR(VLOOKUP(D66,'Data coll & ax'!$C$5:$E$26,3,FALSE),IFERROR(VLOOKUP(D66,'Prev & Ctrl'!$C$5:$E$30,3,FALSE),IFERROR(VLOOKUP(D66,'Lab dx'!$C$5:$E$17,3,FALSE),IFERROR(VLOOKUP(D66,'Dog popn'!$C$5:$E$17,3,FALSE),IFERROR(VLOOKUP(D66,IEC!$C$5:$E$25,3,FALSE),IFERROR(VLOOKUP(D66,'Cross-cutting issues'!$C$5:$E$16,3,FALSE),(VLOOKUP(D66,Legislation!$C$5:$E$17,3,FALSE))))))))","v":1},{"$f":"IFERROR(VLOOKUP(D66,'Data coll & ax'!$C$5:$F$26,4,FALSE),IFERROR(VLOOKUP(D66,'Prev & Ctrl'!$C$5:$F$30,4,FALSE),IFERROR(VLOOKUP(D66,'Lab dx'!$C$5:$F$17,4,FALSE),IFERROR(VLOOKUP(D66,'Dog popn'!$C$5:$F$17,4,FALSE),IFERROR(VLOOKUP(D66,IEC!$C$5:$F$25,4,FALSE),IFERROR(VLOOKUP(D66,'Cross-cutting issues'!$C$5:$F$16,4,FALSE),(VLOOKUP(D66,Legislation!$C$5:$F$17,4,FALSE))))))))","v":"PVO & DVO "}]
[64,2,"DPM","Has a DPM* strategy and programmebeen  drafted and shared with all relevant stakeholders at a local level?",null,{"$f":"IFERROR(VLOOKUP(D67,'Data coll & ax'!$C$5:$E$26,3,FALSE),IFERROR(VLOOKUP(D67,'Prev & Ctrl'!$C$5:$E$30,3,FALSE),IFERROR(VLOOKUP(D67,'Lab dx'!$C$5:$E$17,3,FALSE),IFERROR(VLOOKUP(D67,'Dog popn'!$C$5:$E$17,3,FALSE),IFERROR(VLOOKUP(D67,IEC!$C$5:$E$25,3,FALSE),IFERROR(VLOOKUP(D67,'Cross-cutting issues'!$C$5:$E$16,3,FALSE),(VLOOKUP(D67,Legislation!$C$5:$E$17,3,FALSE))))))))","v":0},{"$f":"IFERROR(VLOOKUP(D67,'Data coll & ax'!$C$5:$F$26,4,FALSE),IFERROR(VLOOKUP(D67,'Prev & Ctrl'!$C$5:$F$30,4,FALSE),IFERROR(VLOOKUP(D67,'Lab dx'!$C$5:$F$17,4,FALSE),IFERROR(VLOOKUP(D67,'Dog popn'!$C$5:$F$17,4,FALSE),IFERROR(VLOOKUP(D67,IEC!$C$5:$F$25,4,FALSE),IFERROR(VLOOKUP(D67,'Cross-cutting issues'!$C$5:$F$16,4,FALSE),(VLOOKUP(D67,Legislation!$C$5:$F$17,4,FALSE))))))))","v":"Need for DPM strategy to be developed"}]
[65,2,"DPM","Has the DPM strategy been finalized?",null,{"$f":"IFERROR(VLOOKUP(D68,'Data coll & ax'!$C$5:$E$26,3,FALSE),IFERROR(VLOOKUP(D68,'Prev & Ctrl'!$C$5:$E$30,3,FALSE),IFERROR(VLOOKUP(D68,'Lab dx'!$C$5:$E$17,3,FALSE),IFERROR(VLOOKUP(D68,'Dog popn'!$C$5:$E$17,3,FALSE),IFERROR(VLOOKUP(D68,IEC!$C$5:$E$25,3,FALSE),IFERROR(VLOOKUP(D68,'Cross-cutting issues'!$C$5:$E$16,3,FALSE),(VLOOKUP(D68,Legislation!$C$5:$E$17,3,FALSE))))))))","v":0},{"$f":"IFERROR(VLOOKUP(D68,'Data coll & ax'!$C$5:$F$26,4,FALSE),IFERROR(VLOOKUP(D68,'Prev & Ctrl'!$C$5:$F$30,4,FALSE),IFERROR(VLOOKUP(D68,'Lab dx'!$C$5:$F$17,4,FALSE),IFERROR(VLOOKUP(D68,'Dog popn'!$C$5:$F$17,4,FALSE),IFERROR(VLOOKUP(D68,IEC!$C$5:$F$25,4,FALSE),IFERROR(VLOOKUP(D68,'Cross-cutting issues'!$C$5:$F$16,4,FALSE),(VLOOKUP(D68,Legislation!$C$5:$F$17,4,FALSE))))))))","v":"as above"}]
[66,2,"DPM","Has public sensitisation about DPM been built into rabies awareness campaigns at a local level?",null,{"$f":"IFERROR(VLOOKUP(D69,'Data coll & ax'!$C$5:$E$26,3,FALSE),IFERROR(VLOOKUP(D69,'Prev & Ctrl'!$C$5:$E$30,3,FALSE),IFERROR(VLOOKUP(D69,'Lab dx'!$C$5:$E$17,3,FALSE),IFERROR(VLOOKUP(D69,'Dog popn'!$C$5:$E$17,3,FALSE),IFERROR(VLOOKUP(D69,IEC!$C$5:$E$25,3,FALSE),IFERROR(VLOOKUP(D69,'Cross-cutting issues'!$C$5:$E$16,3,FALSE),(VLOOKUP(D69,Legislation!$C$5:$E$17,3,FALSE))))))))","v":0},{"$f":"IFERROR(VLOOKUP(D69,'Data coll & ax'!$C$5:$F$26,4,FALSE),IFERROR(VLOOKUP(D69,'Prev & Ctrl'!$C$5:$F$30,4,FALSE),IFERROR(VLOOKUP(D69,'Lab dx'!$C$5:$F$17,4,FALSE),IFERROR(VLOOKUP(D69,'Dog popn'!$C$5:$F$17,4,FALSE),IFERROR(VLOOKUP(D69,IEC!$C$5:$F$25,4,FALSE),IFERROR(VLOOKUP(D69,'Cross-cutting issues'!$C$5:$F$16,4,FALSE),(VLOOKUP(D69,Legislation!$C$5:$F$17,4,FALSE))))))))","v":"No DPM strategy in place"}]
[67,2,"DPM","Has dog population management been implemented at a local level?",null,{"$f":"IFERROR(VLOOKUP(D70,'Data coll & ax'!$C$5:$E$26,3,FALSE),IFERROR(VLOOKUP(D70,'Prev & Ctrl'!$C$5:$E$30,3,FALSE),IFERROR(VLOOKUP(D70,'Lab dx'!$C$5:$E$17,3,FALSE),IFERROR(VLOOKUP(D70,'Dog popn'!$C$5:$E$17,3,FALSE),IFERROR(VLOOKUP(D70,IEC!$C$5:$E$25,3,FALSE),IFERROR(VLOOKUP(D70,'Cross-cutting issues'!$C$5:$E$16,3,FALSE),(VLOOKUP(D70,Legislation!$C$5:$E$17,3,FALSE))))))))","v":1},{"$f":"IFERROR(VLOOKUP(D70,'Data coll & ax'!$C$5:$F$26,4,FALSE),IFERROR(VLOOKUP(D70,'Prev & Ctrl'!$C$5:$F$30,4,FALSE),IFERROR(VLOOKUP(D70,'Lab dx'!$C$5:$F$17,4,FALSE),IFERROR(VLOOKUP(D70,'Dog popn'!$C$5:$F$17,4,FALSE),IFERROR(VLOOKUP(D70,IEC!$C$5:$F$25,4,FALSE),IFERROR(VLOOKUP(D70,'Cross-cutting issues'!$C$5:$F$16,4,FALSE),(VLOOKUP(D70,Legislation!$C$5:$F$17,4,FALSE))))))))","v":"Through local authority disease preparedness"}]
[68,2,"DPM","Have training or refresher courses on animal handling and sterilisation been initiated for professionals in animal health at a local level?",null,{"$f":"IFERROR(VLOOKUP(D71,'Data coll & ax'!$C$5:$E$26,3,FALSE),IFERROR(VLOOKUP(D71,'Prev & Ctrl'!$C$5:$E$30,3,FALSE),IFERROR(VLOOKUP(D71,'Lab dx'!$C$5:$E$17,3,FALSE),IFERROR(VLOOKUP(D71,'Dog popn'!$C$5:$E$17,3,FALSE),IFERROR(VLOOKUP(D71,IEC!$C$5:$E$25,3,FALSE),IFERROR(VLOOKUP(D71,'Cross-cutting issues'!$C$5:$E$16,3,FALSE),(VLOOKUP(D71,Legislation!$C$5:$E$17,3,FALSE))))))))","v":1},{"$f":"IFERROR(VLOOKUP(D71,'Data coll & ax'!$C$5:$F$26,4,FALSE),IFERROR(VLOOKUP(D71,'Prev & Ctrl'!$C$5:$F$30,4,FALSE),IFERROR(VLOOKUP(D71,'Lab dx'!$C$5:$F$17,4,FALSE),IFERROR(VLOOKUP(D71,'Dog popn'!$C$5:$F$17,4,FALSE),IFERROR(VLOOKUP(D71,IEC!$C$5:$F$25,4,FALSE),IFERROR(VLOOKUP(D71,'Cross-cutting issues'!$C$5:$F$16,4,FALSE),(VLOOKUP(D71,Legislation!$C$5:$F$17,4,FALSE))))))))","v":"through VAZ CPDs"}]
[79,2,"IEC","Has an IEC plan been implemented beyond a local level?",null,{"$f":"IFERROR(VLOOKUP(D72,'Data coll & ax'!$C$5:$E$26,3,FALSE),IFERROR(VLOOKUP(D72,'Prev & Ctrl'!$C$5:$E$30,3,FALSE),IFERROR(VLOOKUP(D72,'Lab dx'!$C$5:$E$17,3,FALSE),IFERROR(VLOOKUP(D72,'Dog popn'!$C$5:$E$17,3,FALSE),IFERROR(VLOOKUP(D72,IEC!$C$5:$E$25,3,FALSE),IFERROR(VLOOKUP(D72,'Cross-cutting issues'!$C$5:$E$16,3,FALSE),(VLOOKUP(D72,Legislation!$C$5:$E$17,3,FALSE))))))))","v":0},{"$f":"IFERROR(VLOOKUP(D72,'Data coll & ax'!$C$5:$F$26,4,FALSE),IFERROR(VLOOKUP(D72,'Prev & Ctrl'!$C$5:$F$30,4,FALSE),IFERROR(VLOOKUP(D72,'Lab dx'!$C$5:$F$17,4,FALSE),IFERROR(VLOOKUP(D72,'Dog popn'!$C$5:$F$17,4,FALSE),IFERROR(VLOOKUP(D72,IEC!$C$5:$F$25,4,FALSE),IFERROR(VLOOKUP(D72,'Cross-cutting issues'!$C$5:$F$16,4,FALSE),(VLOOKUP(D72,Legislation!$C$5:$F$17,4,FALSE))))))))","v":"No official plan in place"}]
[80,2,"IEC","Has the IEC plan been reviewed and updated?",null,{"$f":"IFERROR(VLOOKUP(D73,'Data coll & ax'!$C$5:$E$26,3,FALSE),IFERROR(VLOOKUP(D73,'Prev & Ctrl'!$C$5:$E$30,3,FALSE),IFERROR(VLOOKUP(D73,'Lab dx'!$C$5:$E$17,3,FALSE),IFERROR(VLOOKUP(D73,'Dog popn'!$C$5:$E$17,3,FALSE),IFERROR(VLOOKUP(D73,IEC!$C$5:$E$25,3,FALSE),IFERROR(VLOOKUP(D73,'Cross-cutting issues'!$C$5:$E$16,3,FALSE),(VLOOKUP(D73,Legislation!$C$5:$E$17,3,FALSE))))))))","v":0},{"$f":"IFERROR(VLOOKUP(D73,'Data coll & ax'!$C$5:$F$26,4,FALSE),IFERROR(VLOOKUP(D73,'Prev & Ctrl'!$C$5:$F$30,4,FALSE),IFERROR(VLOOKUP(D73,'Lab dx'!$C$5:$F$17,4,FALSE),IFERROR(VLOOKUP(D73,'Dog popn'!$C$5:$F$17,4,FALSE),IFERROR(VLOOKUP(D73,IEC!$C$5:$F$25,4,FALSE),IFERROR(VLOOKUP(D73,'Cross-cutting issues'!$C$5:$F$16,4,FALSE),(VLOOKUP(D73,Legislation!$C$5:$F$17,4,FALSE))))))))","v":"No official plan in place"}]
[87,2,"IEC","Has training of human and animal health personnel been conducted in most parts of the country?",null,{"$f":"IFERROR(VLOOKUP(D74,'Data coll & ax'!$C$5:$E$26,3,FALSE),IFERROR(VLOOKUP(D74,'Prev & Ctrl'!$C$5:$E$30,3,FALSE),IFERROR(VLOOKUP(D74,'Lab dx'!$C$5:$E$17,3,FALSE),IFERROR(VLOOKUP(D74,'Dog popn'!$C$5:$E$17,3,FALSE),IFERROR(VLOOKUP(D74,IEC!$C$5:$E$25,3,FALSE),IFERROR(VLOOKUP(D74,'Cross-cutting issues'!$C$5:$E$16,3,FALSE),(VLOOKUP(D74,Legislation!$C$5:$E$17,3,FALSE))))))))","v":1},{"$f":"IFERROR(VLOOKUP(D74,'Data coll & ax'!$C$5:$F$26,4,FALSE),IFERROR(VLOOKUP(D74,'Prev & Ctrl'!$C$5:$F$30,4,FALSE),IFERROR(VLOOKUP(D74,'Lab dx'!$C$5:$F$17,4,FALSE),IFERROR(VLOOKUP(D74,'Dog popn'!$C$5:$F$17,4,FALSE),IFERROR(VLOOKUP(D74,IEC!$C$5:$F$25,4,FALSE),IFERROR(VLOOKUP(D74,'Cross-cutting issues'!$C$5:$F$16,4,FALSE),(VLOOKUP(D74,Legislation!$C$5:$F$17,4,FALSE))))))))","v":0}]
[90,2,"IEC","Have small-scale program successes been communicated to authorities/leaders in other parts of the country?",null,{"$f":"IFERROR(VLOOKUP(D75,'Data coll & ax'!$C$5:$E$26,3,FALSE),IFERROR(VLOOKUP(D75,'Prev & Ctrl'!$C$5:$E$30,3,FALSE),IFERROR(VLOOKUP(D75,'Lab dx'!$C$5:$E$17,3,FALSE),IFERROR(VLOOKUP(D75,'Dog popn'!$C$5:$E$17,3,FALSE),IFERROR(VLOOKUP(D75,IEC!$C$5:$E$25,3,FALSE),IFERROR(VLOOKUP(D75,'Cross-cutting issues'!$C$5:$E$16,3,FALSE),(VLOOKUP(D75,Legislation!$C$5:$E$17,3,FALSE))))))))","v":0},{"$f":"IFERROR(VLOOKUP(D75,'Data coll & ax'!$C$5:$F$26,4,FALSE),IFERROR(VLOOKUP(D75,'Prev & Ctrl'!$C$5:$F$30,4,FALSE),IFERROR(VLOOKUP(D75,'Lab dx'!$C$5:$F$17,4,FALSE),IFERROR(VLOOKUP(D75,'Dog popn'!$C$5:$F$17,4,FALSE),IFERROR(VLOOKUP(D75,IEC!$C$5:$F$25,4,FALSE),IFERROR(VLOOKUP(D75,'Cross-cutting issues'!$C$5:$F$16,4,FALSE),(VLOOKUP(D75,Legislation!$C$5:$F$17,4,FALSE))))))))","v":"Successes are not reviewed"}]
[91,2,"IEC","Has an advocacy stakeholder analysis* been done at a national level and have the target audiences been identified?",null,{"$f":"IFERROR(VLOOKUP(D76,'Data coll & ax'!$C$5:$E$26,3,FALSE),IFERROR(VLOOKUP(D76,'Prev & Ctrl'!$C$5:$E$30,3,FALSE),IFERROR(VLOOKUP(D76,'Lab dx'!$C$5:$E$17,3,FALSE),IFERROR(VLOOKUP(D76,'Dog popn'!$C$5:$E$17,3,FALSE),IFERROR(VLOOKUP(D76,IEC!$C$5:$E$25,3,FALSE),IFERROR(VLOOKUP(D76,'Cross-cutting issues'!$C$5:$E$16,3,FALSE),(VLOOKUP(D76,Legislation!$C$5:$E$17,3,FALSE))))))))","v":0},{"$f":"IFERROR(VLOOKUP(D76,'Data coll & ax'!$C$5:$F$26,4,FALSE),IFERROR(VLOOKUP(D76,'Prev & Ctrl'!$C$5:$F$30,4,FALSE),IFERROR(VLOOKUP(D76,'Lab dx'!$C$5:$F$17,4,FALSE),IFERROR(VLOOKUP(D76,'Dog popn'!$C$5:$F$17,4,FALSE),IFERROR(VLOOKUP(D76,IEC!$C$5:$F$25,4,FALSE),IFERROR(VLOOKUP(D76,'Cross-cutting issues'!$C$5:$F$16,4,FALSE),(VLOOKUP(D76,Legislation!$C$5:$F$17,4,FALSE))))))))","v":0}]
[92,2,"IEC","Has an advocacy campaign to national leaders/authorities been undertaken to ensure that a national rabies control strategy is created and properly resourced?","KEY",{"$f":"IFERROR(VLOOKUP(D77,'Data coll & ax'!$C$5:$E$26,3,FALSE),IFERROR(VLOOKUP(D77,'Prev & Ctrl'!$C$5:$E$30,3,FALSE),IFERROR(VLOOKUP(D77,'Lab dx'!$C$5:$E$17,3,FALSE),IFERROR(VLOOKUP(D77,'Dog popn'!$C$5:$E$17,3,FALSE),IFERROR(VLOOKUP(D77,IEC!$C$5:$E$25,3,FALSE),IFERROR(VLOOKUP(D77,'Cross-cutting issues'!$C$5:$E$16,3,FALSE),(VLOOKUP(D77,Legislation!$C$5:$E$17,3,FALSE))))))))","v":0},{"$f":"IFERROR(VLOOKUP(D77,'Data coll & ax'!$C$5:$F$26,4,FALSE),IFERROR(VLOOKUP(D77,'Prev & Ctrl'!$C$5:$F$30,4,FALSE),IFERROR(VLOOKUP(D77,'Lab dx'!$C$5:$F$17,4,FALSE),IFERROR(VLOOKUP(D77,'Dog popn'!$C$5:$F$17,4,FALSE),IFERROR(VLOOKUP(D77,IEC!$C$5:$F$25,4,FALSE),IFERROR(VLOOKUP(D77,'Cross-cutting issues'!$C$5:$F$16,4,FALSE),(VLOOKUP(D77,Legislation!$C$5:$F$17,4,FALSE))))))))","v":0}]
[100,2,"CCI","Are mechanisms for regular intersectoral collaboration in place and are they implemented?",null,{"$f":"IFERROR(VLOOKUP(D78,'Data coll & ax'!$C$5:$E$26,3,FALSE),IFERROR(VLOOKUP(D78,'Prev & Ctrl'!$C$5:$E$30,3,FALSE),IFERROR(VLOOKUP(D78,'Lab dx'!$C$5:$E$17,3,FALSE),IFERROR(VLOOKUP(D78,'Dog popn'!$C$5:$E$17,3,FALSE),IFERROR(VLOOKUP(D78,IEC!$C$5:$E$25,3,FALSE),IFERROR(VLOOKUP(D78,'Cross-cutting issues'!$C$5:$E$16,3,FALSE),(VLOOKUP(D78,Legislation!$C$5:$E$17,3,FALSE))))))))","v":0},{"$f":"IFERROR(VLOOKUP(D78,'Data coll & ax'!$C$5:$F$26,4,FALSE),IFERROR(VLOOKUP(D78,'Prev & Ctrl'!$C$5:$F$30,4,FALSE),IFERROR(VLOOKUP(D78,'Lab dx'!$C$5:$F$17,4,FALSE),IFERROR(VLOOKUP(D78,'Dog popn'!$C$5:$F$17,4,FALSE),IFERROR(VLOOKUP(D78,IEC!$C$5:$F$25,4,FALSE),IFERROR(VLOOKUP(D78,'Cross-cutting issues'!$C$5:$F$16,4,FALSE),(VLOOKUP(D78,Legislation!$C$5:$F$17,4,FALSE))))))))","v":0}]
[101,2,"CCI","Has the contribution and role of  private sector been clarified and shared with other stakeholders?",null,{"$f":"IFERROR(VLOOKUP(D79,'Data coll & ax'!$C$5:$E$26,3,FALSE),IFERROR(VLOOKUP(D79,'Prev & Ctrl'!$C$5:$E$30,3,FALSE),IFERROR(VLOOKUP(D79,'Lab dx'!$C$5:$E$17,3,FALSE),IFERROR(VLOOKUP(D79,'Dog popn'!$C$5:$E$17,3,FALSE),IFERROR(VLOOKUP(D79,IEC!$C$5:$E$25,3,FALSE),IFERROR(VLOOKUP(D79,'Cross-cutting issues'!$C$5:$E$16,3,FALSE),(VLOOKUP(D79,Legislation!$C$5:$E$17,3,FALSE))))))))","v":0},{"$f":"IFERROR(VLOOKUP(D79,'Data coll & ax'!$C$5:$F$26,4,FALSE),IFERROR(VLOOKUP(D79,'Prev & Ctrl'!$C$5:$F$30,4,FALSE),IFERROR(VLOOKUP(D79,'Lab dx'!$C$5:$F$17,4,FALSE),IFERROR(VLOOKUP(D79,'Dog popn'!$C$5:$F$17,4,FALSE),IFERROR(VLOOKUP(D79,IEC!$C$5:$F$25,4,FALSE),IFERROR(VLOOKUP(D79,'Cross-cutting issues'!$C$5:$F$16,4,FALSE),(VLOOKUP(D79,Legislation!$C$5:$F$17,4,FALSE))))))))","v":0}]
[104,2,"CCI","Has a national strategy for rabies prevention, control and eventual elimination been drafted, shared with all relevant stakeholders and finalised?","KEY",{"$f":"IFERROR(VLOOKUP(D80,'Data coll & ax'!$C$5:$E$26,3,FALSE),IFERROR(VLOOKUP(D80,'Prev & Ctrl'!$C$5:$E$30,3,FALSE),IFERROR(VLOOKUP(D80,'Lab dx'!$C$5:$E$17,3,FALSE),IFERROR(VLOOKUP(D80,'Dog popn'!$C$5:$E$17,3,FALSE),IFERROR(VLOOKUP(D80,IEC!$C$5:$E$25,3,FALSE),IFERROR(VLOOKUP(D80,'Cross-cutting issues'!$C$5:$E$16,3,FALSE),(VLOOKUP(D80,Legislation!$C$5:$E$17,3,FALSE))))))))","v":0},{"$f":"IFERROR(VLOOKUP(D80,'Data coll & ax'!$C$5:$F$26,4,FALSE),IFERROR(VLOOKUP(D80,'Prev & Ctrl'!$C$5:$F$30,4,FALSE),IFERROR(VLOOKUP(D80,'Lab dx'!$C$5:$F$17,4,FALSE),IFERROR(VLOOKUP(D80,'Dog popn'!$C$5:$F$17,4,FALSE),IFERROR(VLOOKUP(D80,IEC!$C$5:$F$25,4,FALSE),IFERROR(VLOOKUP(D80,'Cross-cutting issues'!$C$5:$F$16,4,FALSE),(VLOOKUP(D80,Legislation!$C$5:$F$17,4,FALSE))))))))","v":"No national strategy in place"}]
[105,2,"CCI","Have government resources been identified and allocated in support of the national rabies control strategy?  ","KEY",{"$f":"IFERROR(VLOOKUP(D81,'Data coll & ax'!$C$5:$E$26,3,FALSE),IFERROR(VLOOKUP(D81,'Prev & Ctrl'!$C$5:$E$30,3,FALSE),IFERROR(VLOOKUP(D81,'Lab dx'!$C$5:$E$17,3,FALSE),IFERROR(VLOOKUP(D81,'Dog popn'!$C$5:$E$17,3,FALSE),IFERROR(VLOOKUP(D81,IEC!$C$5:$E$25,3,FALSE),IFERROR(VLOOKUP(D81,'Cross-cutting issues'!$C$5:$E$16,3,FALSE),(VLOOKUP(D81,Legislation!$C$5:$E$17,3,FALSE))))))))","v":1},{"$f":"IFERROR(VLOOKUP(D81,'Data coll & ax'!$C$5:$F$26,4,FALSE),IFERROR(VLOOKUP(D81,'Prev & Ctrl'!$C$5:$F$30,4,FALSE),IFERROR(VLOOKUP(D81,'Lab dx'!$C$5:$F$17,4,FALSE),IFERROR(VLOOKUP(D81,'Dog popn'!$C$5:$F$17,4,FALSE),IFERROR(VLOOKUP(D81,IEC!$C$5:$F$25,4,FALSE),IFERROR(VLOOKUP(D81,'Cross-cutting issues'!$C$5:$F$16,4,FALSE),(VLOOKUP(D81,Legislation!$C$5:$F$17,4,FALSE))))))))","v":"Rabies budgeted under the ministrial national budget"}]
[119,2,"LEG","Has legislation been updated to include specifications on the compulsory vaccination of dogs and the international movement of animals? ","KEY",{"$f":"IFERROR(VLOOKUP(D82,'Data coll & ax'!$C$5:$E$26,3,FALSE),IFERROR(VLOOKUP(D82,'Prev & Ctrl'!$C$5:$E$30,3,FALSE),IFERROR(VLOOKUP(D82,'Lab dx'!$C$5:$E$17,3,FALSE),IFERROR(VLOOKUP(D82,'Dog popn'!$C$5:$E$17,3,FALSE),IFERROR(VLOOKUP(D82,IEC!$C$5:$E$25,3,FALSE),IFERROR(VLOOKUP(D82,'Cross-cutting issues'!$C$5:$E$16,3,FALSE),(VLOOKUP(D82,Legislation!$C$5:$E$17,3,FALSE))))))))","v":1},{"$f":"IFERROR(VLOOKUP(D82,'Data coll & ax'!$C$5:$F$26,4,FALSE),IFERROR(VLOOKUP(D82,'Prev & Ctrl'!$C$5:$F$30,4,FALSE),IFERROR(VLOOKUP(D82,'Lab dx'!$C$5:$F$17,4,FALSE),IFERROR(VLOOKUP(D82,'Dog popn'!$C$5:$F$17,4,FALSE),IFERROR(VLOOKUP(D82,IEC!$C$5:$F$25,4,FALSE),IFERROR(VLOOKUP(D82,'Cross-cutting issues'!$C$5:$F$16,4,FALSE),(VLOOKUP(D82,Legislation!$C$5:$F$17,4,FALSE))))))))","v":0}]
[15,3,"DCA","Have field investigations for all suspected human rabies cases been conducted? ","KEY",{"$f":"IFERROR(VLOOKUP(D83,'Data coll & ax'!$C$5:$E$26,3,FALSE),IFERROR(VLOOKUP(D83,'Prev & Ctrl'!$C$5:$E$30,3,FALSE),IFERROR(VLOOKUP(D83,'Lab dx'!$C$5:$E$17,3,FALSE),IFERROR(VLOOKUP(D83,'Dog popn'!$C$5:$E$17,3,FALSE),IFERROR(VLOOKUP(D83,IEC!$C$5:$E$25,3,FALSE),IFERROR(VLOOKUP(D83,'Cross-cutting issues'!$C$5:$E$16,3,FALSE),(VLOOKUP(D83,Legislation!$C$5:$E$17,3,FALSE))))))))","v":0},{"$f":"IFERROR(VLOOKUP(D83,'Data coll & ax'!$C$5:$F$26,4,FALSE),IFERROR(VLOOKUP(D83,'Prev & Ctrl'!$C$5:$F$30,4,FALSE),IFERROR(VLOOKUP(D83,'Lab dx'!$C$5:$F$17,4,FALSE),IFERROR(VLOOKUP(D83,'Dog popn'!$C$5:$F$17,4,FALSE),IFERROR(VLOOKUP(D83,IEC!$C$5:$F$25,4,FALSE),IFERROR(VLOOKUP(D83,'Cross-cutting issues'!$C$5:$F$16,4,FALSE),(VLOOKUP(D83,Legislation!$C$5:$F$17,4,FALSE))))))))","v":0}]
[16,3,"DCA","Is epidemiological evidence available to rule out dog-transmitted human rabies cases?","KEY",{"$f":"IFERROR(VLOOKUP(D84,'Data coll & ax'!$C$5:$E$26,3,FALSE),IFERROR(VLOOKUP(D84,'Prev & Ctrl'!$C$5:$E$30,3,FALSE),IFERROR(VLOOKUP(D84,'Lab dx'!$C$5:$E$17,3,FALSE),IFERROR(VLOOKUP(D84,'Dog popn'!$C$5:$E$17,3,FALSE),IFERROR(VLOOKUP(D84,IEC!$C$5:$E$25,3,FALSE),IFERROR(VLOOKUP(D84,'Cross-cutting issues'!$C$5:$E$16,3,FALSE),(VLOOKUP(D84,Legislation!$C$5:$E$17,3,FALSE))))))))","v":0},{"$f":"IFERROR(VLOOKUP(D84,'Data coll & ax'!$C$5:$F$26,4,FALSE),IFERROR(VLOOKUP(D84,'Prev & Ctrl'!$C$5:$F$30,4,FALSE),IFERROR(VLOOKUP(D84,'Lab dx'!$C$5:$F$17,4,FALSE),IFERROR(VLOOKUP(D84,'Dog popn'!$C$5:$F$17,4,FALSE),IFERROR(VLOOKUP(D84,IEC!$C$5:$F$25,4,FALSE),IFERROR(VLOOKUP(D84,'Cross-cutting issues'!$C$5:$F$16,4,FALSE),(VLOOKUP(D84,Legislation!$C$5:$F$17,4,FALSE))))))))","v":0}]
[17,3,"DCA","Has an advocacy plan been approved by the government for local level implementation?",null,{"$f":"IFERROR(VLOOKUP(D85,'Data coll & ax'!$C$5:$E$26,3,FALSE),IFERROR(VLOOKUP(D85,'Prev & Ctrl'!$C$5:$E$30,3,FALSE),IFERROR(VLOOKUP(D85,'Lab dx'!$C$5:$E$17,3,FALSE),IFERROR(VLOOKUP(D85,'Dog popn'!$C$5:$E$17,3,FALSE),IFERROR(VLOOKUP(D85,IEC!$C$5:$E$25,3,FALSE),IFERROR(VLOOKUP(D85,'Cross-cutting issues'!$C$5:$E$16,3,FALSE),(VLOOKUP(D85,Legislation!$C$5:$E$17,3,FALSE))))))))","v":1},{"$f":"IFERROR(VLOOKUP(D85,'Data coll & ax'!$C$5:$F$26,4,FALSE),IFERROR(VLOOKUP(D85,'Prev & Ctrl'!$C$5:$F$30,4,FALSE),IFERROR(VLOOKUP(D85,'Lab dx'!$C$5:$F$17,4,FALSE),IFERROR(VLOOKUP(D85,'Dog popn'!$C$5:$F$17,4,FALSE),IFERROR(VLOOKUP(D85,IEC!$C$5:$F$25,4,FALSE),IFERROR(VLOOKUP(D85,'Cross-cutting issues'!$C$5:$F$16,4,FALSE),(VLOOKUP(D85,Legislation!$C$5:$F$17,4,FALSE))))))))","v":0}]
[18,3,"DCA","Are field investigations and laboratory confirmations conducted for all suspected rabies outbreaks in dogs?","KEY",{"$f":"IFERROR(VLOOKUP(D86,'Data coll & ax'!$C$5:$E$26,3,FALSE),IFERROR(VLOOKUP(D86,'Prev & Ctrl'!$C$5:$E$30,3,FALSE),IFERROR(VLOOKUP(D86,'Lab dx'!$C$5:$E$17,3,FALSE),IFERROR(VLOOKUP(D86,'Dog popn'!$C$5:$E$17,3,FALSE),IFERROR(VLOOKUP(D86,IEC!$C$5:$E$25,3,FALSE),IFERROR(VLOOKUP(D86,'Cross-cutting issues'!$C$5:$E$16,3,FALSE),(VLOOKUP(D86,Legislation!$C$5:$E$17,3,FALSE))))))))","v":1},{"$f":"IFERROR(VLOOKUP(D86,'Data coll & ax'!$C$5:$F$26,4,FALSE),IFERROR(VLOOKUP(D86,'Prev & Ctrl'!$C$5:$F$30,4,FALSE),IFERROR(VLOOKUP(D86,'Lab dx'!$C$5:$F$17,4,FALSE),IFERROR(VLOOKUP(D86,'Dog popn'!$C$5:$F$17,4,FALSE),IFERROR(VLOOKUP(D86,IEC!$C$5:$F$25,4,FALSE),IFERROR(VLOOKUP(D86,'Cross-cutting issues'!$C$5:$F$16,4,FALSE),(VLOOKUP(D86,Legislation!$C$5:$F$17,4,FALSE))))))))","v":0}]
[21,3,"DCA","Has the collection of local or national health economic and/or other disease prioritization tool data* on rabies control been initiated to make the case for rabies control investment?",null,{"$f":"IFERROR(VLOOKUP(D87,'Data coll & ax'!$C$5:$E$26,3,FALSE),IFERROR(VLOOKUP(D87,'Prev & Ctrl'!$C$5:$E$30,3,FALSE),IFERROR(VLOOKUP(D87,'Lab dx'!$C$5:$E$17,3,FALSE),IFERROR(VLOOKUP(D87,'Dog popn'!$C$5:$E$17,3,FALSE),IFERROR(VLOOKUP(D87,IEC!$C$5:$E$25,3,FALSE),IFERROR(VLOOKUP(D87,'Cross-cutting issues'!$C$5:$E$16,3,FALSE),(VLOOKUP(D87,Legislation!$C$5:$E$17,3,FALSE))))))))","v":0},{"$f":"IFERROR(VLOOKUP(D87,'Data coll & ax'!$C$5:$F$26,4,FALSE),IFERROR(VLOOKUP(D87,'Prev & Ctrl'!$C$5:$F$30,4,FALSE),IFERROR(VLOOKUP(D87,'Lab dx'!$C$5:$F$17,4,FALSE),IFERROR(VLOOKUP(D87,'Dog popn'!$C$5:$F$17,4,FALSE),IFERROR(VLOOKUP(D87,IEC!$C$5:$F$25,4,FALSE),IFERROR(VLOOKUP(D87,'Cross-cutting issues'!$C$5:$F$16,4,FALSE),(VLOOKUP(D87,Legislation!$C$5:$F$17,4,FALSE))))))))","v":0}]
[22,3,"DCA","Have the health economic data and/or other disease prioritization tool analyses been expanded to support further prioritization within the national rabies control programme?",null,{"$f":"IFERROR(VLOOKUP(D88,'Data coll & ax'!$C$5:$E$26,3,FALSE),IFERROR(VLOOKUP(D88,'Prev & Ctrl'!$C$5:$E$30,3,FALSE),IFERROR(VLOOKUP(D88,'Lab dx'!$C$5:$E$17,3,FALSE),IFERROR(VLOOKUP(D88,'Dog popn'!$C$5:$E$17,3,FALSE),IFERROR(VLOOKUP(D88,IEC!$C$5:$E$25,3,FALSE),IFERROR(VLOOKUP(D88,'Cross-cutting issues'!$C$5:$E$16,3,FALSE),(VLOOKUP(D88,Legislation!$C$5:$E$17,3,FALSE))))))))","v":0},{"$f":"IFERROR(VLOOKUP(D88,'Data coll & ax'!$C$5:$F$26,4,FALSE),IFERROR(VLOOKUP(D88,'Prev & Ctrl'!$C$5:$F$30,4,FALSE),IFERROR(VLOOKUP(D88,'Lab dx'!$C$5:$F$17,4,FALSE),IFERROR(VLOOKUP(D88,'Dog popn'!$C$5:$F$17,4,FALSE),IFERROR(VLOOKUP(D88,IEC!$C$5:$F$25,4,FALSE),IFERROR(VLOOKUP(D88,'Cross-cutting issues'!$C$5:$F$16,4,FALSE),(VLOOKUP(D88,Legislation!$C$5:$F$17,4,FALSE))))))))","v":0}]
[28,3,"PCO","Is WHO pre-qualified Pre- and Post- Exposure Prophylaxis available and accessible to high risk and exposed individuals throughout the country?","KEY",{"$f":"IFERROR(VLOOKUP(D89,'Data coll & ax'!$C$5:$E$26,3,FALSE),IFERROR(VLOOKUP(D89,'Prev & Ctrl'!$C$5:$E$30,3,FALSE),IFERROR(VLOOKUP(D89,'Lab dx'!$C$5:$E$17,3,FALSE),IFERROR(VLOOKUP(D89,'Dog popn'!$C$5:$E$17,3,FALSE),IFERROR(VLOOKUP(D89,IEC!$C$5:$E$25,3,FALSE),IFERROR(VLOOKUP(D89,'Cross-cutting issues'!$C$5:$E$16,3,FALSE),(VLOOKUP(D89,Legislation!$C$5:$E$17,3,FALSE))))))))","v":1},{"$f":"IFERROR(VLOOKUP(D89,'Data coll & ax'!$C$5:$F$26,4,FALSE),IFERROR(VLOOKUP(D89,'Prev & Ctrl'!$C$5:$F$30,4,FALSE),IFERROR(VLOOKUP(D89,'Lab dx'!$C$5:$F$17,4,FALSE),IFERROR(VLOOKUP(D89,'Dog popn'!$C$5:$F$17,4,FALSE),IFERROR(VLOOKUP(D89,IEC!$C$5:$F$25,4,FALSE),IFERROR(VLOOKUP(D89,'Cross-cutting issues'!$C$5:$F$16,4,FALSE),(VLOOKUP(D89,Legislation!$C$5:$F$17,4,FALSE))))))))","v":0}]
[34,3,"PCO","Are mass dog vaccination campaigns reaching at least 70% of the total dog population conducted according to the national rabies strategy? ","KEY",{"$f":"IFERROR(VLOOKUP(D90,'Data coll & ax'!$C$5:$E$26,3,FALSE),IFERROR(VLOOKUP(D90,'Prev & Ctrl'!$C$5:$E$30,3,FALSE),IFERROR(VLOOKUP(D90,'Lab dx'!$C$5:$E$17,3,FALSE),IFERROR(VLOOKUP(D90,'Dog popn'!$C$5:$E$17,3,FALSE),IFERROR(VLOOKUP(D90,IEC!$C$5:$E$25,3,FALSE),IFERROR(VLOOKUP(D90,'Cross-cutting issues'!$C$5:$E$16,3,FALSE),(VLOOKUP(D90,Legislation!$C$5:$E$17,3,FALSE))))))))","v":0},{"$f":"IFERROR(VLOOKUP(D90,'Data coll & ax'!$C$5:$F$26,4,FALSE),IFERROR(VLOOKUP(D90,'Prev & Ctrl'!$C$5:$F$30,4,FALSE),IFERROR(VLOOKUP(D90,'Lab dx'!$C$5:$F$17,4,FALSE),IFERROR(VLOOKUP(D90,'Dog popn'!$C$5:$F$17,4,FALSE),IFERROR(VLOOKUP(D90,IEC!$C$5:$F$25,4,FALSE),IFERROR(VLOOKUP(D90,'Cross-cutting issues'!$C$5:$F$16,4,FALSE),(VLOOKUP(D90,Legislation!$C$5:$F$17,4,FALSE))))))))","v":0}]
[35,3,"PCO","Are post-vaccination surveys* in dogs being carried out to evaluate vaccination coverage?","KEY",{"$f":"IFERROR(VLOOKUP(D91,'Data coll & ax'!$C$5:$E$26,3,FALSE),IFERROR(VLOOKUP(D91,'Prev & Ctrl'!$C$5:$E$30,3,FALSE),IFERROR(VLOOKUP(D91,'Lab dx'!$C$5:$E$17,3,FALSE),IFERROR(VLOOKUP(D91,'Dog popn'!$C$5:$E$17,3,FALSE),IFERROR(VLOOKUP(D91,IEC!$C$5:$E$25,3,FALSE),IFERROR(VLOOKUP(D91,'Cross-cutting issues'!$C$5:$E$16,3,FALSE),(VLOOKUP(D91,Legislation!$C$5:$E$17,3,FALSE))))))))","v":0},{"$f":"IFERROR(VLOOKUP(D91,'Data coll & ax'!$C$5:$F$26,4,FALSE),IFERROR(VLOOKUP(D91,'Prev & Ctrl'!$C$5:$F$30,4,FALSE),IFERROR(VLOOKUP(D91,'Lab dx'!$C$5:$F$17,4,FALSE),IFERROR(VLOOKUP(D91,'Dog popn'!$C$5:$F$17,4,FALSE),IFERROR(VLOOKUP(D91,IEC!$C$5:$F$25,4,FALSE),IFERROR(VLOOKUP(D91,'Cross-cutting issues'!$C$5:$F$16,4,FALSE),(VLOOKUP(D91,Legislation!$C$5:$F$17,4,FALSE))))))))","v":0}]
[43,3,"PCO","Is there capacity to conduct field investigations and planned outbreak responses for animal and human rabies cases in the entire country?",null,{"$f":"IFERROR(VLOOKUP(D92,'Data coll & ax'!$C$5:$E$26,3,FALSE),IFERROR(VLOOKUP(D92,'Prev & Ctrl'!$C$5:$E$30,3,FALSE),IFERROR(VLOOKUP(D92,'Lab dx'!$C$5:$E$17,3,FALSE),IFERROR(VLOOKUP(D92,'Dog popn'!$C$5:$E$17,3,FALSE),IFERROR(VLOOKUP(D92,IEC!$C$5:$E$25,3,FALSE),IFERROR(VLOOKUP(D92,'Cross-cutting issues'!$C$5:$E$16,3,FALSE),(VLOOKUP(D92,Legislation!$C$5:$E$17,3,FALSE))))))))","v":1},{"$f":"IFERROR(VLOOKUP(D92,'Data coll & ax'!$C$5:$F$26,4,FALSE),IFERROR(VLOOKUP(D92,'Prev & Ctrl'!$C$5:$F$30,4,FALSE),IFERROR(VLOOKUP(D92,'Lab dx'!$C$5:$F$17,4,FALSE),IFERROR(VLOOKUP(D92,'Dog popn'!$C$5:$F$17,4,FALSE),IFERROR(VLOOKUP(D92,IEC!$C$5:$F$25,4,FALSE),IFERROR(VLOOKUP(D92,'Cross-cutting issues'!$C$5:$F$16,4,FALSE),(VLOOKUP(D92,Legislation!$C$5:$F$17,4,FALSE))))))))","v":0}]
[44,3,"PCO","Have potential rabies-free zones been identified where canine variant cases have been absent for at least a 2 year period?","KEY",{"$f":"IFERROR(VLOOKUP(D93,'Data coll & ax'!$C$5:$E$26,3,FALSE),IFERROR(VLOOKUP(D93,'Prev & Ctrl'!$C$5:$E$30,3,FALSE),IFERROR(VLOOKUP(D93,'Lab dx'!$C$5:$E$17,3,FALSE),IFERROR(VLOOKUP(D93,'Dog popn'!$C$5:$E$17,3,FALSE),IFERROR(VLOOKUP(D93,IEC!$C$5:$E$25,3,FALSE),IFERROR(VLOOKUP(D93,'Cross-cutting issues'!$C$5:$E$16,3,FALSE),(VLOOKUP(D93,Legislation!$C$5:$E$17,3,FALSE))))))))","v":0},{"$f":"IFERROR(VLOOKUP(D93,'Data coll & ax'!$C$5:$F$26,4,FALSE),IFERROR(VLOOKUP(D93,'Prev & Ctrl'!$C$5:$F$30,4,FALSE),IFERROR(VLOOKUP(D93,'Lab dx'!$C$5:$F$17,4,FALSE),IFERROR(VLOOKUP(D93,'Dog popn'!$C$5:$F$17,4,FALSE),IFERROR(VLOOKUP(D93,IEC!$C$5:$F$25,4,FALSE),IFERROR(VLOOKUP(D93,'Cross-cutting issues'!$C$5:$F$16,4,FALSE),(VLOOKUP(D93,Legislation!$C$5:$F$17,4,FALSE))))))))","v":0}]
[45,3,"PCO","Has dialogue been initiated with neighbouring countries to prevent the re-introduction of rabies into designated rabies-free zones?",null,{"$f":"IFERROR(VLOOKUP(D94,'Data coll & ax'!$C$5:$E$26,3,FALSE),IFERROR(VLOOKUP(D94,'Prev & Ctrl'!$C$5:$E$30,3,FALSE),IFERROR(VLOOKUP(D94,'Lab dx'!$C$5:$E$17,3,FALSE),IFERROR(VLOOKUP(D94,'Dog popn'!$C$5:$E$17,3,FALSE),IFERROR(VLOOKUP(D94,IEC!$C$5:$E$25,3,FALSE),IFERROR(VLOOKUP(D94,'Cross-cutting issues'!$C$5:$E$16,3,FALSE),(VLOOKUP(D94,Legislation!$C$5:$E$17,3,FALSE))))))))","v":0},{"$f":"IFERROR(VLOOKUP(D94,'Data coll & ax'!$C$5:$F$26,4,FALSE),IFERROR(VLOOKUP(D94,'Prev & Ctrl'!$C$5:$F$30,4,FALSE),IFERROR(VLOOKUP(D94,'Lab dx'!$C$5:$F$17,4,FALSE),IFERROR(VLOOKUP(D94,'Dog popn'!$C$5:$F$17,4,FALSE),IFERROR(VLOOKUP(D94,IEC!$C$5:$F$25,4,FALSE),IFERROR(VLOOKUP(D94,'Cross-cutting issues'!$C$5:$F$16,4,FALSE),(VLOOKUP(D94,Legislation!$C$5:$F$17,4,FALSE))))))))","v":0}]
[57,3,"LAB","Are wildlife samples submitted for rabies laboratory diagnosis?",null,{"$f":"IFERROR(VLOOKUP(D95,'Data coll & ax'!$C$5:$E$26,3,FALSE),IFERROR(VLOOKUP(D95,'Prev & Ctrl'!$C$5:$E$30,3,FALSE),IFERROR(VLOOKUP(D95,'Lab dx'!$C$5:$E$17,3,FALSE),IFERROR(VLOOKUP(D95,'Dog popn'!$C$5:$E$17,3,FALSE),IFERROR(VLOOKUP(D95,IEC!$C$5:$E$25,3,FALSE),IFERROR(VLOOKUP(D95,'Cross-cutting issues'!$C$5:$E$16,3,FALSE),(VLOOKUP(D95,Legislation!$C$5:$E$17,3,FALSE))))))))","v":1},{"$f":"IFERROR(VLOOKUP(D95,'Data coll & ax'!$C$5:$F$26,4,FALSE),IFERROR(VLOOKUP(D95,'Prev & Ctrl'!$C$5:$F$30,4,FALSE),IFERROR(VLOOKUP(D95,'Lab dx'!$C$5:$F$17,4,FALSE),IFERROR(VLOOKUP(D95,'Dog popn'!$C$5:$F$17,4,FALSE),IFERROR(VLOOKUP(D95,IEC!$C$5:$F$25,4,FALSE),IFERROR(VLOOKUP(D95,'Cross-cutting issues'!$C$5:$F$16,4,FALSE),(VLOOKUP(D95,Legislation!$C$5:$F$17,4,FALSE))))))))","v":0}]
[58,3,"LAB","Is access to reliable laboratory diagnosis available throughout the country for animal samples (and if possible also for human and wildlife samples)?",null,{"$f":"IFERROR(VLOOKUP(D96,'Data coll & ax'!$C$5:$E$26,3,FALSE),IFERROR(VLOOKUP(D96,'Prev & Ctrl'!$C$5:$E$30,3,FALSE),IFERROR(VLOOKUP(D96,'Lab dx'!$C$5:$E$17,3,FALSE),IFERROR(VLOOKUP(D96,'Dog popn'!$C$5:$E$17,3,FALSE),IFERROR(VLOOKUP(D96,IEC!$C$5:$E$25,3,FALSE),IFERROR(VLOOKUP(D96,'Cross-cutting issues'!$C$5:$E$16,3,FALSE),(VLOOKUP(D96,Legislation!$C$5:$E$17,3,FALSE))))))))","v":1},{"$f":"IFERROR(VLOOKUP(D96,'Data coll & ax'!$C$5:$F$26,4,FALSE),IFERROR(VLOOKUP(D96,'Prev & Ctrl'!$C$5:$F$30,4,FALSE),IFERROR(VLOOKUP(D96,'Lab dx'!$C$5:$F$17,4,FALSE),IFERROR(VLOOKUP(D96,'Dog popn'!$C$5:$F$17,4,FALSE),IFERROR(VLOOKUP(D96,IEC!$C$5:$F$25,4,FALSE),IFERROR(VLOOKUP(D96,'Cross-cutting issues'!$C$5:$F$16,4,FALSE),(VLOOKUP(D96,Legislation!$C$5:$F$17,4,FALSE))))))))","v":"CVRI  & UNZAVET SCHOOL LUSAKA"}]
[59,3,"LAB","Is there regular characterization and analysis of circulating rabies virus variants by a national or international laboratory?",null,{"$f":"IFERROR(VLOOKUP(D97,'Data coll & ax'!$C$5:$E$26,3,FALSE),IFERROR(VLOOKUP(D97,'Prev & Ctrl'!$C$5:$E$30,3,FALSE),IFERROR(VLOOKUP(D97,'Lab dx'!$C$5:$E$17,3,FALSE),IFERROR(VLOOKUP(D97,'Dog popn'!$C$5:$E$17,3,FALSE),IFERROR(VLOOKUP(D97,IEC!$C$5:$E$25,3,FALSE),IFERROR(VLOOKUP(D97,'Cross-cutting issues'!$C$5:$E$16,3,FALSE),(VLOOKUP(D97,Legislation!$C$5:$E$17,3,FALSE))))))))","v":0},{"$f":"IFERROR(VLOOKUP(D97,'Data coll & ax'!$C$5:$F$26,4,FALSE),IFERROR(VLOOKUP(D97,'Prev & Ctrl'!$C$5:$F$30,4,FALSE),IFERROR(VLOOKUP(D97,'Lab dx'!$C$5:$F$17,4,FALSE),IFERROR(VLOOKUP(D97,'Dog popn'!$C$5:$F$17,4,FALSE),IFERROR(VLOOKUP(D97,IEC!$C$5:$F$25,4,FALSE),IFERROR(VLOOKUP(D97,'Cross-cutting issues'!$C$5:$F$16,4,FALSE),(VLOOKUP(D97,Legislation!$C$5:$F$17,4,FALSE))))))))","v":0}]
[69,3,"DPM","Has the DPM strategy been assessed and refined based on current dog ecology or KAP surveys?",null,{"$f":"IFERROR(VLOOKUP(D98,'Data coll & ax'!$C$5:$E$26,3,FALSE),IFERROR(VLOOKUP(D98,'Prev & Ctrl'!$C$5:$E$30,3,FALSE),IFERROR(VLOOKUP(D98,'Lab dx'!$C$5:$E$17,3,FALSE),IFERROR(VLOOKUP(D98,'Dog popn'!$C$5:$E$17,3,FALSE),IFERROR(VLOOKUP(D98,IEC!$C$5:$E$25,3,FALSE),IFERROR(VLOOKUP(D98,'Cross-cutting issues'!$C$5:$E$16,3,FALSE),(VLOOKUP(D98,Legislation!$C$5:$E$17,3,FALSE))))))))","v":0},{"$f":"IFERROR(VLOOKUP(D98,'Data coll & ax'!$C$5:$F$26,4,FALSE),IFERROR(VLOOKUP(D98,'Prev & Ctrl'!$C$5:$F$30,4,FALSE),IFERROR(VLOOKUP(D98,'Lab dx'!$C$5:$F$17,4,FALSE),IFERROR(VLOOKUP(D98,'Dog popn'!$C$5:$F$17,4,FALSE),IFERROR(VLOOKUP(D98,IEC!$C$5:$F$25,4,FALSE),IFERROR(VLOOKUP(D98,'Cross-cutting issues'!$C$5:$F$16,4,FALSE),(VLOOKUP(D98,Legislation!$C$5:$F$17,4,FALSE))))))))","v":"No KAP surveys done"}]
[70,3,"DPM","Have rabies awareness campaigns, including responsible dog ownership, been expanded to more areas?",null,{"$f":"IFERROR(VLOOKUP(D99,'Data coll & ax'!$C$5:$E$26,3,FALSE),IFERROR(VLOOKUP(D99,'Prev & Ctrl'!$C$5:$E$30,3,FALSE),IFERROR(VLOOKUP(D99,'Lab dx'!$C$5:$E$17,3,FALSE),IFERROR(VLOOKUP(D99,'Dog popn'!$C$5:$E$17,3,FALSE),IFERROR(VLOOKUP(D99,IEC!$C$5:$E$25,3,FALSE),IFERROR(VLOOKUP(D99,'Cross-cutting issues'!$C$5:$E$16,3,FALSE),(VLOOKUP(D99,Legislation!$C$5:$E$17,3,FALSE))))))))","v":1},{"$f":"IFERROR(VLOOKUP(D99,'Data coll & ax'!$C$5:$F$26,4,FALSE),IFERROR(VLOOKUP(D99,'Prev & Ctrl'!$C$5:$F$30,4,FALSE),IFERROR(VLOOKUP(D99,'Lab dx'!$C$5:$F$17,4,FALSE),IFERROR(VLOOKUP(D99,'Dog popn'!$C$5:$F$17,4,FALSE),IFERROR(VLOOKUP(D99,IEC!$C$5:$F$25,4,FALSE),IFERROR(VLOOKUP(D99,'Cross-cutting issues'!$C$5:$F$16,4,FALSE),(VLOOKUP(D99,Legislation!$C$5:$F$17,4,FALSE))))))))","v":0}]
[71,3,"DPM","Has veterinary and animal technician training been completed across most of country?",null,{"$f":"IFERROR(VLOOKUP(D100,'Data coll & ax'!$C$5:$E$26,3,FALSE),IFERROR(VLOOKUP(D100,'Prev & Ctrl'!$C$5:$E$30,3,FALSE),IFERROR(VLOOKUP(D100,'Lab dx'!$C$5:$E$17,3,FALSE),IFERROR(VLOOKUP(D100,'Dog popn'!$C$5:$E$17,3,FALSE),IFERROR(VLOOKUP(D100,IEC!$C$5:$E$25,3,FALSE),IFERROR(VLOOKUP(D100,'Cross-cutting issues'!$C$5:$E$16,3,FALSE),(VLOOKUP(D100,Legislation!$C$5:$E$17,3,FALSE))))))))","v":1},{"$f":"IFERROR(VLOOKUP(D100,'Data coll & ax'!$C$5:$F$26,4,FALSE),IFERROR(VLOOKUP(D100,'Prev & Ctrl'!$C$5:$F$30,4,FALSE),IFERROR(VLOOKUP(D100,'Lab dx'!$C$5:$F$17,4,FALSE),IFERROR(VLOOKUP(D100,'Dog popn'!$C$5:$F$17,4,FALSE),IFERROR(VLOOKUP(D100,IEC!$C$5:$F$25,4,FALSE),IFERROR(VLOOKUP(D100,'Cross-cutting issues'!$C$5:$F$16,4,FALSE),(VLOOKUP(D100,Legislation!$C$5:$F$17,4,FALSE))))))))","v":0}]
[72,3,"DPM","Has the dog population management strategy been implemented nationwide?",null,{"$f":"IFERROR(VLOOKUP(D101,'Data coll & ax'!$C$5:$E$26,3,FALSE),IFERROR(VLOOKUP(D101,'Prev & Ctrl'!$C$5:$E$30,3,FALSE),IFERROR(VLOOKUP(D101,'Lab dx'!$C$5:$E$17,3,FALSE),IFERROR(VLOOKUP(D101,'Dog popn'!$C$5:$E$17,3,FALSE),IFERROR(VLOOKUP(D101,IEC!$C$5:$E$25,3,FALSE),IFERROR(VLOOKUP(D101,'Cross-cutting issues'!$C$5:$E$16,3,FALSE),(VLOOKUP(D101,Legislation!$C$5:$E$17,3,FALSE))))))))","v":0},{"$f":"IFERROR(VLOOKUP(D101,'Data coll & ax'!$C$5:$F$26,4,FALSE),IFERROR(VLOOKUP(D101,'Prev & Ctrl'!$C$5:$F$30,4,FALSE),IFERROR(VLOOKUP(D101,'Lab dx'!$C$5:$F$17,4,FALSE),IFERROR(VLOOKUP(D101,'Dog popn'!$C$5:$F$17,4,FALSE),IFERROR(VLOOKUP(D101,IEC!$C$5:$F$25,4,FALSE),IFERROR(VLOOKUP(D101,'Cross-cutting issues'!$C$5:$F$16,4,FALSE),(VLOOKUP(D101,Legislation!$C$5:$F$17,4,FALSE))))))))","v":"Need for DPM strategy to be developed"}]
[81,3,"IEC","Has the IEC plan been integrated into the national rabies strategy and implemented at national level?","KEY",{"$f":"IFERROR(VLOOKUP(D102,'Data coll & ax'!$C$5:$E$26,3,FALSE),IFERROR(VLOOKUP(D102,'Prev & Ctrl'!$C$5:$E$30,3,FALSE),IFERROR(VLOOKUP(D102,'Lab dx'!$C$5:$E$17,3,FALSE),IFERROR(VLOOKUP(D102,'Dog popn'!$C$5:$E$17,3,FALSE),IFERROR(VLOOKUP(D102,IEC!$C$5:$E$25,3,FALSE),IFERROR(VLOOKUP(D102,'Cross-cutting issues'!$C$5:$E$16,3,FALSE),(VLOOKUP(D102,Legislation!$C$5:$E$17,3,FALSE))))))))","v":0},{"$f":"IFERROR(VLOOKUP(D102,'Data coll & ax'!$C$5:$F$26,4,FALSE),IFERROR(VLOOKUP(D102,'Prev & Ctrl'!$C$5:$F$30,4,FALSE),IFERROR(VLOOKUP(D102,'Lab dx'!$C$5:$F$17,4,FALSE),IFERROR(VLOOKUP(D102,'Dog popn'!$C$5:$F$17,4,FALSE),IFERROR(VLOOKUP(D102,IEC!$C$5:$F$25,4,FALSE),IFERROR(VLOOKUP(D102,'Cross-cutting issues'!$C$5:$F$16,4,FALSE),(VLOOKUP(D102,Legislation!$C$5:$F$17,4,FALSE))))))))","v":0}]
[93,3,"IEC","Have human rabies free zones been declared publicly?","KEY",{"$f":"IFERROR(VLOOKUP(D103,'Data coll & ax'!$C$5:$E$26,3,FALSE),IFERROR(VLOOKUP(D103,'Prev & Ctrl'!$C$5:$E$30,3,FALSE),IFERROR(VLOOKUP(D103,'Lab dx'!$C$5:$E$17,3,FALSE),IFERROR(VLOOKUP(D103,'Dog popn'!$C$5:$E$17,3,FALSE),IFERROR(VLOOKUP(D103,IEC!$C$5:$E$25,3,FALSE),IFERROR(VLOOKUP(D103,'Cross-cutting issues'!$C$5:$E$16,3,FALSE),(VLOOKUP(D103,Legislation!$C$5:$E$17,3,FALSE))))))))","v":0},{"$f":"IFERROR(VLOOKUP(D103,'Data coll & ax'!$C$5:$F$26,4,FALSE),IFERROR(VLOOKUP(D103,'Prev & Ctrl'!$C$5:$F$30,4,FALSE),IFERROR(VLOOKUP(D103,'Lab dx'!$C$5:$F$17,4,FALSE),IFERROR(VLOOKUP(D103,'Dog popn'!$C$5:$F$17,4,FALSE),IFERROR(VLOOKUP(D103,IEC!$C$5:$F$25,4,FALSE),IFERROR(VLOOKUP(D103,'Cross-cutting issues'!$C$5:$F$16,4,FALSE),(VLOOKUP(D103,Legislation!$C$5:$F$17,4,FALSE))))))))","v":0}]
[106,3,"CCI","Has the national strategy been refined based on monitoring and evaluation? ",null,{"$f":"IFERROR(VLOOKUP(D104,'Data coll & ax'!$C$5:$E$26,3,FALSE),IFERROR(VLOOKUP(D104,'Prev & Ctrl'!$C$5:$E$30,3,FALSE),IFERROR(VLOOKUP(D104,'Lab dx'!$C$5:$E$17,3,FALSE),IFERROR(VLOOKUP(D104,'Dog popn'!$C$5:$E$17,3,FALSE),IFERROR(VLOOKUP(D104,IEC!$C$5:$E$25,3,FALSE),IFERROR(VLOOKUP(D104,'Cross-cutting issues'!$C$5:$E$16,3,FALSE),(VLOOKUP(D104,Legislation!$C$5:$E$17,3,FALSE))))))))","v":0},{"$f":"IFERROR(VLOOKUP(D104,'Data coll & ax'!$C$5:$F$26,4,FALSE),IFERROR(VLOOKUP(D104,'Prev & Ctrl'!$C$5:$F$30,4,FALSE),IFERROR(VLOOKUP(D104,'Lab dx'!$C$5:$F$17,4,FALSE),IFERROR(VLOOKUP(D104,'Dog popn'!$C$5:$F$17,4,FALSE),IFERROR(VLOOKUP(D104,IEC!$C$5:$F$25,4,FALSE),IFERROR(VLOOKUP(D104,'Cross-cutting issues'!$C$5:$F$16,4,FALSE),(VLOOKUP(D104,Legislation!$C$5:$F$17,4,FALSE))))))))","v":0}]
[120,3,"LEG","Is the relevant legislation enforced at the national level?",null,{"$f":"IFERROR(VLOOKUP(D105,'Data coll & ax'!$C$5:$E$26,3,FALSE),IFERROR(VLOOKUP(D105,'Prev & Ctrl'!$C$5:$E$30,3,FALSE),IFERROR(VLOOKUP(D105,'Lab dx'!$C$5:$E$17,3,FALSE),IFERROR(VLOOKUP(D105,'Dog popn'!$C$5:$E$17,3,FALSE),IFERROR(VLOOKUP(D105,IEC!$C$5:$E$25,3,FALSE),IFERROR(VLOOKUP(D105,'Cross-cutting issues'!$C$5:$E$16,3,FALSE),(VLOOKUP(D105,Legislation!$C$5:$E$17,3,FALSE))))))))","v":1},{"$f":"IFERROR(VLOOKUP(D105,'Data coll & ax'!$C$5:$F$26,4,FALSE),IFERROR(VLOOKUP(D105,'Prev & Ctrl'!$C$5:$F$30,4,FALSE),IFERROR(VLOOKUP(D105,'Lab dx'!$C$5:$F$17,4,FALSE),IFERROR(VLOOKUP(D105,'Dog popn'!$C$5:$F$17,4,FALSE),IFERROR(VLOOKUP(D105,IEC!$C$5:$F$25,4,FALSE),IFERROR(VLOOKUP(D105,'Cross-cutting issues'!$C$5:$F$16,4,FALSE),(VLOOKUP(D105,Legislation!$C$5:$F$17,4,FALSE))))))))","v":0}]
[19,4,"DCA","Are existing surveillance activities for all suspected cases in humans maintained in the country?","KEY",{"$f":"IFERROR(VLOOKUP(D106,'Data coll & ax'!$C$5:$E$26,3,FALSE),IFERROR(VLOOKUP(D106,'Prev & Ctrl'!$C$5:$E$30,3,FALSE),IFERROR(VLOOKUP(D106,'Lab dx'!$C$5:$E$17,3,FALSE),IFERROR(VLOOKUP(D106,'Dog popn'!$C$5:$E$17,3,FALSE),IFERROR(VLOOKUP(D106,IEC!$C$5:$E$25,3,FALSE),IFERROR(VLOOKUP(D106,'Cross-cutting issues'!$C$5:$E$16,3,FALSE),(VLOOKUP(D106,Legislation!$C$5:$E$17,3,FALSE))))))))","v":0},{"$f":"IFERROR(VLOOKUP(D106,'Data coll & ax'!$C$5:$F$26,4,FALSE),IFERROR(VLOOKUP(D106,'Prev & Ctrl'!$C$5:$F$30,4,FALSE),IFERROR(VLOOKUP(D106,'Lab dx'!$C$5:$F$17,4,FALSE),IFERROR(VLOOKUP(D106,'Dog popn'!$C$5:$F$17,4,FALSE),IFERROR(VLOOKUP(D106,IEC!$C$5:$F$25,4,FALSE),IFERROR(VLOOKUP(D106,'Cross-cutting issues'!$C$5:$F$16,4,FALSE),(VLOOKUP(D106,Legislation!$C$5:$F$17,4,FALSE))))))))","v":0}]
[20,4,"DCA","Has the epidemiological data from the routine surveillance of all animals (working animals, livestock and wildlife) been used to refine the national rabies strategy?","KEY",{"$f":"IFERROR(VLOOKUP(D107,'Data coll & ax'!$C$5:$E$26,3,FALSE),IFERROR(VLOOKUP(D107,'Prev & Ctrl'!$C$5:$E$30,3,FALSE),IFERROR(VLOOKUP(D107,'Lab dx'!$C$5:$E$17,3,FALSE),IFERROR(VLOOKUP(D107,'Dog popn'!$C$5:$E$17,3,FALSE),IFERROR(VLOOKUP(D107,IEC!$C$5:$E$25,3,FALSE),IFERROR(VLOOKUP(D107,'Cross-cutting issues'!$C$5:$E$16,3,FALSE),(VLOOKUP(D107,Legislation!$C$5:$E$17,3,FALSE))))))))","v":0},{"$f":"IFERROR(VLOOKUP(D107,'Data coll & ax'!$C$5:$F$26,4,FALSE),IFERROR(VLOOKUP(D107,'Prev & Ctrl'!$C$5:$F$30,4,FALSE),IFERROR(VLOOKUP(D107,'Lab dx'!$C$5:$F$17,4,FALSE),IFERROR(VLOOKUP(D107,'Dog popn'!$C$5:$F$17,4,FALSE),IFERROR(VLOOKUP(D107,IEC!$C$5:$F$25,4,FALSE),IFERROR(VLOOKUP(D107,'Cross-cutting issues'!$C$5:$F$16,4,FALSE),(VLOOKUP(D107,Legislation!$C$5:$F$17,4,FALSE))))))))","v":0}]
[36,4,"PCO","Are dog vaccination campaigns maintained in zones where dog rabies is still present or where otherwise justified (e.g. risk of introduction)?","KEY",{"$f":"IFERROR(VLOOKUP(D108,'Data coll & ax'!$C$5:$E$26,3,FALSE),IFERROR(VLOOKUP(D108,'Prev & Ctrl'!$C$5:$E$30,3,FALSE),IFERROR(VLOOKUP(D108,'Lab dx'!$C$5:$E$17,3,FALSE),IFERROR(VLOOKUP(D108,'Dog popn'!$C$5:$E$17,3,FALSE),IFERROR(VLOOKUP(D108,IEC!$C$5:$E$25,3,FALSE),IFERROR(VLOOKUP(D108,'Cross-cutting issues'!$C$5:$E$16,3,FALSE),(VLOOKUP(D108,Legislation!$C$5:$E$17,3,FALSE))))))))","v":1},{"$f":"IFERROR(VLOOKUP(D108,'Data coll & ax'!$C$5:$F$26,4,FALSE),IFERROR(VLOOKUP(D108,'Prev & Ctrl'!$C$5:$F$30,4,FALSE),IFERROR(VLOOKUP(D108,'Lab dx'!$C$5:$F$17,4,FALSE),IFERROR(VLOOKUP(D108,'Dog popn'!$C$5:$F$17,4,FALSE),IFERROR(VLOOKUP(D108,IEC!$C$5:$F$25,4,FALSE),IFERROR(VLOOKUP(D108,'Cross-cutting issues'!$C$5:$F$16,4,FALSE),(VLOOKUP(D108,Legislation!$C$5:$F$17,4,FALSE))))))))","v":0}]
[46,4,"PCO","Has freedom from dog-transmitted rabies in the entire country been verified by the absence of canine variant cases for at least a 2 year period?","KEY",{"$f":"IFERROR(VLOOKUP(D109,'Data coll & ax'!$C$5:$E$26,3,FALSE),IFERROR(VLOOKUP(D109,'Prev & Ctrl'!$C$5:$E$30,3,FALSE),IFERROR(VLOOKUP(D109,'Lab dx'!$C$5:$E$17,3,FALSE),IFERROR(VLOOKUP(D109,'Dog popn'!$C$5:$E$17,3,FALSE),IFERROR(VLOOKUP(D109,IEC!$C$5:$E$25,3,FALSE),IFERROR(VLOOKUP(D109,'Cross-cutting issues'!$C$5:$E$16,3,FALSE),(VLOOKUP(D109,Legislation!$C$5:$E$17,3,FALSE))))))))","v":0},{"$f":"IFERROR(VLOOKUP(D109,'Data coll & ax'!$C$5:$F$26,4,FALSE),IFERROR(VLOOKUP(D109,'Prev & Ctrl'!$C$5:$F$30,4,FALSE),IFERROR(VLOOKUP(D109,'Lab dx'!$C$5:$F$17,4,FALSE),IFERROR(VLOOKUP(D109,'Dog popn'!$C$5:$F$17,4,FALSE),IFERROR(VLOOKUP(D109,IEC!$C$5:$F$25,4,FALSE),IFERROR(VLOOKUP(D109,'Cross-cutting issues'!$C$5:$F$16,4,FALSE),(VLOOKUP(D109,Legislation!$C$5:$F$17,4,FALSE))))))))","v":0}]
[47,4,"PCO","Has an emergency response/contingency plan been developed to address any reintroduced case of animal rabies involving a canine variant?","KEY",{"$f":"IFERROR(VLOOKUP(D110,'Data coll & ax'!$C$5:$E$26,3,FALSE),IFERROR(VLOOKUP(D110,'Prev & Ctrl'!$C$5:$E$30,3,FALSE),IFERROR(VLOOKUP(D110,'Lab dx'!$C$5:$E$17,3,FALSE),IFERROR(VLOOKUP(D110,'Dog popn'!$C$5:$E$17,3,FALSE),IFERROR(VLOOKUP(D110,IEC!$C$5:$E$25,3,FALSE),IFERROR(VLOOKUP(D110,'Cross-cutting issues'!$C$5:$E$16,3,FALSE),(VLOOKUP(D110,Legislation!$C$5:$E$17,3,FALSE))))))))","v":0},{"$f":"IFERROR(VLOOKUP(D110,'Data coll & ax'!$C$5:$F$26,4,FALSE),IFERROR(VLOOKUP(D110,'Prev & Ctrl'!$C$5:$F$30,4,FALSE),IFERROR(VLOOKUP(D110,'Lab dx'!$C$5:$F$17,4,FALSE),IFERROR(VLOOKUP(D110,'Dog popn'!$C$5:$F$17,4,FALSE),IFERROR(VLOOKUP(D110,IEC!$C$5:$F$25,4,FALSE),IFERROR(VLOOKUP(D110,'Cross-cutting issues'!$C$5:$F$16,4,FALSE),(VLOOKUP(D110,Legislation!$C$5:$F$17,4,FALSE))))))))","v":0}]
[60,4,"LAB","Is there maintenance of existing surveillance activities, including ongoing laboratory investigation, for all suspected cases in dogs in the country?","KEY",{"$f":"IFERROR(VLOOKUP(D111,'Data coll & ax'!$C$5:$E$26,3,FALSE),IFERROR(VLOOKUP(D111,'Prev & Ctrl'!$C$5:$E$30,3,FALSE),IFERROR(VLOOKUP(D111,'Lab dx'!$C$5:$E$17,3,FALSE),IFERROR(VLOOKUP(D111,'Dog popn'!$C$5:$E$17,3,FALSE),IFERROR(VLOOKUP(D111,IEC!$C$5:$E$25,3,FALSE),IFERROR(VLOOKUP(D111,'Cross-cutting issues'!$C$5:$E$16,3,FALSE),(VLOOKUP(D111,Legislation!$C$5:$E$17,3,FALSE))))))))","v":0},{"$f":"IFERROR(VLOOKUP(D111,'Data coll & ax'!$C$5:$F$26,4,FALSE),IFERROR(VLOOKUP(D111,'Prev & Ctrl'!$C$5:$F$30,4,FALSE),IFERROR(VLOOKUP(D111,'Lab dx'!$C$5:$F$17,4,FALSE),IFERROR(VLOOKUP(D111,'Dog popn'!$C$5:$F$17,4,FALSE),IFERROR(VLOOKUP(D111,IEC!$C$5:$F$25,4,FALSE),IFERROR(VLOOKUP(D111,'Cross-cutting issues'!$C$5:$F$16,4,FALSE),(VLOOKUP(D111,Legislation!$C$5:$F$17,4,FALSE))))))))","v":0}]
[73,4,"DPM","Have dog population management and responsible dog ownership campaigns been continued after the elimination of canine-mediated human rabies?",null,{"$f":"IFERROR(VLOOKUP(D112,'Data coll & ax'!$C$5:$E$26,3,FALSE),IFERROR(VLOOKUP(D112,'Prev & Ctrl'!$C$5:$E$30,3,FALSE),IFERROR(VLOOKUP(D112,'Lab dx'!$C$5:$E$17,3,FALSE),IFERROR(VLOOKUP(D112,'Dog popn'!$C$5:$E$17,3,FALSE),IFERROR(VLOOKUP(D112,IEC!$C$5:$E$25,3,FALSE),IFERROR(VLOOKUP(D112,'Cross-cutting issues'!$C$5:$E$16,3,FALSE),(VLOOKUP(D112,Legislation!$C$5:$E$17,3,FALSE))))))))","v":1},{"$f":"IFERROR(VLOOKUP(D112,'Data coll & ax'!$C$5:$F$26,4,FALSE),IFERROR(VLOOKUP(D112,'Prev & Ctrl'!$C$5:$F$30,4,FALSE),IFERROR(VLOOKUP(D112,'Lab dx'!$C$5:$F$17,4,FALSE),IFERROR(VLOOKUP(D112,'Dog popn'!$C$5:$F$17,4,FALSE),IFERROR(VLOOKUP(D112,IEC!$C$5:$F$25,4,FALSE),IFERROR(VLOOKUP(D112,'Cross-cutting issues'!$C$5:$F$16,4,FALSE),(VLOOKUP(D112,Legislation!$C$5:$F$17,4,FALSE))))))))","v":0}]
[94,4,"IEC","Has national freedom from dog-transmitted rabies been publically declared? ","KEY",{"$f":"IFERROR(VLOOKUP(D113,'Data coll & ax'!$C$5:$E$26,3,FALSE),IFERROR(VLOOKUP(D113,'Prev & Ctrl'!$C$5:$E$30,3,FALSE),IFERROR(VLOOKUP(D113,'Lab dx'!$C$5:$E$17,3,FALSE),IFERROR(VLOOKUP(D113,'Dog popn'!$C$5:$E$17,3,FALSE),IFERROR(VLOOKUP(D113,IEC!$C$5:$E$25,3,FALSE),IFERROR(VLOOKUP(D113,'Cross-cutting issues'!$C$5:$E$16,3,FALSE),(VLOOKUP(D113,Legislation!$C$5:$E$17,3,FALSE))))))))","v":0},{"$f":"IFERROR(VLOOKUP(D113,'Data coll & ax'!$C$5:$F$26,4,FALSE),IFERROR(VLOOKUP(D113,'Prev & Ctrl'!$C$5:$F$30,4,FALSE),IFERROR(VLOOKUP(D113,'Lab dx'!$C$5:$F$17,4,FALSE),IFERROR(VLOOKUP(D113,'Dog popn'!$C$5:$F$17,4,FALSE),IFERROR(VLOOKUP(D113,IEC!$C$5:$F$25,4,FALSE),IFERROR(VLOOKUP(D113,'Cross-cutting issues'!$C$5:$F$16,4,FALSE),(VLOOKUP(D113,Legislation!$C$5:$F$17,4,FALSE))))))))","v":0}]
[95,4,"IEC","Has national freedom from canine-mediated human rabies been publically declared? ",null,{"$f":"IFERROR(VLOOKUP(D114,'Data coll & ax'!$C$5:$E$26,3,FALSE),IFERROR(VLOOKUP(D114,'Prev & Ctrl'!$C$5:$E$30,3,FALSE),IFERROR(VLOOKUP(D114,'Lab dx'!$C$5:$E$17,3,FALSE),IFERROR(VLOOKUP(D114,'Dog popn'!$C$5:$E$17,3,FALSE),IFERROR(VLOOKUP(D114,IEC!$C$5:$E$25,3,FALSE),IFERROR(VLOOKUP(D114,'Cross-cutting issues'!$C$5:$E$16,3,FALSE),(VLOOKUP(D114,Legislation!$C$5:$E$17,3,FALSE))))))))","v":0},{"$f":"IFERROR(VLOOKUP(D114,'Data coll & ax'!$C$5:$F$26,4,FALSE),IFERROR(VLOOKUP(D114,'Prev & Ctrl'!$C$5:$F$30,4,FALSE),IFERROR(VLOOKUP(D114,'Lab dx'!$C$5:$F$17,4,FALSE),IFERROR(VLOOKUP(D114,'Dog popn'!$C$5:$F$17,4,FALSE),IFERROR(VLOOKUP(D114,IEC!$C$5:$F$25,4,FALSE),IFERROR(VLOOKUP(D114,'Cross-cutting issues'!$C$5:$F$16,4,FALSE),(VLOOKUP(D114,Legislation!$C$5:$F$17,4,FALSE))))))))","v":0}]
[107,4,"CCI","Have veterinary border inspection and quarantine measures been fully implemented in accordance with national regulations?",null,{"$f":"IFERROR(VLOOKUP(D115,'Data coll & ax'!$C$5:$E$26,3,FALSE),IFERROR(VLOOKUP(D115,'Prev & Ctrl'!$C$5:$E$30,3,FALSE),IFERROR(VLOOKUP(D115,'Lab dx'!$C$5:$E$17,3,FALSE),IFERROR(VLOOKUP(D115,'Dog popn'!$C$5:$E$17,3,FALSE),IFERROR(VLOOKUP(D115,IEC!$C$5:$E$25,3,FALSE),IFERROR(VLOOKUP(D115,'Cross-cutting issues'!$C$5:$E$16,3,FALSE),(VLOOKUP(D115,Legislation!$C$5:$E$17,3,FALSE))))))))","v":1},{"$f":"IFERROR(VLOOKUP(D115,'Data coll & ax'!$C$5:$F$26,4,FALSE),IFERROR(VLOOKUP(D115,'Prev & Ctrl'!$C$5:$F$30,4,FALSE),IFERROR(VLOOKUP(D115,'Lab dx'!$C$5:$F$17,4,FALSE),IFERROR(VLOOKUP(D115,'Dog popn'!$C$5:$F$17,4,FALSE),IFERROR(VLOOKUP(D115,IEC!$C$5:$F$25,4,FALSE),IFERROR(VLOOKUP(D115,'Cross-cutting issues'!$C$5:$F$16,4,FALSE),(VLOOKUP(D115,Legislation!$C$5:$F$17,4,FALSE))))))))","v":"Import permits issuance done according to national regulations"}]
[29,5,"PCO","Have modified protocols for PEP administration for rabies-free areas been implemented?","KEY",{"$f":"IFERROR(VLOOKUP(D116,'Data coll & ax'!$C$5:$E$26,3,FALSE),IFERROR(VLOOKUP(D116,'Prev & Ctrl'!$C$5:$E$30,3,FALSE),IFERROR(VLOOKUP(D116,'Lab dx'!$C$5:$E$17,3,FALSE),IFERROR(VLOOKUP(D116,'Dog popn'!$C$5:$E$17,3,FALSE),IFERROR(VLOOKUP(D116,IEC!$C$5:$E$25,3,FALSE),IFERROR(VLOOKUP(D116,'Cross-cutting issues'!$C$5:$E$16,3,FALSE),(VLOOKUP(D116,Legislation!$C$5:$E$17,3,FALSE))))))))","v":0},{"$f":"IFERROR(VLOOKUP(D116,'Data coll & ax'!$C$5:$F$26,4,FALSE),IFERROR(VLOOKUP(D116,'Prev & Ctrl'!$C$5:$F$30,4,FALSE),IFERROR(VLOOKUP(D116,'Lab dx'!$C$5:$F$17,4,FALSE),IFERROR(VLOOKUP(D116,'Dog popn'!$C$5:$F$17,4,FALSE),IFERROR(VLOOKUP(D116,IEC!$C$5:$F$25,4,FALSE),IFERROR(VLOOKUP(D116,'Cross-cutting issues'!$C$5:$F$16,4,FALSE),(VLOOKUP(D116,Legislation!$C$5:$F$17,4,FALSE))))))))","v":0}]
[37,5,"PCO","Based on risk assessments, are dog vaccination campaigns being maintained where justified?","KEY",{"$f":"IFERROR(VLOOKUP(D117,'Data coll & ax'!$C$5:$E$26,3,FALSE),IFERROR(VLOOKUP(D117,'Prev & Ctrl'!$C$5:$E$30,3,FALSE),IFERROR(VLOOKUP(D117,'Lab dx'!$C$5:$E$17,3,FALSE),IFERROR(VLOOKUP(D117,'Dog popn'!$C$5:$E$17,3,FALSE),IFERROR(VLOOKUP(D117,IEC!$C$5:$E$25,3,FALSE),IFERROR(VLOOKUP(D117,'Cross-cutting issues'!$C$5:$E$16,3,FALSE),(VLOOKUP(D117,Legislation!$C$5:$E$17,3,FALSE))))))))","v":1},{"$f":"IFERROR(VLOOKUP(D117,'Data coll & ax'!$C$5:$F$26,4,FALSE),IFERROR(VLOOKUP(D117,'Prev & Ctrl'!$C$5:$F$30,4,FALSE),IFERROR(VLOOKUP(D117,'Lab dx'!$C$5:$F$17,4,FALSE),IFERROR(VLOOKUP(D117,'Dog popn'!$C$5:$F$17,4,FALSE),IFERROR(VLOOKUP(D117,IEC!$C$5:$F$25,4,FALSE),IFERROR(VLOOKUP(D117,'Cross-cutting issues'!$C$5:$F$16,4,FALSE),(VLOOKUP(D117,Legislation!$C$5:$F$17,4,FALSE))))))))","v":0}]
[48,5,"PCO","Has the capacity for outbreak and re-introduction response been maintained?","KEY",{"$f":"IFERROR(VLOOKUP(D118,'Data coll & ax'!$C$5:$E$26,3,FALSE),IFERROR(VLOOKUP(D118,'Prev & Ctrl'!$C$5:$E$30,3,FALSE),IFERROR(VLOOKUP(D118,'Lab dx'!$C$5:$E$17,3,FALSE),IFERROR(VLOOKUP(D118,'Dog popn'!$C$5:$E$17,3,FALSE),IFERROR(VLOOKUP(D118,IEC!$C$5:$E$25,3,FALSE),IFERROR(VLOOKUP(D118,'Cross-cutting issues'!$C$5:$E$16,3,FALSE),(VLOOKUP(D118,Legislation!$C$5:$E$17,3,FALSE))))))))","v":0},{"$f":"IFERROR(VLOOKUP(D118,'Data coll & ax'!$C$5:$F$26,4,FALSE),IFERROR(VLOOKUP(D118,'Prev & Ctrl'!$C$5:$F$30,4,FALSE),IFERROR(VLOOKUP(D118,'Lab dx'!$C$5:$F$17,4,FALSE),IFERROR(VLOOKUP(D118,'Dog popn'!$C$5:$F$17,4,FALSE),IFERROR(VLOOKUP(D118,IEC!$C$5:$F$25,4,FALSE),IFERROR(VLOOKUP(D118,'Cross-cutting issues'!$C$5:$F$16,4,FALSE),(VLOOKUP(D118,Legislation!$C$5:$F$17,4,FALSE))))))))","v":0}]
[61,5,"LAB","Are there on-going laboratory investigations of all suspected cases in domestic and wild animal species in the country?","KEY",{"$f":"IFERROR(VLOOKUP(D119,'Data coll & ax'!$C$5:$E$26,3,FALSE),IFERROR(VLOOKUP(D119,'Prev & Ctrl'!$C$5:$E$30,3,FALSE),IFERROR(VLOOKUP(D119,'Lab dx'!$C$5:$E$17,3,FALSE),IFERROR(VLOOKUP(D119,'Dog popn'!$C$5:$E$17,3,FALSE),IFERROR(VLOOKUP(D119,IEC!$C$5:$E$25,3,FALSE),IFERROR(VLOOKUP(D119,'Cross-cutting issues'!$C$5:$E$16,3,FALSE),(VLOOKUP(D119,Legislation!$C$5:$E$17,3,FALSE))))))))","v":0},{"$f":"IFERROR(VLOOKUP(D119,'Data coll & ax'!$C$5:$F$26,4,FALSE),IFERROR(VLOOKUP(D119,'Prev & Ctrl'!$C$5:$F$30,4,FALSE),IFERROR(VLOOKUP(D119,'Lab dx'!$C$5:$F$17,4,FALSE),IFERROR(VLOOKUP(D119,'Dog popn'!$C$5:$F$17,4,FALSE),IFERROR(VLOOKUP(D119,IEC!$C$5:$F$25,4,FALSE),IFERROR(VLOOKUP(D119,'Cross-cutting issues'!$C$5:$F$16,4,FALSE),(VLOOKUP(D119,Legislation!$C$5:$F$17,4,FALSE))))))))","v":0}]
[74,5,"DPM","Have dog population management and responsible dog ownership campaigns been continued as part of the post-elimination strategy?","KEY",{"$f":"IFERROR(VLOOKUP(D120,'Data coll & ax'!$C$5:$E$26,3,FALSE),IFERROR(VLOOKUP(D120,'Prev & Ctrl'!$C$5:$E$30,3,FALSE),IFERROR(VLOOKUP(D120,'Lab dx'!$C$5:$E$17,3,FALSE),IFERROR(VLOOKUP(D120,'Dog popn'!$C$5:$E$17,3,FALSE),IFERROR(VLOOKUP(D120,IEC!$C$5:$E$25,3,FALSE),IFERROR(VLOOKUP(D120,'Cross-cutting issues'!$C$5:$E$16,3,FALSE),(VLOOKUP(D120,Legislation!$C$5:$E$17,3,FALSE))))))))","v":0},{"$f":"IFERROR(VLOOKUP(D120,'Data coll & ax'!$C$5:$F$26,4,FALSE),IFERROR(VLOOKUP(D120,'Prev & Ctrl'!$C$5:$F$30,4,FALSE),IFERROR(VLOOKUP(D120,'Lab dx'!$C$5:$F$17,4,FALSE),IFERROR(VLOOKUP(D120,'Dog popn'!$C$5:$F$17,4,FALSE),IFERROR(VLOOKUP(D120,IEC!$C$5:$F$25,4,FALSE),IFERROR(VLOOKUP(D120,'Cross-cutting issues'!$C$5:$F$16,4,FALSE),(VLOOKUP(D120,Legislation!$C$5:$F$17,4,FALSE))))))))","v":0}]
[82,5,"IEC","Have awareness programmes focusing on the maintenance of freedom from dog and dog transmitted human rabies been implemented?","KEY",{"$f":"IFERROR(VLOOKUP(D121,'Data coll & ax'!$C$5:$E$26,3,FALSE),IFERROR(VLOOKUP(D121,'Prev & Ctrl'!$C$5:$E$30,3,FALSE),IFERROR(VLOOKUP(D121,'Lab dx'!$C$5:$E$17,3,FALSE),IFERROR(VLOOKUP(D121,'Dog popn'!$C$5:$E$17,3,FALSE),IFERROR(VLOOKUP(D121,IEC!$C$5:$E$25,3,FALSE),IFERROR(VLOOKUP(D121,'Cross-cutting issues'!$C$5:$E$16,3,FALSE),(VLOOKUP(D121,Legislation!$C$5:$E$17,3,FALSE))))))))","v":0},{"$f":"IFERROR(VLOOKUP(D121,'Data coll & ax'!$C$5:$F$26,4,FALSE),IFERROR(VLOOKUP(D121,'Prev & Ctrl'!$C$5:$F$30,4,FALSE),IFERROR(VLOOKUP(D121,'Lab dx'!$C$5:$F$17,4,FALSE),IFERROR(VLOOKUP(D121,'Dog popn'!$C$5:$F$17,4,FALSE),IFERROR(VLOOKUP(D121,IEC!$C$5:$F$25,4,FALSE),IFERROR(VLOOKUP(D121,'Cross-cutting issues'!$C$5:$F$16,4,FALSE),(VLOOKUP(D121,Legislation!$C$5:$F$17,4,FALSE))))))))","v":0}]

{"sheet":"SUMMARY (Score)","index":12,"n_rows":21,"n_cols":17,"rows_kept":21,"cut":false,"hidden":false,"merged":[[17,4,18,4],[17,5,18,5],[17,9,18,9],[8,16,8,18],[10,15,10,19],[12,14,12,20],[14,13,14,21],[16,12,16,22],[17,8,18,8],[5,7,6,7],[5,9,6,9],[6,16,6,18],[13,0,14,0],[15,0,16,0],[7,5,8,5],[7,8,8,8],[9,5,10,5],[5,0,6,0],[5,1,6,1],[5,2,6,2],[5,4,6,5],[5,6,6,6],[5,8,6,8],[17,0,18,0],[19,0,20,0],[11,5,12,5],[0,0,0,9],[4,0,4,2],[2,0,2,9],[9,8,10,8],[7,0,8,0],[9,0,10,0],[11,0,12,0],[15,5,16,5],[15,8,16,8],[4,4,4,9],[11,8,12,8],[13,5,14,5],[13,8,14,8]]}
[{"$f":"CONCATENATE(\"Stepwise Approach towards Rabies Elimination - \",'Country profile'!E3,\" , \",IF(ISBLANK('Country profile'!F13),\"\",YEAR('Country profile'!F13)))","v":"Stepwise Approach towards Rabies Elimination - Zambia , 2017"}]
[]
[{"$f":"CONCATENATE(\"STAGE   \",((INDEX(E8:E20,MATCH(\"PENDING\",J8:J20,0)))))","v":"STAGE   1.5"}]
[]
["ACTIVITY SUMMARY",null,null,null,"STAGE SUMMARY"]
["COMPONENTS","PENDING ACTIVITIES","ACCOMPLISHED ACTIVITIES",null,"STAGE*",null,"PENDING ACTIVITIES","ACCOMPLISHED ACTIVITIES","CRITICAL ACTIVITIES ACCOMPLISHED","STAGE COMPLETED?"]
[null,null,null,null,null,null,null,null,null,null,null,null,null,null,null,{"$f":"INT((H18/6)*100)&\"%\"","v":"16%"},{"$f":"H18","v":1}]
["Data collection and analysis\n    Total number of activities = 22",{"$f":"(COUNT(datastatus)-'SUMMARY (Score)'!C8)","v":10},{"$f":"SUM('Data coll & ax'!E:E)","v":12},null,0,"Total number of activities = 6",{"$f":"COUNTIF(masterlist!$B$2:$B$121,0)-H8","v":1},{"$f":"SUMIF(masterlist!$B$2:$B$121,0,masterlist!$F$2:$F$121)","v":5},{"$f":"SUMIFS(masterlist!$F$2:$F$121,masterlist!$B$2:$B$121,0,masterlist!$E$2:$E$121,\"KEY\")","v":3},{"$f":"IF(I8>=2,\"COMPLETED\",IF(AND(I8>=1,H8>=4),\"COMPLETED\",\"PENDING\"))","v":"COMPLETED"}]
[null,{"$f":"REPT(\"I\",B8)","v":"IIIIIIIIII"},{"$f":"REPT(\"I\",C8)","v":"IIIIIIIIIIII"},null,0.5,null,{"$f":"REPT(\"I\",G8)","v":"I"},{"$f":"REPT(\"I\",H8)","v":"IIIII"},null,{"$f":"IF(I8=3,\"COMPLETED\",\"PENDING\")","v":"COMPLETED"},null,null,null,null,null,{"$f":"INT((H16/10)*100)&\"%\"","v":"30%"},{"$f":"H16","v":3}]
["Prevention and Control\n    Total number of activities = 26",{"$f":"COUNT(prevstatus)-'SUMMARY (Score)'!C10","v":9},{"$f":"SUM('Prev & Ctrl'!E:E)","v":17},null,1,"Total number of activities = 44",{"$f":"COUNTIF(masterlist!$B$2:$B$121,1)-H10","v":8},{"$f":"SUMIF(masterlist!$B$2:$B$121,1,masterlist!$F$2:$F$121)","v":36},{"$f":"SUMIFS(masterlist!$F$2:$F$121,masterlist!$B$2:$B$121,1,masterlist!$E$2:$E$121,\"KEY\")","v":10},{"$f":"IF(I10>=6,\"COMPLETED\",IF(AND(I10>=1,H10>22),\"COMPLETED\",\"PENDING\"))","v":"COMPLETED"}]
[null,{"$f":"REPT(\"I\",B10)","v":"IIIIIIIII"},{"$f":"REPT(\"I\",C10)","v":"IIIIIIIIIIIIIIIII"},null,1.5,null,{"$f":"REPT(\"I\",G10)","v":"IIIIIIII"},{"$f":"REPT(\"I\",H10)","v":"IIIIIIIIIIIIIIIIIIIIIIIIIIIIIIIIIIII"},null,{"$f":"IF(I10=12,\"COMPLETED\",\"PENDING\")","v":"PENDING"},null,null,null,null,{"$f":"INT((H14/23)*100)&\"%\"","v":"39%"},{"$f":"H14","v":9}]
["Laboratory diagnosis\n    Total number of activities = 13",{"$f":"COUNT(labstatus)-'SUMMARY (Score)'!C12","v":4},{"$f":"SUM('Lab dx'!E:E)","v":9},null,2,"Total number of activities = 31",{"$f":"COUNTIF(masterlist!$B$2:$B$121,2)-H12","v":15},{"$f":"SUMIF(masterlist!$B$2:$B$121,2,masterlist!$F$2:$F$121)","v":16},{"$f":"SUMIFS(masterlist!$F$2:$F$121,masterlist!$B$2:$B$121,2,masterlist!$E$2:$E$121,\"KEY\")","v":4},{"$f":"IF(I12>=4,\"COMPLETED\",IF(AND(I12>=1,H12>15),\"COMPLETED\",\"PENDING\"))","v":"COMPLETED"}]
[null,{"$f":"REPT(\"I\",B12)","v":"IIII"},{"$f":"REPT(\"I\",C12)","v":"IIIIIIIII"},null,2.5,null,{"$f":"REPT(\"I\",G12)","v":"IIIIIIIIIIIIIII"},{"$f":"REPT(\"I\",H12)","v":"IIIIIIIIIIIIIIII"},null,{"$f":"IF(I12=8,\"COMPLETED\",\"PENDING\")","v":"PENDING"},null,null,null,{"$f":"INT((H12/31)*100)&\"%\"","v":"51%"},{"$f":"H12","v":16}]
["Dog population related issues\n    Total number of activities = 13",{"$f":"(COUNT(dogstatus)-'SUMMARY (Score)'!C14)","v":6},{"$f":"SUM('Dog popn'!E:E)","v":7},null,3,"Total number of activities = 23",{"$f":"COUNTIF(masterlist!$B$2:$B$121,3)-H14","v":14},{"$f":"SUMIF(masterlist!$B$2:$B$121,3,masterlist!$F$2:$F$121)","v":9},{"$f":"SUMIFS(masterlist!$F$2:$F$121,masterlist!$B$2:$B$121,3,masterlist!$E$2:$E$121,\"KEY\")","v":2},{"$f":"IF(I14>4,\"COMPLETED\",IF(AND(I14>=1,H14>12),\"COMPLETED\",\"PENDING\"))","v":"PENDING"}]
[null,{"$f":"REPT(\"I\",B14)","v":"IIIIII"},{"$f":"REPT(\"I\",C14)","v":"IIIIIII"},null,3.5,null,{"$f":"REPT(\"I\",G14)","v":"IIIIIIIIIIIIII"},{"$f":"REPT(\"I\",H14)","v":"IIIIIIIII"},null,{"$f":"IF(I14=9,\"COMPLETED\",\"PENDING\")","v":"PENDING"},null,null,{"$f":"INT((H10/44)*100)&\"%\"","v":"81%"},{"$f":"H10","v":36}]
["Information, Education, Communication\n    Total number of activities = 21",{"$f":"COUNT(iecstatus)-'SUMMARY (Score)'!C16","v":12},{"$f":"SUM(IEC!E:E)","v":9},null,4,"Total number of activities = 10",{"$f":"COUNTIF(masterlist!$B$2:$B$121,4)-H16","v":7},{"$f":"SUMIF(masterlist!$B$2:$B$121,4,masterlist!$F$2:$F$121)","v":3},{"$f":"SUMIFS(masterlist!$F$2:$F$121,masterlist!$B$2:$B$121,4,masterlist!$E$2:$E$121,\"KEY\")","v":1},{"$f":"IF(I16>3,\"COMPLETED\",IF(AND(I16>=1,H16>5),\"COMPLETED\",\"PENDING\"))","v":"PENDING"}]
[null,{"$f":"REPT(\"I\",B16)","v":"IIIIIIIIIIII"},{"$f":"REPT(\"I\",C16)","v":"IIIIIIIII"},null,4.5,null,{"$f":"REPT(\"I\",G16)","v":"IIIIIII"},{"$f":"REPT(\"I\",H16)","v":"III"},null,{"$f":"IF(I16=7,\"COMPLETED\",\"PENDING\")","v":"PENDING"},null,{"$f":"INT((H8/6)*100)&\"%\"","v":"83%"},{"$f":"H8","v":5}]
["Cross-cutting issues\n        Total number of activities = 12",{"$f":"COUNT(crossstatus)-'SUMMARY (Score)'!C18","v":6},{"$f":"SUM('Cross-cutting issues'!E:E)","v":6},null,5,"Total number of activities = 6",{"$f":"COUNTIF(masterlist!$B$2:$B$121,5)-H18","v":5},{"$f":"SUMIF(masterlist!$B$2:$B$121,5,masterlist!$F$2:$F$121)","v":1},{"$f":"SUMIFS(masterlist!$F$2:$F$121,masterlist!$B$2:$B$121,5,masterlist!$E$2:$E$121,\"KEY\")","v":1},{"$f":"IF(I18=6,\"COMPLETED\",\"PENDING\")","v":"PENDING"}]
[null,{"$f":"REPT(\"I\",B18)","v":"IIIIII"},{"$f":"REPT(\"I\",C18)","v":"IIIIII"},null,null,null,{"$f":"REPT(\"I\",G18)","v":"IIIII"},{"$f":"REPT(\"I\",H18)","v":"I"}]
["Legislation\n    Total number of activities = 13",{"$f":"(COUNT(legstatus))-C20","v":3},{"$f":"SUM(Legislation!E:E)","v":10},null,5,null,null,null,null,"PENDING"]
[null,{"$f":"REPT(\"I\",B20)","v":"III"},{"$f":"REPT(\"I\",C20)","v":"IIIIIIIIII"},null,"* Scores in increments of 0.5 show progress along a particular stage. "]

{"sheet":"SUMMARY (S0-S5)","index":13,"n_rows":40,"n_cols":15,"rows_kept":40,"cut":false,"hidden":false,"merged":[[0,6,1,6],[0,0,0,3],[1,0,1,3],[0,4,1,5],[3,7,3,8],[3,3,3,4],[3,9,3,10],[3,0,4,0],[3,11,3,12],[3,13,3,14],[3,1,3,2],[3,5,3,6]]}
["Stepwise Approach towards Rabies Elimination",null,null,null,{"$f":"IF(ISBLANK('Country profile'!E3),\"\",UPPER('Country profile'!E3))","v":"ZAMBIA"},null,{"$f":"IF(ISBLANK('Country profile'!F13),\"\",YEAR('Country profile'!F13))","v":2017}]
["SUMMARY OF RABIES PROGRAM ACTIVITIES"]
[]
["STAGE","DATA COLLECTION & ANALYSIS",null,"PREVENTION & CONTROL",null,"LABORATORY DIAGNOSIS",null,"DOG POPULATION RELATED ISSUES",null,"INFORMATION, EDUCATION, COMMUNICATION",null,"CROSS-CUTTING ISSUES",null,"LEGISLATION"]
[null,"Pending","Accomplished","Pending","Accomplished","Pending","Accomplished","Pending","Accomplished","Pending","Accomplished","Pending","Accomplished","Pending","Accomplished"]
[0,null,null,null,null,{"$f":"IF('Lab dx'!E5=0,'Lab dx'!C5,\"\")","v":""},{"$f":"IF('Lab dx'!E5=1,'Lab dx'!C5,\"\")","v":"Have contacts with an international rabies reference laboratory or international collaborating/reference center been established?"},null,null,null,null,{"$f":"IF('Cross-cutting issues'!E5=0,'Cross-cutting issues'!C5,\"\")","v":""},{"$f":"IF('Cross-cutting issues'!E5=1,'Cross-cutting issues'!C5,\"\")","v":"Are the results of rabies sample(s) shared appropriately with local and national authorities? "},{"$f":"IF(Legislation!E5=0,Legislation!C5,\"\")","v":"Is a case definition available that is consistent with the OIE guidelines for animal rabies?"},{"$f":"IF(Legislation!E5=1,Legislation!C5,\"\")","v":""}]
[null,null,null,null,null,{"$f":"IF('Lab dx'!E6=0,'Lab dx'!C6,\"\")","v":""},{"$f":"IF('Lab dx'!E6=1,'Lab dx'!C6,\"\")","v":"Has at least one human or animal rabies suspect sample been submitted to an international rabies reference laboratory for confirmation?"},null,null,null,null,null,null,{"$f":"IF(Legislation!E7=0,Legislation!C7,\"\")","v":""},{"$f":"IF(Legislation!E7=1,Legislation!C7,\"\")","v":"Is a case definition available that is consistent with the WHO guidelines for human rabies?"}]
[null,null,null,null,null,null,null,null,null,null,null,null,null,{"$f":"IF(Legislation!E9=0,Legislation!C9,\"\")","v":""},{"$f":"IF(Legislation!E9=1,Legislation!C9,\"\")","v":"Does the national authority report at least one confirmed rabies case to the WHO, OIE or PARACON?"}]
[1,{"$f":"IF('Data coll & ax'!E5=0,'Data coll & ax'!C5,\"\")","v":""},{"$f":"IF('Data coll & ax'!E5=1,'Data coll & ax'!C5,\"\")","v":"Are dog rabies cases reported from a local to the national level? "},{"$f":"IF('Prev & Ctrl'!E5=0,'Prev & Ctrl'!C5,\"\")","v":""},{"$f":"IF('Prev & Ctrl'!E5=1,'Prev & Ctrl'!C5,\"\")","v":"Are vaccines for human rabies prophylaxis available in one or more parts of the country?"},{"$f":"IF('Lab dx'!E7=0,'Lab dx'!C7,\"\")","v":""},{"$f":"IF('Lab dx'!E7=1,'Lab dx'!C7,\"\")","v":"Is there capacity to conduct rabies diagnosis in at least one national laboratory (veterinary or medical laboratory)?"},{"$f":"IF('Dog popn'!E5=0,'Dog popn'!C5,\"\")","v":""},{"$f":"IF('Dog popn'!E5=1,'Dog popn'!C5,\"\")","v":"Have discussions been held with stakeholders to create a dog population management strategy at a local level?"},{"$f":"IF(IEC!E5=0,IEC!C5,\"\")","v":""},{"$f":"IF(IEC!E5=1,IEC!C5,\"\")","v":"Has an assessment been done to determine what message should be communicated to the target audience at a local level?"},{"$f":"IF('Cross-cutting issues'!E6=0,'Cross-cutting issues'!C6,\"\")","v":""},{"$f":"IF('Cross-cutting issues'!E6=1,'Cross-cutting issues'!C6,\"\")","v":"Have the main national stakeholders in rabies prevention and control been identified?"},{"$f":"IF(Legislation!E6=0,Legislation!C6,\"\")","v":"Do all of the relevant professionals know the case definition for animal rabies?"},{"$f":"IF(Legislation!E6=1,Legislation!C6,\"\")","v":""}]
[null,{"$f":"IF('Data coll & ax'!E6=0,'Data coll & ax'!C6,\"\")","v":""},{"$f":"IF('Data coll & ax'!E6=1,'Data coll & ax'!C6,\"\")","v":"Are human rabies cases reported from a local to the national level? "},{"$f":"IF('Prev & Ctrl'!E6=0,'Prev & Ctrl'!C6,\"\")","v":""},{"$f":"IF('Prev & Ctrl'!E6=1,'Prev & Ctrl'!C6,\"\")","v":"Has the supply and access to WHO pre-qualified human rabies vaccines for PrEP for professionals at risk been ensured in local areas?"},{"$f":"IF('Lab dx'!E8=0,'Lab dx'!C8,\"\")","v":""},{"$f":"IF('Lab dx'!E8=1,'Lab dx'!C8,\"\")","v":"Have several rabies suspect samples of animals or humans been submitted to a national laboratory and analysed? "},{"$f":"IF('Dog popn'!E6=0,'Dog popn'!C6,\"\")","v":""},{"$f":"IF('Dog popn'!E6=1,'Dog popn'!C6,\"\")","v":"Have you involved officials in waste management in your stakeholder meetings"},{"$f":"IF(IEC!E6=0,IEC!C6,\"\")","v":""},{"$f":"IF(IEC!E6=1,IEC!C6,\"\")","v":"Have the target audiences been identified at a local level (e.g. at-risk communities, dog owners, children)?"},{"$f":"IF('Cross-cutting issues'!E7=0,'Cross-cutting issues'!C7,\"\")","v":"Have stakeholder consultations been held within the last 3 years at the national level?"},{"$f":"IF('Cross-cutting issues'!E7=1,'Cross-cutting issues'!C7,\"\")","v":""},{"$f":"IF(Legislation!E8=0,Legislation!C8,\"\")","v":"Do all of the relevant professionals know the case definition for human rabies?"},{"$f":"IF(Legislation!E8=1,Legislation!C8,\"\")","v":""}]
[null,{"$f":"IF('Data coll & ax'!E7=0,'Data coll & ax'!C7,\"\")","v":""},{"$f":"IF('Data coll & ax'!E7=1,'Data coll & ax'!C7,\"\")","v":"Are all human or animal rabies testing results being reported to a relevant international database such as WHO, OIE or PARACON?"},{"$f":"IF('Prev & Ctrl'!E12=0,'Prev & Ctrl'!C12,\"\")","v":""},{"$f":"IF('Prev & Ctrl'!E12=1,'Prev & Ctrl'!C12,\"\")","v":"Are dog rabies vaccines available in at least one location in the country?"},{"$f":"IF('Lab dx'!E9=0,'Lab dx'!C9,\"\")","v":""},{"$f":"IF('Lab dx'!E9=1,'Lab dx'!C9,\"\")","v":"Is animal rabies diagnosis conducted in at least one national laboratory?"},null,null,{"$f":"IF(IEC!E7=0,IEC!C7,\"\")","v":"Has an IEC plan* been developed and implemented on a small scale?"},{"$f":"IF(IEC!E7=1,IEC!C7,\"\")","v":""},{"$f":"IF('Cross-cutting issues'!E8=0,'Cross-cutting issues'!C8,\"\")","v":"Has an intersectoral rabies task force, committee or working group been established at a local or national level and do they meet at least twice a year?"},{"$f":"IF('Cross-cutting issues'!E8=1,'Cross-cutting issues'!C8,\"\")","v":""},{"$f":"IF(Legislation!E10=0,Legislation!C10,\"\")","v":""},{"$f":"IF(Legislation!E10=1,Legislation!C10,\"\")","v":"Is there national legislation that is relevant to rabies prevention and control?"}]
[null,{"$f":"IF('Data coll & ax'!E8=0,'Data coll & ax'!C8,\"\")","v":""},{"$f":"IF('Data coll & ax'!E8=1,'Data coll & ax'!C8,\"\")","v":"Is there capacity to analyze dog rabies data at the national level? "},{"$f":"IF('Prev & Ctrl'!E13=0,'Prev & Ctrl'!C13,\"\")","v":""},{"$f":"IF('Prev & Ctrl'!E13=1,'Prev & Ctrl'!C13,\"\")","v":"Has dog vaccination been initiated in some parts of the country? "},{"$f":"IF('Lab dx'!E10=0,'Lab dx'!C10,\"\")","v":"Are rabies suspect samples of animals or humans submitted twice yearly to an international laboratory and analysed?"},{"$f":"IF('Lab dx'!E10=1,'Lab dx'!C10,\"\")","v":""},null,null,{"$f":"IF(IEC!E8=0,IEC!C8,\"\")","v":""},{"$f":"IF(IEC!E8=1,IEC!C8,\"\")","v":"Has broad public awareness messaging started at a national level?"},{"$f":"IF('Cross-cutting issues'!E11=0,'Cross-cutting issues'!C11,\"\")","v":""},{"$f":"IF('Cross-cutting issues'!E11=1,'Cross-cutting issues'!C11,\"\")","v":"Based on a small-scale experience, has a short term rabies action plan been developed and endorsed by relevant stakeholders at local / national level?"},{"$f":"IF(Legislation!E11=0,Legislation!C11,\"\")","v":""},{"$f":"IF(Legislation!E11=1,Legislation!C11,\"\")","v":"If there is legislation, has it been reviewed and endorsed?"}]
[null,{"$f":"IF('Data coll & ax'!E9=0,'Data coll & ax'!C9,\"\")","v":""},{"$f":"IF('Data coll & ax'!E9=1,'Data coll & ax'!C9,\"\")","v":"Is there capacity to analyze human rabies data at the national level? "},{"$f":"IF('Prev & Ctrl'!E20=0,'Prev & Ctrl'!C20,\"\")","v":""},{"$f":"IF('Prev & Ctrl'!E20=1,'Prev & Ctrl'!C20,\"\")","v":"Has Integrated Bite Case Management (IBCM)* been implemented at a local level? "},null,null,null,null,{"$f":"IF(IEC!E13=0,IEC!C13,\"\")","v":""},{"$f":"IF(IEC!E13=1,IEC!C13,\"\")","v":"Has an assessment been undertaken to determine the training needs of the professionals at a local level? "},{"$f":"IF('Cross-cutting issues'!E12=0,'Cross-cutting issues'!C12,\"\")","v":""},{"$f":"IF('Cross-cutting issues'!E12=1,'Cross-cutting issues'!C12,\"\")","v":"Have mechanisms for mobilizing emergency funds in case of an outbreak been identified?"},{"$f":"IF(Legislation!E12=0,Legislation!C12,\"\")","v":""},{"$f":"IF(Legislation!E12=1,Legislation!C12,\"\")","v":"Has rabies been made a notifiable disease in animals?"}]
[null,{"$f":"IF('Data coll & ax'!E10=0,'Data coll & ax'!C10,\"\")","v":""},{"$f":"IF('Data coll & ax'!E10=1,'Data coll & ax'!C10,\"\")","v":"Has an animal rabies surveillance* system been established at the national level?"},{"$f":"IF('Prev & Ctrl'!E21=0,'Prev & Ctrl'!C21,\"\")","v":""},{"$f":"IF('Prev & Ctrl'!E21=1,'Prev & Ctrl'!C21,\"\")","v":"Have Standard Operating Procedures (SOPs) for coordinated action on reported outbreaks* been established?"},null,null,null,null,{"$f":"IF(IEC!E14=0,IEC!C14,\"\")","v":""},{"$f":"IF(IEC!E14=1,IEC!C14,\"\")","v":"Have human and animal health professionals involved in rabies control been identified at a local level?"},null,null,{"$f":"IF(Legislation!E13=0,Legislation!C13,\"\")","v":""},{"$f":"IF(Legislation!E13=1,Legislation!C13,\"\")","v":"Has rabies been made a notifiable disease in humans?"}]
[null,{"$f":"IF('Data coll & ax'!E11=0,'Data coll & ax'!C11,\"\")","v":""},{"$f":"IF('Data coll & ax'!E11=1,'Data coll & ax'!C11,\"\")","v":"Has a human rabies surveillance* system been established at the national level?"},null,null,null,null,null,null,{"$f":"IF(IEC!E15=0,IEC!C15,\"\")","v":""},{"$f":"IF(IEC!E15=1,IEC!C15,\"\")","v":"Has a training plan been developed at a local level?"},null,null,{"$f":"IF(Legislation!E14=0,Legislation!C14,\"\")","v":""},{"$f":"IF(Legislation!E14=1,Legislation!C14,\"\")","v":"Is there legislation that includes the compulsory rabies vaccination of dogs or has it been proposed if it is not already in place?"}]
[null,{"$f":"IF('Data coll & ax'!E12=0,'Data coll & ax'!C12,\"\")","v":""},{"$f":"IF('Data coll & ax'!E12=1,'Data coll & ax'!C12,\"\")","v":"Have reports on the number of humans bitten by dogs been compiled and reviewed?"},null,null,null,null,null,null,{"$f":"IF(IEC!E16=0,IEC!C16,\"\")","v":""},{"$f":"IF(IEC!E16=1,IEC!C16,\"\")","v":"Have training or refresher courses on rabies and public communication been initiated for professionals in human and animal health at a local level?"},null,null,{"$f":"IF(Legislation!E15=0,Legislation!C15,\"\")","v":""},{"$f":"IF(Legislation!E15=1,Legislation!C15,\"\")","v":"Does legislation include measures for rabies outbreak response?"}]
[null,{"$f":"IF('Data coll & ax'!E13=0,'Data coll & ax'!C13,\"\")","v":"Have dog population studies and KAP surveys been conducted to determine size, turn-over and accessibility of dogs for vaccination on a small scale?"},{"$f":"IF('Data coll & ax'!E13=1,'Data coll & ax'!C13,\"\")","v":""},null,null,null,null,null,null,{"$f":"IF(IEC!E18=0,IEC!C18,\"\")","v":""},{"$f":"IF(IEC!E18=1,IEC!C18,\"\")","v":"Has an advocacy stakeholder analysis* been done at a local level and target audiences been identified?"}]
[null,null,null,null,null,null,null,null,null,{"$f":"IF(IEC!E19=0,IEC!C19,\"\")","v":"Has an advocacy plan* been developed and implemented at a local level?"},{"$f":"IF(IEC!E19=1,IEC!C19,\"\")","v":""}]
[2,{"$f":"IF('Data coll & ax'!E14=0,'Data coll & ax'!C14,\"\")","v":"Have linked human and animal rabies surveillance systems, including agreed SOPs, been established?"},{"$f":"IF('Data coll & ax'!E14=1,'Data coll & ax'!C14,\"\")","v":""},{"$f":"IF('Prev & Ctrl'!E7=0,'Prev & Ctrl'!C7,\"\")","v":""},{"$f":"IF('Prev & Ctrl'!E7=1,'Prev & Ctrl'!C7,\"\")","v":"Has an assessment* been done to determine the availability and access to PEP (and PreP)?"},{"$f":"IF('Lab dx'!E11=0,'Lab dx'!C11,\"\")","v":""},{"$f":"IF('Lab dx'!E11=1,'Lab dx'!C11,\"\")","v":"Is there regular laboratory diagnosis of animal rabies cases in country?"},{"$f":"IF('Dog popn'!E7=0,'Dog popn'!C7,\"\")","v":"Has a DPM* strategy and programmebeen  drafted and shared with all relevant stakeholders at a local level?"},{"$f":"IF('Dog popn'!E7=1,'Dog popn'!C7,\"\")","v":""},{"$f":"IF(IEC!E9=0,IEC!C9,\"\")","v":"Has an IEC plan been implemented beyond a local level?"},{"$f":"IF(IEC!E9=1,IEC!C9,\"\")","v":""},{"$f":"IF('Cross-cutting issues'!E9=0,'Cross-cutting issues'!C9,\"\")","v":"Are mechanisms for regular intersectoral collaboration in place and are they implemented?"},{"$f":"IF('Cross-cutting issues'!E9=1,'Cross-cutting issues'!C9,\"\")","v":""},{"$f":"IF(Legislation!E16=0,Legislation!C16,\"\")","v":""},{"$f":"IF(Legislation!E16=1,Legislation!C16,\"\")","v":"Has legislation been updated to include specifications on the compulsory vaccination of dogs and the international movement of animals? "}]
[null,{"$f":"IF('Data coll & ax'!E15=0,'Data coll & ax'!C15,\"\")","v":""},{"$f":"IF('Data coll & ax'!E15=1,'Data coll & ax'!C15,\"\")","v":"Are human rabies surveillance systems, including feedback mechanisms, functioning and coordinated between administrative levels (national, province, district, municipal, etc.)? "},{"$f":"IF('Prev & Ctrl'!E8=0,'Prev & Ctrl'!C8,\"\")","v":""},{"$f":"IF('Prev & Ctrl'!E8=1,'Prev & Ctrl'!C8,\"\")","v":"Are WHO pre-qualified human rabies vaccines available and accessible in most parts of the country?"},{"$f":"IF('Lab dx'!E12=0,'Lab dx'!C12,\"\")","v":""},{"$f":"IF('Lab dx'!E12=1,'Lab dx'!C12,\"\")","v":"Has capacity for regular sample collection and transportation been established and functioning?"},{"$f":"IF('Dog popn'!E8=0,'Dog popn'!C8,\"\")","v":"Has the DPM strategy been finalized?"},{"$f":"IF('Dog popn'!E8=1,'Dog popn'!C8,\"\")","v":""},{"$f":"IF(IEC!E10=0,IEC!C10,\"\")","v":"Has the IEC plan been reviewed and updated?"},{"$f":"IF(IEC!E10=1,IEC!C10,\"\")","v":""},{"$f":"IF('Cross-cutting issues'!E10=0,'Cross-cutting issues'!C10,\"\")","v":"Has the contribution and role of  private sector been clarified and shared with other stakeholders?"},{"$f":"IF('Cross-cutting issues'!E10=1,'Cross-cutting issues'!C10,\"\")","v":""}]
[null,{"$f":"IF('Data coll & ax'!E16=0,'Data coll & ax'!C16,\"\")","v":""},{"$f":"IF('Data coll & ax'!E16=1,'Data coll & ax'!C16,\"\")","v":"Are animal rabies surveillance systems, including feedback mechanisms, functioning and coordinated between administrative levels (national, province, district, municipal, etc.)?"},{"$f":"IF('Prev & Ctrl'!E9=0,'Prev & Ctrl'!C9,\"\")","v":""},{"$f":"IF('Prev & Ctrl'!E9=1,'Prev & Ctrl'!C9,\"\")","v":"Are any human biologics that are not WHO-pre-qualified being phased out? (e.g. nerve tissue vaccines, low quality vaccines)"},null,null,{"$f":"IF('Dog popn'!E9=0,'Dog popn'!C9,\"\")","v":"Has public sensitisation about DPM been built into rabies awareness campaigns at a local level?"},{"$f":"IF('Dog popn'!E9=1,'Dog popn'!C9,\"\")","v":""},{"$f":"IF(IEC!E17=0,IEC!C17,\"\")","v":""},{"$f":"IF(IEC!E17=1,IEC!C17,\"\")","v":"Has training of human and animal health personnel been conducted in most parts of the country?"},{"$f":"IF('Cross-cutting issues'!E13=0,'Cross-cutting issues'!C13,\"\")","v":"Has a national strategy for rabies prevention, control and eventual elimination been drafted, shared with all relevant stakeholders and finalised?"},{"$f":"IF('Cross-cutting issues'!E13=1,'Cross-cutting issues'!C13,\"\")","v":""}]
[null,{"$f":"IF('Data coll & ax'!E17=0,'Data coll & ax'!C17,\"\")","v":"Is information on the epidemiology of rabies regularly shared with all stakeholders?"},{"$f":"IF('Data coll & ax'!E17=1,'Data coll & ax'!C17,\"\")","v":""},{"$f":"IF('Prev & Ctrl'!E14=0,'Prev & Ctrl'!C14,\"\")","v":""},{"$f":"IF('Prev & Ctrl'!E14=1,'Prev & Ctrl'!C14,\"\")","v":"Are only quality dog vaccines in accordance with OIE standards being used?"},null,null,{"$f":"IF('Dog popn'!E10=0,'Dog popn'!C10,\"\")","v":""},{"$f":"IF('Dog popn'!E10=1,'Dog popn'!C10,\"\")","v":"Has dog population management been implemented at a local level?"},{"$f":"IF(IEC!E20=0,IEC!C20,\"\")","v":"Have small-scale program successes been communicated to authorities/leaders in other parts of the country?"},{"$f":"IF(IEC!E20=1,IEC!C20,\"\")","v":""},{"$f":"IF('Cross-cutting issues'!E14=0,'Cross-cutting issues'!C14,\"\")","v":""},{"$f":"IF('Cross-cutting issues'!E14=1,'Cross-cutting issues'!C14,\"\")","v":"Have government resources been identified and allocated in support of the national rabies control strategy?  "}]
[null,{"$f":"IF('Data coll & ax'!E18=0,'Data coll & ax'!C18,\"\")","v":"Is the on-going surveillance system for rabies being maintained?"},{"$f":"IF('Data coll & ax'!E18=1,'Data coll & ax'!C18,\"\")","v":""},{"$f":"IF('Prev & Ctrl'!E15=0,'Prev & Ctrl'!C15,\"\")","v":""},{"$f":"IF('Prev & Ctrl'!E15=1,'Prev & Ctrl'!C15,\"\")","v":"Are dog vaccination campaigns regularly implemented in response to human cases and animal outbreaks?"},null,null,{"$f":"IF('Dog popn'!E11=0,'Dog popn'!C11,\"\")","v":""},{"$f":"IF('Dog popn'!E11=1,'Dog popn'!C11,\"\")","v":"Have training or refresher courses on animal handling and sterilisation been initiated for professionals in animal health at a local level?"},{"$f":"IF(IEC!E21=0,IEC!C21,\"\")","v":"Has an advocacy stakeholder analysis* been done at a national level and have the target audiences been identified?"},{"$f":"IF(IEC!E21=1,IEC!C21,\"\")","v":""}]
[null,null,null,{"$f":"IF('Prev & Ctrl'!E22=0,'Prev & Ctrl'!C22,\"\")","v":"Have IBCM SOPs, including sharing of information between sectors, been agreed upon?"},{"$f":"IF('Prev & Ctrl'!E22=1,'Prev & Ctrl'!C22,\"\")","v":""},null,null,null,null,{"$f":"IF(IEC!E22=0,IEC!C22,\"\")","v":"Has an advocacy campaign to national leaders/authorities been undertaken to ensure that a national rabies control strategy is created and properly resourced?"},{"$f":"IF(IEC!E22=1,IEC!C22,\"\")","v":""}]
[null,null,null,{"$f":"IF('Prev & Ctrl'!E23=0,'Prev & Ctrl'!C23,\"\")","v":""},{"$f":"IF('Prev & Ctrl'!E23=1,'Prev & Ctrl'!C23,\"\")","v":"Are SOPs available for the observation of dogs involved in biting incidents? "}]
[null,null,null,{"$f":"IF('Prev & Ctrl'!E24=0,'Prev & Ctrl'!C24,\"\")","v":""},{"$f":"IF('Prev & Ctrl'!E24=1,'Prev & Ctrl'!C24,\"\")","v":"Have facilities or protocols been established for the observation of rabies-suspected dogs?"}]
[]
[3,{"$f":"IF('Data coll & ax'!E19=0,'Data coll & ax'!C19,\"\")","v":"Have field investigations for all suspected human rabies cases been conducted? "},{"$f":"IF('Data coll & ax'!E19=1,'Data coll & ax'!C19,\"\")","v":""},{"$f":"IF('Prev & Ctrl'!E10=0,'Prev & Ctrl'!C10,\"\")","v":""},{"$f":"IF('Prev & Ctrl'!E10=1,'Prev & Ctrl'!C10,\"\")","v":"Is WHO pre-qualified Pre- and Post- Exposure Prophylaxis available and accessible to high risk and exposed individuals throughout the country?"},{"$f":"IF('Lab dx'!E13=0,'Lab dx'!C13,\"\")","v":""},{"$f":"IF('Lab dx'!E13=1,'Lab dx'!C13,\"\")","v":"Are wildlife samples submitted for rabies laboratory diagnosis?"},{"$f":"IF('Dog popn'!E12=0,'Dog popn'!C12,\"\")","v":"Has the DPM strategy been assessed and refined based on current dog ecology or KAP surveys?"},{"$f":"IF('Dog popn'!E12=1,'Dog popn'!C12,\"\")","v":""},{"$f":"IF(IEC!E11=0,IEC!C11,\"\")","v":"Has the IEC plan been integrated into the national rabies strategy and implemented at national level?"},{"$f":"IF(IEC!E11=1,IEC!C11,\"\")","v":""},{"$f":"IF('Cross-cutting issues'!E15=0,'Cross-cutting issues'!C15,\"\")","v":"Has the national strategy been refined based on monitoring and evaluation? "},{"$f":"IF('Cross-cutting issues'!E15=1,'Cross-cutting issues'!C15,\"\")","v":""},{"$f":"IF(Legislation!E17=0,Legislation!C17,\"\")","v":""},{"$f":"IF(Legislation!E17=1,Legislation!C17,\"\")","v":"Is the relevant legislation enforced at the national level?"}]
[null,{"$f":"IF('Data coll & ax'!E20=0,'Data coll & ax'!C20,\"\")","v":"Is epidemiological evidence available to rule out dog-transmitted human rabies cases?"},{"$f":"IF('Data coll & ax'!E20=1,'Data coll & ax'!C20,\"\")","v":""},{"$f":"IF('Prev & Ctrl'!E16=0,'Prev & Ctrl'!C16,\"\")","v":"Are mass dog vaccination campaigns reaching at least 70% of the total dog population conducted according to the national rabies strategy? "},{"$f":"IF('Prev & Ctrl'!E16=1,'Prev & Ctrl'!C16,\"\")","v":""},{"$f":"IF('Lab dx'!E14=0,'Lab dx'!C14,\"\")","v":""},{"$f":"IF('Lab dx'!E14=1,'Lab dx'!C14,\"\")","v":"Is access to reliable laboratory diagnosis available throughout the country for animal samples (and if possible also for human and wildlife samples)?"},{"$f":"IF('Dog popn'!E13=0,'Dog popn'!C13,\"\")","v":""},{"$f":"IF('Dog popn'!E13=1,'Dog popn'!C13,\"\")","v":"Have rabies awareness campaigns, including responsible dog ownership, been expanded to more areas?"},{"$f":"IF(IEC!E23=0,IEC!C23,\"\")","v":"Have human rabies free zones been declared publicly?"},{"$f":"IF(IEC!E23=1,IEC!C23,\"\")","v":""}]
[null,{"$f":"IF('Data coll & ax'!E21=0,'Data coll & ax'!C21,\"\")","v":""},{"$f":"IF('Data coll & ax'!E21=1,'Data coll & ax'!C21,\"\")","v":"Has an advocacy plan been approved by the government for local level implementation?"},{"$f":"IF('Prev & Ctrl'!E17=0,'Prev & Ctrl'!C17,\"\")","v":"Are post-vaccination surveys* in dogs being carried out to evaluate vaccination coverage?"},{"$f":"IF('Prev & Ctrl'!E17=1,'Prev & Ctrl'!C17,\"\")","v":""},{"$f":"IF('Lab dx'!E15=0,'Lab dx'!C15,\"\")","v":"Is there regular characterization and analysis of circulating rabies virus variants by a national or international laboratory?"},{"$f":"IF('Lab dx'!E15=1,'Lab dx'!C15,\"\")","v":""},{"$f":"IF('Dog popn'!E14=0,'Dog popn'!C14,\"\")","v":""},{"$f":"IF('Dog popn'!E14=1,'Dog popn'!C14,\"\")","v":"Has veterinary and animal technician training been completed across most of country?"}]
[null,{"$f":"IF('Data coll & ax'!E22=0,'Data coll & ax'!C22,\"\")","v":""},{"$f":"IF('Data coll & ax'!E22=1,'Data coll & ax'!C22,\"\")","v":"Are field investigations and laboratory confirmations conducted for all suspected rabies outbreaks in dogs?"},{"$f":"IF('Prev & Ctrl'!E25=0,'Prev & Ctrl'!C25,\"\")","v":""},{"$f":"IF('Prev & Ctrl'!E25=1,'Prev & Ctrl'!C25,\"\")","v":"Is there capacity to conduct field investigations and planned outbreak responses for animal and human rabies cases in the entire country?"},null,null,{"$f":"IF('Dog popn'!E15=0,'Dog popn'!C15,\"\")","v":"Has the dog population management strategy been implemented nationwide?"},{"$f":"IF('Dog popn'!E15=1,'Dog popn'!C15,\"\")","v":""}]
[null,{"$f":"IF('Data coll & ax'!E25=0,'Data coll & ax'!C25,\"\")","v":"Has the collection of local or national health economic and/or other disease prioritization tool data* on rabies control been initiated to make the case for rabies control investment?"},{"$f":"IF('Data coll & ax'!E25=1,'Data coll & ax'!C25,\"\")","v":""},{"$f":"IF('Prev & Ctrl'!E26=0,'Prev & Ctrl'!C26,\"\")","v":"Have potential rabies-free zones been identified where canine variant cases have been absent for at least a 2 year period?"},{"$f":"IF('Prev & Ctrl'!E26=1,'Prev & Ctrl'!C26,\"\")","v":""}]
[null,{"$f":"IF('Data coll & ax'!E26=0,'Data coll & ax'!C26,\"\")","v":"Have the health economic data and/or other disease prioritization tool analyses been expanded to support further prioritization within the national rabies control programme?"},{"$f":"IF('Data coll & ax'!E26=1,'Data coll & ax'!C26,\"\")","v":""},{"$f":"IF('Prev & Ctrl'!E27=0,'Prev & Ctrl'!C27,\"\")","v":"Has dialogue been initiated with neighbouring countries to prevent the re-introduction of rabies into designated rabies-free zones?"},{"$f":"IF('Prev & Ctrl'!E27=1,'Prev & Ctrl'!C27,\"\")","v":""}]
[4,{"$f":"IF('Data coll & ax'!E23=0,'Data coll & ax'!C23,\"\")","v":"Are existing surveillance activities for all suspected cases in humans maintained in the country?"},{"$f":"IF('Data coll & ax'!E23=1,'Data coll & ax'!C23,\"\")","v":""},{"$f":"IF('Prev & Ctrl'!E18=0,'Prev & Ctrl'!C18,\"\")","v":""},{"$f":"IF('Prev & Ctrl'!E18=1,'Prev & Ctrl'!C18,\"\")","v":"Are dog vaccination campaigns maintained in zones where dog rabies is still present or where otherwise justified (e.g. risk of introduction)?"},{"$f":"IF('Lab dx'!E16=0,'Lab dx'!C16,\"\")","v":"Is there maintenance of existing surveillance activities, including ongoing laboratory investigation, for all suspected cases in dogs in the country?"},{"$f":"IF('Lab dx'!E16=1,'Lab dx'!C16,\"\")","v":""},{"$f":"IF('Dog popn'!E16=0,'Dog popn'!C16,\"\")","v":""},{"$f":"IF('Dog popn'!E16=1,'Dog popn'!C16,\"\")","v":"Have dog population management and responsible dog ownership campaigns been continued after the elimination of canine-mediated human rabies?"},{"$f":"IF(IEC!E24=0,IEC!C24,\"\")","v":"Has national freedom from dog-transmitted rabies been publically declared? "},{"$f":"IF(IEC!E24=1,IEC!C24,\"\")","v":""},{"$f":"IF('Cross-cutting issues'!E16=0,'Cross-cutting issues'!C16,\"\")","v":""},{"$f":"IF('Cross-cutting issues'!E16=1,'Cross-cutting issues'!C16,\"\")","v":"Have veterinary border inspection and quarantine measures been fully implemented in accordance with national regulations?"}]
[null,{"$f":"IF('Data coll & ax'!E24=0,'Data coll & ax'!C24,\"\")","v":"Has the epidemiological data from the routine surveillance of all animals (working animals, livestock and wildlife) been used to refine the national rabies strategy?"},{"$f":"IF('Data coll & ax'!E24=1,'Data coll & ax'!C24,\"\")","v":""},{"$f":"IF('Prev & Ctrl'!E28=0,'Prev & Ctrl'!C28,\"\")","v":"Has freedom from dog-transmitted rabies in the entire country been verified by the absence of canine variant cases for at least a 2 year period?"},{"$f":"IF('Prev & Ctrl'!E28=1,'Prev & Ctrl'!C28,\"\")","v":""},null,null,null,null,{"$f":"IF(IEC!E25=0,IEC!C25,\"\")","v":"Has national freedom from canine-mediated human rabies been publically declared? "},{"$f":"IF(IEC!E25=1,IEC!C25,\"\")","v":""}]
[null,null,null,{"$f":"IF('Prev & Ctrl'!E29=0,'Prev & Ctrl'!C29,\"\")","v":"Has an emergency response/contingency plan been developed to address any reintroduced case of animal rabies involving a canine variant?"},{"$f":"IF('Prev & Ctrl'!E29=1,'Prev & Ctrl'!C29,\"\")","v":""}]
[]
[5,null,null,{"$f":"IF('Prev & Ctrl'!E11=0,'Prev & Ctrl'!C11,\"\")","v":"Have modified protocols for PEP administration for rabies-free areas been implemented?"},{"$f":"IF('Prev & Ctrl'!E11=1,'Prev & Ctrl'!C11,\"\")","v":""},{"$f":"IF('Lab dx'!E17=0,'Lab dx'!C17,\"\")","v":"Are there on-going laboratory investigations of all suspected cases in domestic and wild animal species in the country?"},{"$f":"IF('Lab dx'!E17=1,'Lab dx'!C17,\"\")","v":""},{"$f":"IF('Dog popn'!E17=0,'Dog popn'!C17,\"\")","v":"Have dog population management and responsible dog ownership campaigns been continued as part of the post-elimination strategy?"},{"$f":"IF('Dog popn'!E17=1,'Dog popn'!C17,\"\")","v":""},{"$f":"IF(IEC!E12=0,IEC!C12,\"\")","v":"Have awareness programmes focusing on the maintenance of freedom from dog and dog transmitted human rabies been implemented?"},{"$f":"IF(IEC!E12=1,IEC!C12,\"\")","v":""}]
[null,null,null,{"$f":"IF('Prev & Ctrl'!E19=0,'Prev & Ctrl'!C19,\"\")","v":""},{"$f":"IF('Prev & Ctrl'!E19=1,'Prev & Ctrl'!C19,\"\")","v":"Based on risk assessments, are dog vaccination campaigns being maintained where justified?"}]
[null,null,null,{"$f":"IF('Prev & Ctrl'!E30=0,'Prev & Ctrl'!C30,\"\")","v":"Has the capacity for outbreak and re-introduction response been maintained?"},{"$f":"IF('Prev & Ctrl'!E30=1,'Prev & Ctrl'!C30,\"\")","v":""}]

{"sheet":"PRIORITISATION","index":14,"n_rows":128,"n_cols":7,"rows_kept":128,"cut":false,"hidden":false,"merged":[[127,4,127,6],[121,4,121,6],[122,4,122,6],[123,4,123,6],[124,4,124,6],[125,4,125,6],[126,4,126,6],[115,4,115,6],[116,4,116,6],[117,4,117,6],[118,4,118,6],[119,4,119,6],[120,4,120,6],[109,4,109,6],[110,4,110,6],[111,4,111,6],[112,4,112,6],[113,4,113,6],[114,4,114,6],[103,4,103,6],[104,4,104,6],[105,4,105,6],[106,4,106,6],[107,4,107,6],[108,4,108,6],[97,4,97,6],[98,4,98,6],[99,4,99,6],[100,4,100,6],[101,4,101,6],[102,4,102,6],[91,4,91,6],[92,4,92,6],[93,4,93,6],[94,4,94,6],[95,4,95,6],[96,4,96,6],[85,4,85,6],[86,4,86,6],[87,4,87,6],[88,4,88,6],[89,4,89,6],[90,4,90,6],[79,4,79,6],[80,4,80,6],[81,4,81,6],[82,4,82,6],[83,4,83,6],[84,4,84,6],[73,4,73,6],[74,4,74,6],[75,4,75,6],[76,4,76,6],[77,4,77,6],[78,4,78,6],[67,4,67,6],[68,4,68,6],[69,4,69,6],[70,4,70,6],[71,4,71,6],[72,4,72,6],[61,4,61,6],[62,4,62,6],[63,4,63,6],[64,4,64,6],[65,4,65,6],[66,4,66,6],[55,4,55,6],[56,4,56,6],[57,4,57,6],[58,4,58,6],[59,4,59,6],[60,4,60,6],[49,4,49,6],[50,4,50,6],[51,4,51,6],[52,4,52,6],[53,4,53,6],[54,4,54,6],[43,4,43,6],[44,4,44,6],[45,4,45,6],[46,4,46,6],[47,4,47,6],[48,4,48,6],[37,4,37,6],[38,4,38,6],[39,4,39,6],[40,4,40,6],[41,4,41,6],[42,4,42,6],[31,4,31,6],[32,4,32,6],[33,4,33,6],[34,4,34,6],[35,4,35,6],[36,4,36,6],[27,4,27,6],[28,4,28,6],[29,4,29,6],[30,4,30,6],[19,4,19,6],[20,4,20,6],[21,4,21,6],[22,4,22,6],[23,4,23,6],[24,4,24,6],[18,4,18,6],[7,4,7,6],[8,4,8,6],[9,4,9,6],[10,4,10,6],[11,4,11,6],[12,4,12,6],[25,4,25,6],[26,4,26,6],[0,4,1,5],[0,6,1,6],[0,1,0,2],[1,1,1,2],[13,4,13,6],[14,4,14,6],[15,4,15,6],[16,4,16,6],[17,4,17,6]]}
["COUNTRY STATUS","Stepwise Approach towards Rabies Elimination",null,null,{"$f":"IF(ISBLANK('Country profile'!E3),\"\",UPPER('Country profile'!E3))","v":"ZAMBIA"},null,{"$f":"IF(ISBLANK('Country profile'!F13),\"\",YEAR('Country profile'!F13))","v":2017}]
[0,"PRIORITISATION OF RABIES PROGRAM ACTIVITIES"]
[]
[]
[]
[]
[]
["STAGE","COMPONENT","ACTIVITY","COUNTRY STATUS","NOTES"]
[{"$f":"masterlist!B2","v":0},{"$f":"masterlist!C2","v":"LAB"},{"$f":"masterlist!D2","v":"Have contacts with an international rabies reference laboratory or international collaborating/reference center been established?"},{"$f":"masterlist!F2","v":1},{"$f":"IF(masterlist!G2=0,\"\",masterlist!G2)","v":"OIE Reference Laboratory"}]
[{"$f":"masterlist!B3","v":0},{"$f":"masterlist!C3","v":"LAB"},{"$f":"masterlist!D3","v":"Has at least one human or animal rabies suspect sample been submitted to an international rabies reference laboratory for confirmation?"},{"$f":"masterlist!F3","v":1},{"$f":"IF(masterlist!G3=0,\"\",masterlist!G3)","v":"OIE Reference Laboratory at OVI (2009)"}]
[{"$f":"masterlist!B4","v":0},{"$f":"masterlist!C4","v":"CCI"},{"$f":"masterlist!D4","v":"Are the results of rabies sample(s) shared appropriately with local and national authorities? "},{"$f":"masterlist!F4","v":1},{"$f":"IF(masterlist!G4=0,\"\",masterlist!G4)","v":"The National Epidemic committee has a frequent meetings to discuss zoonotic diseases which include Rabies"}]
[{"$f":"masterlist!B5","v":0},{"$f":"masterlist!C5","v":"LEG"},{"$f":"masterlist!D5","v":"Is a case definition available that is consistent with the OIE guidelines for animal rabies?"},{"$f":"masterlist!F5","v":0},{"$f":"IF(masterlist!G5=0,\"\",masterlist!G5)","v":"Need to develop case definitions. Priority for the Vet Dept in Zambia"}]
[{"$f":"masterlist!B6","v":0},{"$f":"masterlist!C6","v":"LEG"},{"$f":"masterlist!D6","v":"Is a case definition available that is consistent with the WHO guidelines for human rabies?"},{"$f":"masterlist!F6","v":1},{"$f":"IF(masterlist!G6=0,\"\",masterlist!G6)","v":"Not sure whether in line with WHO standards"}]
[{"$f":"masterlist!B7","v":0},{"$f":"masterlist!C7","v":"LEG"},{"$f":"masterlist!D7","v":"Does the national authority report at least one confirmed rabies case to the WHO, OIE or PARACON?"},{"$f":"masterlist!F7","v":1},{"$f":"IF(masterlist!G7=0,\"\",masterlist!G7)","v":""}]
[{"$f":"masterlist!B8","v":1},{"$f":"masterlist!C8","v":"DCA"},{"$f":"masterlist!D8","v":"Are dog rabies cases reported from a local to the national level? "},{"$f":"masterlist!F8","v":1},{"$f":"IF(masterlist!G8=0,\"\",masterlist!G8)","v":""}]
[{"$f":"masterlist!B9","v":1},{"$f":"masterlist!C9","v":"DCA"},{"$f":"masterlist!D9","v":"Are human rabies cases reported from a local to the national level? "},{"$f":"masterlist!F9","v":1},{"$f":"IF(masterlist!G9=0,\"\",masterlist!G9)","v":""}]
[{"$f":"masterlist!B10","v":1},{"$f":"masterlist!C10","v":"DCA"},{"$f":"masterlist!D10","v":"Are all human or animal rabies testing results being reported to a relevant international database such as WHO, OIE or PARACON?"},{"$f":"masterlist!F10","v":1},{"$f":"IF(masterlist!G10=0,\"\",masterlist!G10)","v":""}]
[{"$f":"masterlist!B11","v":1},{"$f":"masterlist!C11","v":"DCA"},{"$f":"masterlist!D11","v":"Is there capacity to analyze dog rabies data at the national level? "},{"$f":"masterlist!F11","v":1},{"$f":"IF(masterlist!G11=0,\"\",masterlist!G11)","v":""}]
[{"$f":"masterlist!B12","v":1},{"$f":"masterlist!C12","v":"DCA"},{"$f":"masterlist!D12","v":"Is there capacity to analyze human rabies data at the national level? "},{"$f":"masterlist!F12","v":1},{"$f":"IF(masterlist!G12=0,\"\",masterlist!G12)","v":""}]
[{"$f":"masterlist!B13","v":1},{"$f":"masterlist!C13","v":"DCA"},{"$f":"masterlist!D13","v":"Has an animal rabies surveillance* system been established at the national level?"},{"$f":"masterlist!F13","v":1},{"$f":"IF(masterlist!G13=0,\"\",masterlist!G13)","v":""}]
[{"$f":"masterlist!B14","v":1},{"$f":"masterlist!C14","v":"DCA"},{"$f":"masterlist!D14","v":"Has a human rabies surveillance* system been established at the national level?"},{"$f":"masterlist!F14","v":1},{"$f":"IF(masterlist!G14=0,\"\",masterlist!G14)","v":""}]
[{"$f":"masterlist!B15","v":1},{"$f":"masterlist!C15","v":"DCA"},{"$f":"masterlist!D15","v":"Have reports on the number of humans bitten by dogs been compiled and reviewed?"},{"$f":"masterlist!F15","v":1},{"$f":"IF(masterlist!G15=0,\"\",masterlist!G15)","v":""}]
[{"$f":"masterlist!B16","v":1},{"$f":"masterlist!C16","v":"DCA"},{"$f":"masterlist!D16","v":"Have dog population studies and KAP surveys been conducted to determine size, turn-over and accessibility of dogs for vaccination on a small scale?"},{"$f":"masterlist!F16","v":0},{"$f":"IF(masterlist!G16=0,\"\",masterlist!G16)","v":""}]
[{"$f":"masterlist!B17","v":1},{"$f":"masterlist!C17","v":"PCO"},{"$f":"masterlist!D17","v":"Are vaccines for human rabies prophylaxis available in one or more parts of the country?"},{"$f":"masterlist!F17","v":1},{"$f":"IF(masterlist!G17=0,\"\",masterlist!G17)","v":""}]
[{"$f":"masterlist!B18","v":1},{"$f":"masterlist!C18","v":"PCO"},{"$f":"masterlist!D18","v":"Has the supply and access to WHO pre-qualified human rabies vaccines for PrEP for professionals at risk been ensured in local areas?"},{"$f":"masterlist!F18","v":1},{"$f":"IF(masterlist!G18=0,\"\",masterlist!G18)","v":""}]
[{"$f":"masterlist!B19","v":1},{"$f":"masterlist!C19","v":"PCO"},{"$f":"masterlist!D19","v":"Are dog rabies vaccines available in at least one location in the country?"},{"$f":"masterlist!F19","v":1},{"$f":"IF(masterlist!G19=0,\"\",masterlist!G19)","v":""}]
[{"$f":"masterlist!B20","v":1},{"$f":"masterlist!C20","v":"PCO"},{"$f":"masterlist!D20","v":"Has dog vaccination been initiated in some parts of the country? "},{"$f":"masterlist!F20","v":1},{"$f":"IF(masterlist!G20=0,\"\",masterlist!G20)","v":""}]
[{"$f":"masterlist!B21","v":1},{"$f":"masterlist!C21","v":"PCO"},{"$f":"masterlist!D21","v":"Has Integrated Bite Case Management (IBCM)* been implemented at a local level? "},{"$f":"masterlist!F21","v":1},{"$f":"IF(masterlist!G21=0,\"\",masterlist!G21)","v":""}]
[{"$f":"masterlist!B22","v":1},{"$f":"masterlist!C22","v":"PCO"},{"$f":"masterlist!D22","v":"Have Standard Operating Procedures (SOPs) for coordinated action on reported outbreaks* been established?"},{"$f":"masterlist!F22","v":1},{"$f":"IF(masterlist!G22=0,\"\",masterlist!G22)","v":""}]
[{"$f":"masterlist!B23","v":1},{"$f":"masterlist!C23","v":"LAB"},{"$f":"masterlist!D23","v":"Is there capacity to conduct rabies diagnosis in at least one national laboratory (veterinary or medical laboratory)?"},{"$f":"masterlist!F23","v":1},{"$f":"IF(masterlist!G23=0,\"\",masterlist!G23)","v":""}]
[{"$f":"masterlist!B24","v":1},{"$f":"masterlist!C24","v":"LAB"},{"$f":"masterlist!D24","v":"Have several rabies suspect samples of animals or humans been submitted to a national laboratory and analysed? "},{"$f":"masterlist!F24","v":1},{"$f":"IF(masterlist!G24=0,\"\",masterlist!G24)","v":"CVRI (FAT, PCR) UNZAVET SCHOOL (FAT,PCR, HISTOPATHOLOGY) UTH (HISTOPATHOLOGY)"}]
[{"$f":"masterlist!B25","v":1},{"$f":"masterlist!C25","v":"LAB"},{"$f":"masterlist!D25","v":"Is animal rabies diagnosis conducted in at least one national laboratory?"},{"$f":"masterlist!F25","v":1},{"$f":"IF(masterlist!G25=0,\"\",masterlist!G25)","v":""}]
[{"$f":"masterlist!B26","v":1},{"$f":"masterlist!C26","v":"LAB"},{"$f":"masterlist!D26","v":"Are rabies suspect samples of animals or humans submitted twice yearly to an international laboratory and analysed?"},{"$f":"masterlist!F26","v":0},{"$f":"IF(masterlist!G26=0,\"\",masterlist!G26)","v":""}]
[{"$f":"masterlist!B27","v":1},{"$f":"masterlist!C27","v":"DPM"},{"$f":"masterlist!D27","v":"Have discussions been held with stakeholders to create a dog population management strategy at a local level?"},{"$f":"masterlist!F27","v":1},{"$f":"IF(masterlist!G27=0,\"\",masterlist!G27)","v":"Local taskforces are organised in every district"}]
[{"$f":"masterlist!B28","v":1},{"$f":"masterlist!C28","v":"DPM"},{"$f":"masterlist!D28","v":"Have you involved officials in waste management in your stakeholder meetings"},{"$f":"masterlist!F28","v":1},{"$f":"IF(masterlist!G28=0,\"\",masterlist!G28)","v":"Focal point person from local govt is involved"}]
[{"$f":"masterlist!B29","v":1},{"$f":"masterlist!C29","v":"IEC"},{"$f":"masterlist!D29","v":"Has an assessment been done to determine what message should be communicated to the target audience at a local level?"},{"$f":"masterlist!F29","v":1},{"$f":"IF(masterlist!G29=0,\"\",masterlist!G29)","v":""}]
[{"$f":"masterlist!B30","v":1},{"$f":"masterlist!C30","v":"IEC"},{"$f":"masterlist!D30","v":"Have the target audiences been identified at a local level (e.g. at-risk communities, dog owners, children)?"},{"$f":"masterlist!F30","v":1},{"$f":"IF(masterlist!G30=0,\"\",masterlist!G30)","v":""}]
[{"$f":"masterlist!B31","v":1},{"$f":"masterlist!C31","v":"IEC"},{"$f":"masterlist!D31","v":"Has an IEC plan* been developed and implemented on a small scale?"},{"$f":"masterlist!F31","v":0},{"$f":"IF(masterlist!G31=0,\"\",masterlist!G31)","v":"Main messages disseminated on adhoc basis. NO IEC plan in palce"}]
[{"$f":"masterlist!B32","v":1},{"$f":"masterlist!C32","v":"IEC"},{"$f":"masterlist!D32","v":"Has broad public awareness messaging started at a national level?"},{"$f":"masterlist!F32","v":1},{"$f":"IF(masterlist!G32=0,\"\",masterlist!G32)","v":"Through TV and Radio programmes on world rabies day annually. VAZ also carries out broad public awarenes through distribution of print materials during AGM"}]
[{"$f":"masterlist!B33","v":1},{"$f":"masterlist!C33","v":"IEC"},{"$f":"masterlist!D33","v":"Has an assessment been undertaken to determine the training needs of the professionals at a local level? "},{"$f":"masterlist!F33","v":1},{"$f":"IF(masterlist!G33=0,\"\",masterlist!G33)","v":"Training needs though not focused on Rabies prevention and control are available"}]
[{"$f":"masterlist!B34","v":1},{"$f":"masterlist!C34","v":"IEC"},{"$f":"masterlist!D34","v":"Have human and animal health professionals involved in rabies control been identified at a local level?"},{"$f":"masterlist!F34","v":1},{"$f":"IF(masterlist!G34=0,\"\",masterlist!G34)","v":""}]
[{"$f":"masterlist!B35","v":1},{"$f":"masterlist!C35","v":"IEC"},{"$f":"masterlist!D35","v":"Has a training plan been developed at a local level?"},{"$f":"masterlist!F35","v":1},{"$f":"IF(masterlist!G35=0,\"\",masterlist!G35)","v":"Implemented but not specific for Rabies"}]
[{"$f":"masterlist!B36","v":1},{"$f":"masterlist!C36","v":"IEC"},{"$f":"masterlist!D36","v":"Have training or refresher courses on rabies and public communication been initiated for professionals in human and animal health at a local level?"},{"$f":"masterlist!F36","v":1},{"$f":"IF(masterlist!G36=0,\"\",masterlist!G36)","v":"Done adhoc basis"}]
[{"$f":"masterlist!B37","v":1},{"$f":"masterlist!C37","v":"IEC"},{"$f":"masterlist!D37","v":"Has an advocacy stakeholder analysis* been done at a local level and target audiences been identified?"},{"$f":"masterlist!F37","v":1},{"$f":"IF(masterlist!G37=0,\"\",masterlist!G37)","v":"Rabies advocay is neglected compared to FMD"}]
[{"$f":"masterlist!B38","v":1},{"$f":"masterlist!C38","v":"IEC"},{"$f":"masterlist!D38","v":"Has an advocacy plan* been developed and implemented at a local level?"},{"$f":"masterlist!F38","v":0},{"$f":"IF(masterlist!G38=0,\"\",masterlist!G38)","v":"need to develop advocacy plans at all levels"}]
[{"$f":"masterlist!B39","v":1},{"$f":"masterlist!C39","v":"CCI"},{"$f":"masterlist!D39","v":"Have the main national stakeholders in rabies prevention and control been identified?"},{"$f":"masterlist!F39","v":1},{"$f":"IF(masterlist!G39=0,\"\",masterlist!G39)","v":"Ministry of Fisheries & Livestock, MOH, MLGH, MHA, Academia"}]
[{"$f":"masterlist!B40","v":1},{"$f":"masterlist!C40","v":"CCI"},{"$f":"masterlist!D40","v":"Have stakeholder consultations been held within the last 3 years at the national level?"},{"$f":"masterlist!F40","v":0},{"$f":"IF(masterlist!G40=0,\"\",masterlist!G40)","v":"Not specific for rabies but zoonotic diseases in general"}]
[{"$f":"masterlist!B41","v":1},{"$f":"masterlist!C41","v":"CCI"},{"$f":"masterlist!D41","v":"Has an intersectoral rabies task force, committee or working group been established at a local or national level and do they meet at least twice a year?"},{"$f":"masterlist!F41","v":0},{"$f":"IF(masterlist!G41=0,\"\",masterlist!G41)","v":"Only at local levels."}]
[{"$f":"masterlist!B42","v":1},{"$f":"masterlist!C42","v":"CCI"},{"$f":"masterlist!D42","v":"Based on a small-scale experience, has a short term rabies action plan been developed and endorsed by relevant stakeholders at local / national level?"},{"$f":"masterlist!F42","v":1},{"$f":"IF(masterlist!G42=0,\"\",masterlist!G42)","v":"Only in areas that have had confirmed rabies outbreaks"}]
[{"$f":"masterlist!B43","v":1},{"$f":"masterlist!C43","v":"CCI"},{"$f":"masterlist!D43","v":"Have mechanisms for mobilizing emergency funds in case of an outbreak been identified?"},{"$f":"masterlist!F43","v":1},{"$f":"IF(masterlist!G43=0,\"\",masterlist!G43)","v":"Only at local levels. Govt has established a disease control fund and the DMMU under the vice president's office."}]
[{"$f":"masterlist!B44","v":1},{"$f":"masterlist!C44","v":"LEG"},{"$f":"masterlist!D44","v":"Do all of the relevant professionals know the case definition for animal rabies?"},{"$f":"masterlist!F44","v":0},{"$f":"IF(masterlist!G44=0,\"\",masterlist!G44)","v":""}]
[{"$f":"masterlist!B45","v":1},{"$f":"masterlist!C45","v":"LEG"},{"$f":"masterlist!D45","v":"Do all of the relevant professionals know the case definition for human rabies?"},{"$f":"masterlist!F45","v":0},{"$f":"IF(masterlist!G45=0,\"\",masterlist!G45)","v":"Include in training"}]
[{"$f":"masterlist!B46","v":1},{"$f":"masterlist!C46","v":"LEG"},{"$f":"masterlist!D46","v":"Is there national legislation that is relevant to rabies prevention and control?"},{"$f":"masterlist!F46","v":1},{"$f":"IF(masterlist!G46=0,\"\",masterlist!G46)","v":"Control of Dogs Act, Animal Health Act, ZAMRA Act"}]
[{"$f":"masterlist!B47","v":1},{"$f":"masterlist!C47","v":"LEG"},{"$f":"masterlist!D47","v":"If there is legislation, has it been reviewed and endorsed?"},{"$f":"masterlist!F47","v":1},{"$f":"IF(masterlist!G47=0,\"\",masterlist!G47)","v":"Animal Health Act 2010, ZAMRA Act, 2013"}]
[{"$f":"masterlist!B48","v":1},{"$f":"masterlist!C48","v":"LEG"},{"$f":"masterlist!D48","v":"Has rabies been made a notifiable disease in animals?"},{"$f":"masterlist!F48","v":1},{"$f":"IF(masterlist!G48=0,\"\",masterlist!G48)","v":""}]
[{"$f":"masterlist!B49","v":1},{"$f":"masterlist!C49","v":"LEG"},{"$f":"masterlist!D49","v":"Has rabies been made a notifiable disease in humans?"},{"$f":"masterlist!F49","v":1},{"$f":"IF(masterlist!G49=0,\"\",masterlist!G49)","v":""}]
[{"$f":"masterlist!B50","v":1},{"$f":"masterlist!C50","v":"LEG"},{"$f":"masterlist!D50","v":"Is there legislation that includes the compulsory rabies vaccination of dogs or has it been proposed if it is not already in place?"},{"$f":"masterlist!F50","v":1},{"$f":"IF(masterlist!G50=0,\"\",masterlist!G50)","v":"Control of Dogs Act"}]
[{"$f":"masterlist!B51","v":1},{"$f":"masterlist!C51","v":"LEG"},{"$f":"masterlist!D51","v":"Does legislation include measures for rabies outbreak response?"},{"$f":"masterlist!F51","v":1},{"$f":"IF(masterlist!G51=0,\"\",masterlist!G51)","v":""}]
[{"$f":"masterlist!B52","v":2},{"$f":"masterlist!C52","v":"DCA"},{"$f":"masterlist!D52","v":"Have linked human and animal rabies surveillance systems, including agreed SOPs, been established?"},{"$f":"masterlist!F52","v":0},{"$f":"IF(masterlist!G52=0,\"\",masterlist!G52)","v":""}]
[{"$f":"masterlist!B53","v":2},{"$f":"masterlist!C53","v":"DCA"},{"$f":"masterlist!D53","v":"Are human rabies surveillance systems, including feedback mechanisms, functioning and coordinated between administrative levels (national, province, district, municipal, etc.)? "},{"$f":"masterlist!F53","v":1},{"$f":"IF(masterlist!G53=0,\"\",masterlist!G53)","v":""}]
[{"$f":"masterlist!B54","v":2},{"$f":"masterlist!C54","v":"DCA"},{"$f":"masterlist!D54","v":"Are animal rabies surveillance systems, including feedback mechanisms, functioning and coordinated between administrative levels (national, province, district, municipal, etc.)?"},{"$f":"masterlist!F54","v":1},{"$f":"IF(masterlist!G54=0,\"\",masterlist!G54)","v":""}]
[{"$f":"masterlist!B55","v":2},{"$f":"masterlist!C55","v":"DCA"},{"$f":"masterlist!D55","v":"Is information on the epidemiology of rabies regularly shared with all stakeholders?"},{"$f":"masterlist!F55","v":0},{"$f":"IF(masterlist!G55=0,\"\",masterlist!G55)","v":""}]
[{"$f":"masterlist!B56","v":2},{"$f":"masterlist!C56","v":"DCA"},{"$f":"masterlist!D56","v":"Is the on-going surveillance system for rabies being maintained?"},{"$f":"masterlist!F56","v":0},{"$f":"IF(masterlist!G56=0,\"\",masterlist!G56)","v":""}]
[{"$f":"masterlist!B57","v":2},{"$f":"masterlist!C57","v":"PCO"},{"$f":"masterlist!D57","v":"Has an assessment* been done to determine the availability and access to PEP (and PreP)?"},{"$f":"masterlist!F57","v":1},{"$f":"IF(masterlist!G57=0,\"\",masterlist!G57)","v":""}]
[{"$f":"masterlist!B58","v":2},{"$f":"masterlist!C58","v":"PCO"},{"$f":"masterlist!D58","v":"Are WHO pre-qualified human rabies vaccines available and accessible in most parts of the country?"},{"$f":"masterlist!F58","v":1},{"$f":"IF(masterlist!G58=0,\"\",masterlist!G58)","v":""}]
[{"$f":"masterlist!B59","v":2},{"$f":"masterlist!C59","v":"PCO"},{"$f":"masterlist!D59","v":"Are any human biologics that are not WHO-pre-qualified being phased out? (e.g. nerve tissue vaccines, low quality vaccines)"},{"$f":"masterlist!F59","v":1},{"$f":"IF(masterlist!G59=0,\"\",masterlist!G59)","v":""}]
[{"$f":"masterlist!B60","v":2},{"$f":"masterlist!C60","v":"PCO"},{"$f":"masterlist!D60","v":"Are only quality dog vaccines in accordance with OIE standards being used?"},{"$f":"masterlist!F60","v":1},{"$f":"IF(masterlist!G60=0,\"\",masterlist!G60)","v":""}]
[{"$f":"masterlist!B61","v":2},{"$f":"masterlist!C61","v":"PCO"},{"$f":"masterlist!D61","v":"Are dog vaccination campaigns regularly implemented in response to human cases and animal outbreaks?"},{"$f":"masterlist!F61","v":1},{"$f":"IF(masterlist!G61=0,\"\",masterlist!G61)","v":""}]
[{"$f":"masterlist!B62","v":2},{"$f":"masterlist!C62","v":"PCO"},{"$f":"masterlist!D62","v":"Have IBCM SOPs, including sharing of information between sectors, been agreed upon?"},{"$f":"masterlist!F62","v":0},{"$f":"IF(masterlist!G62=0,\"\",masterlist!G62)","v":"Need for sectorwide meetings"}]
[{"$f":"masterlist!B63","v":2},{"$f":"masterlist!C63","v":"PCO"},{"$f":"masterlist!D63","v":"Are SOPs available for the observation of dogs involved in biting incidents? "},{"$f":"masterlist!F63","v":1},{"$f":"IF(masterlist!G63=0,\"\",masterlist!G63)","v":""}]
[{"$f":"masterlist!B64","v":2},{"$f":"masterlist!C64","v":"PCO"},{"$f":"masterlist!D64","v":"Have facilities or protocols been established for the observation of rabies-suspected dogs?"},{"$f":"masterlist!F64","v":1},{"$f":"IF(masterlist!G64=0,\"\",masterlist!G64)","v":""}]
[{"$f":"masterlist!B65","v":2},{"$f":"masterlist!C65","v":"LAB"},{"$f":"masterlist!D65","v":"Is there regular laboratory diagnosis of animal rabies cases in country?"},{"$f":"masterlist!F65","v":1},{"$f":"IF(masterlist!G65=0,\"\",masterlist!G65)","v":"CVRI (FAT, PCR) LUSAKA"}]
[{"$f":"masterlist!B66","v":2},{"$f":"masterlist!C66","v":"LAB"},{"$f":"masterlist!D66","v":"Has capacity for regular sample collection and transportation been established and functioning?"},{"$f":"masterlist!F66","v":1},{"$f":"IF(masterlist!G66=0,\"\",masterlist!G66)","v":"PVO & DVO "}]
[{"$f":"masterlist!B67","v":2},{"$f":"masterlist!C67","v":"DPM"},{"$f":"masterlist!D67","v":"Has a DPM* strategy and programmebeen  drafted and shared with all relevant stakeholders at a local level?"},{"$f":"masterlist!F67","v":0},{"$f":"IF(masterlist!G67=0,\"\",masterlist!G67)","v":"Need for DPM strategy to be developed"}]
[{"$f":"masterlist!B68","v":2},{"$f":"masterlist!C68","v":"DPM"},{"$f":"masterlist!D68","v":"Has the DPM strategy been finalized?"},{"$f":"masterlist!F68","v":0},{"$f":"IF(masterlist!G68=0,\"\",masterlist!G68)","v":"as above"}]
[{"$f":"masterlist!B69","v":2},{"$f":"masterlist!C69","v":"DPM"},{"$f":"masterlist!D69","v":"Has public sensitisation about DPM been built into rabies awareness campaigns at a local level?"},{"$f":"masterlist!F69","v":0},{"$f":"IF(masterlist!G69=0,\"\",masterlist!G69)","v":"No DPM strategy in place"}]
[{"$f":"masterlist!B70","v":2},{"$f":"masterlist!C70","v":"DPM"},{"$f":"masterlist!D70","v":"Has dog population management been implemented at a local level?"},{"$f":"masterlist!F70","v":1},{"$f":"IF(masterlist!G70=0,\"\",masterlist!G70)","v":"Through local authority disease preparedness"}]
[{"$f":"masterlist!B71","v":2},{"$f":"masterlist!C71","v":"DPM"},{"$f":"masterlist!D71","v":"Have training or refresher courses on animal handling and sterilisation been initiated for professionals in animal health at a local level?"},{"$f":"masterlist!F71","v":1},{"$f":"IF(masterlist!G71=0,\"\",masterlist!G71)","v":"through VAZ CPDs"}]
[{"$f":"masterlist!B72","v":2},{"$f":"masterlist!C72","v":"IEC"},{"$f":"masterlist!D72","v":"Has an IEC plan been implemented beyond a local level?"},{"$f":"masterlist!F72","v":0},{"$f":"IF(masterlist!G72=0,\"\",masterlist!G72)","v":"No official plan in place"}]
[{"$f":"masterlist!B73","v":2},{"$f":"masterlist!C73","v":"IEC"},{"$f":"masterlist!D73","v":"Has the IEC plan been reviewed and updated?"},{"$f":"masterlist!F73","v":0},{"$f":"IF(masterlist!G73=0,\"\",masterlist!G73)","v":"No official plan in place"}]
[{"$f":"masterlist!B74","v":2},{"$f":"masterlist!C74","v":"IEC"},{"$f":"masterlist!D74","v":"Has training of human and animal health personnel been conducted in most parts of the country?"},{"$f":"masterlist!F74","v":1},{"$f":"IF(masterlist!G74=0,\"\",masterlist!G74)","v":""}]
[{"$f":"masterlist!B75","v":2},{"$f":"masterlist!C75","v":"IEC"},{"$f":"masterlist!D75","v":"Have small-scale program successes been communicated to authorities/leaders in other parts of the country?"},{"$f":"masterlist!F75","v":0},{"$f":"IF(masterlist!G75=0,\"\",masterlist!G75)","v":"Successes are not reviewed"}]
[{"$f":"masterlist!B76","v":2},{"$f":"masterlist!C76","v":"IEC"},{"$f":"masterlist!D76","v":"Has an advocacy stakeholder analysis* been done at a national level and have the target audiences been identified?"},{"$f":"masterlist!F76","v":0},{"$f":"IF(masterlist!G76=0,\"\",masterlist!G76)","v":""}]
[{"$f":"masterlist!B77","v":2},{"$f":"masterlist!C77","v":"IEC"},{"$f":"masterlist!D77","v":"Has an advocacy campaign to national leaders/authorities been undertaken to ensure that a national rabies control strategy is created and properly resourced?"},{"$f":"masterlist!F77","v":0},{"$f":"IF(masterlist!G77=0,\"\",masterlist!G77)","v":""}]
[{"$f":"masterlist!B78","v":2},{"$f":"masterlist!C78","v":"CCI"},{"$f":"masterlist!D78","v":"Are mechanisms for regular intersectoral collaboration in place and are they implemented?"},{"$f":"masterlist!F78","v":0},{"$f":"IF(masterlist!G78=0,\"\",masterlist!G78)","v":""}]
[{"$f":"masterlist!B79","v":2},{"$f":"masterlist!C79","v":"CCI"},{"$f":"masterlist!D79","v":"Has the contribution and role of  private sector been clarified and shared with other stakeholders?"},{"$f":"masterlist!F79","v":0},{"$f":"IF(masterlist!G79=0,\"\",masterlist!G79)","v":""}]
[{"$f":"masterlist!B80","v":2},{"$f":"masterlist!C80","v":"CCI"},{"$f":"masterlist!D80","v":"Has a national strategy for rabies prevention, control and eventual elimination been drafted, shared with all relevant stakeholders and finalised?"},{"$f":"masterlist!F80","v":0},{"$f":"IF(masterlist!G80=0,\"\",masterlist!G80)","v":"No national strategy in place"}]
[{"$f":"masterlist!B81","v":2},{"$f":"masterlist!C81","v":"CCI"},{"$f":"masterlist!D81","v":"Have government resources been identified and allocated in support of the national rabies control strategy?  "},{"$f":"masterlist!F81","v":1},{"$f":"IF(masterlist!G81=0,\"\",masterlist!G81)","v":"Rabies budgeted under the ministrial national budget"}]
[{"$f":"masterlist!B82","v":2},{"$f":"masterlist!C82","v":"LEG"},{"$f":"masterlist!D82","v":"Has legislation been updated to include specifications on the compulsory vaccination of dogs and the international movement of animals? "},{"$f":"masterlist!F82","v":1},{"$f":"IF(masterlist!G82=0,\"\",masterlist!G82)","v":""}]
[{"$f":"masterlist!B83","v":3},{"$f":"masterlist!C83","v":"DCA"},{"$f":"masterlist!D83","v":"Have field investigations for all suspected human rabies cases been conducted? "},{"$f":"masterlist!F83","v":0},{"$f":"IF(masterlist!G83=0,\"\",masterlist!G83)","v":""}]
[{"$f":"masterlist!B84","v":3},{"$f":"masterlist!C84","v":"DCA"},{"$f":"masterlist!D84","v":"Is epidemiological evidence available to rule out dog-transmitted human rabies cases?"},{"$f":"masterlist!F84","v":0},{"$f":"IF(masterlist!G84=0,\"\",masterlist!G84)","v":""}]
[{"$f":"masterlist!B85","v":3},{"$f":"masterlist!C85","v":"DCA"},{"$f":"masterlist!D85","v":"Has an advocacy plan been approved by the government for local level implementation?"},{"$f":"masterlist!F85","v":1},{"$f":"IF(masterlist!G85=0,\"\",masterlist!G85)","v":""}]
[{"$f":"masterlist!B86","v":3},{"$f":"masterlist!C86","v":"DCA"},{"$f":"masterlist!D86","v":"Are field investigations and laboratory confirmations conducted for all suspected rabies outbreaks in dogs?"},{"$f":"masterlist!F86","v":1},{"$f":"IF(masterlist!G86=0,\"\",masterlist!G86)","v":""}]
[{"$f":"masterlist!B87","v":3},{"$f":"masterlist!C87","v":"DCA"},{"$f":"masterlist!D87","v":"Has the collection of local or national health economic and/or other disease prioritization tool data* on rabies control been initiated to make the case for rabies control investment?"},{"$f":"masterlist!F87","v":0},{"$f":"IF(masterlist!G87=0,\"\",masterlist!G87)","v":""}]
[{"$f":"masterlist!B88","v":3},{"$f":"masterlist!C88","v":"DCA"},{"$f":"masterlist!D88","v":"Have the health economic data and/or other disease prioritization tool analyses been expanded to support further prioritization within the national rabies control programme?"},{"$f":"masterlist!F88","v":0},{"$f":"IF(masterlist!G88=0,\"\",masterlist!G88)","v":""}]
[{"$f":"masterlist!B89","v":3},{"$f":"masterlist!C89","v":"PCO"},{"$f":"masterlist!D89","v":"Is WHO pre-qualified Pre- and Post- Exposure Prophylaxis available and accessible to high risk and exposed individuals throughout the country?"},{"$f":"masterlist!F89","v":1},{"$f":"IF(masterlist!G89=0,\"\",masterlist!G89)","v":""}]
[{"$f":"masterlist!B90","v":3},{"$f":"masterlist!C90","v":"PCO"},{"$f":"masterlist!D90","v":"Are mass dog vaccination campaigns reaching at least 70% of the total dog population conducted according to the national rabies strategy? "},{"$f":"masterlist!F90","v":0},{"$f":"IF(masterlist!G90=0,\"\",masterlist!G90)","v":""}]
[{"$f":"masterlist!B91","v":3},{"$f":"masterlist!C91","v":"PCO"},{"$f":"masterlist!D91","v":"Are post-vaccination surveys* in dogs being carried out to evaluate vaccination coverage?"},{"$f":"masterlist!F91","v":0},{"$f":"IF(masterlist!G91=0,\"\",masterlist!G91)","v":""}]
[{"$f":"masterlist!B92","v":3},{"$f":"masterlist!C92","v":"PCO"},{"$f":"masterlist!D92","v":"Is there capacity to conduct field investigations and planned outbreak responses for animal and human rabies cases in the entire country?"},{"$f":"masterlist!F92","v":1},{"$f":"IF(masterlist!G92=0,\"\",masterlist!G92)","v":""}]
[{"$f":"masterlist!B93","v":3},{"$f":"masterlist!C93","v":"PCO"},{"$f":"masterlist!D93","v":"Have potential rabies-free zones been identified where canine variant cases have been absent for at least a 2 year period?"},{"$f":"masterlist!F93","v":0},{"$f":"IF(masterlist!G93=0,\"\",masterlist!G93)","v":""}]
[{"$f":"masterlist!B94","v":3},{"$f":"masterlist!C94","v":"PCO"},{"$f":"masterlist!D94","v":"Has dialogue been initiated with neighbouring countries to prevent the re-introduction of rabies into designated rabies-free zones?"},{"$f":"masterlist!F94","v":0},{"$f":"IF(masterlist!G94=0,\"\",masterlist!G94)","v":""}]
[{"$f":"masterlist!B95","v":3},{"$f":"masterlist!C95","v":"LAB"},{"$f":"masterlist!D95","v":"Are wildlife samples submitted for rabies laboratory diagnosis?"},{"$f":"masterlist!F95","v":1},{"$f":"IF(masterlist!G95=0,\"\",masterlist!G95)","v":""}]
[{"$f":"masterlist!B96","v":3},{"$f":"masterlist!C96","v":"LAB"},{"$f":"masterlist!D96","v":"Is access to reliable laboratory diagnosis available throughout the country for animal samples (and if possible also for human and wildlife samples)?"},{"$f":"masterlist!F96","v":1},{"$f":"IF(masterlist!G96=0,\"\",masterlist!G96)","v":"CVRI  & UNZAVET SCHOOL LUSAKA"}]
[{"$f":"masterlist!B97","v":3},{"$f":"masterlist!C97","v":"LAB"},{"$f":"masterlist!D97","v":"Is there regular characterization and analysis of circulating rabies virus variants by a national or international laboratory?"},{"$f":"masterlist!F97","v":0},{"$f":"IF(masterlist!G97=0,\"\",masterlist!G97)","v":""}]
[{"$f":"masterlist!B98","v":3},{"$f":"masterlist!C98","v":"DPM"},{"$f":"masterlist!D98","v":"Has the DPM strategy been assessed and refined based on current dog ecology or KAP surveys?"},{"$f":"masterlist!F98","v":0},{"$f":"IF(masterlist!G98=0,\"\",masterlist!G98)","v":"No KAP surveys done"}]
[{"$f":"masterlist!B99","v":3},{"$f":"masterlist!C99","v":"DPM"},{"$f":"masterlist!D99","v":"Have rabies awareness campaigns, including responsible dog ownership, been expanded to more areas?"},{"$f":"masterlist!F99","v":1},{"$f":"IF(masterlist!G99=0,\"\",masterlist!G99)","v":""}]
[{"$f":"masterlist!B100","v":3},{"$f":"masterlist!C100","v":"DPM"},{"$f":"masterlist!D100","v":"Has veterinary and animal technician training been completed across most of country?"},{"$f":"masterlist!F100","v":1},{"$f":"IF(masterlist!G100=0,\"\",masterlist!G100)","v":""}]
[{"$f":"masterlist!B101","v":3},{"$f":"masterlist!C101","v":"DPM"},{"$f":"masterlist!D101","v":"Has the dog population management strategy been implemented nationwide?"},{"$f":"masterlist!F101","v":0},{"$f":"IF(masterlist!G101=0,\"\",masterlist!G101)","v":"Need for DPM strategy to be developed"}]
[{"$f":"masterlist!B102","v":3},{"$f":"masterlist!C102","v":"IEC"},{"$f":"masterlist!D102","v":"Has the IEC plan been integrated into the national rabies strategy and implemented at national level?"},{"$f":"masterlist!F102","v":0},{"$f":"IF(masterlist!G102=0,\"\",masterlist!G102)","v":""}]
[{"$f":"masterlist!B103","v":3},{"$f":"masterlist!C103","v":"IEC"},{"$f":"masterlist!D103","v":"Have human rabies free zones been declared publicly?"},{"$f":"masterlist!F103","v":0},{"$f":"IF(masterlist!G103=0,\"\",masterlist!G103)","v":""}]
[{"$f":"masterlist!B104","v":3},{"$f":"masterlist!C104","v":"CCI"},{"$f":"masterlist!D104","v":"Has the national strategy been refined based on monitoring and evaluation? "},{"$f":"masterlist!F104","v":0},{"$f":"IF(masterlist!G104=0,\"\",masterlist!G104)","v":""}]
[{"$f":"masterlist!B105","v":3},{"$f":"masterlist!C105","v":"LEG"},{"$f":"masterlist!D105","v":"Is the relevant legislation enforced at the national level?"},{"$f":"masterlist!F105","v":1},{"$f":"IF(masterlist!G105=0,\"\",masterlist!G105)","v":""}]
[{"$f":"masterlist!B106","v":4},{"$f":"masterlist!C106","v":"DCA"},{"$f":"masterlist!D106","v":"Are existing surveillance activities for all suspected cases in humans maintained in the country?"},{"$f":"masterlist!F106","v":0},{"$f":"IF(masterlist!G106=0,\"\",masterlist!G106)","v":""}]
[{"$f":"masterlist!B107","v":4},{"$f":"masterlist!C107","v":"DCA"},{"$f":"masterlist!D107","v":"Has the epidemiological data from the routine surveillance of all animals (working animals, livestock and wildlife) been used to refine the national rabies strategy?"},{"$f":"masterlist!F107","v":0},{"$f":"IF(masterlist!G107=0,\"\",masterlist!G107)","v":""}]
[{"$f":"masterlist!B108","v":4},{"$f":"masterlist!C108","v":"PCO"},{"$f":"masterlist!D108","v":"Are dog vaccination campaigns maintained in zones where dog rabies is still present or where otherwise justified (e.g. risk of introduction)?"},{"$f":"masterlist!F108","v":1},{"$f":"IF(masterlist!G108=0,\"\",masterlist!G108)","v":""}]
[{"$f":"masterlist!B109","v":4},{"$f":"masterlist!C109","v":"PCO"},{"$f":"masterlist!D109","v":"Has freedom from dog-transmitted rabies in the entire country been verified by the absence of canine variant cases for at least a 2 year period?"},{"$f":"masterlist!F109","v":0},{"$f":"IF(masterlist!G109=0,\"\",masterlist!G109)","v":""}]
[{"$f":"masterlist!B110","v":4},{"$f":"masterlist!C110","v":"PCO"},{"$f":"masterlist!D110","v":"Has an emergency response/contingency plan been developed to address any reintroduced case of animal rabies involving a canine variant?"},{"$f":"masterlist!F110","v":0},{"$f":"IF(masterlist!G110=0,\"\",masterlist!G110)","v":""}]
[{"$f":"masterlist!B111","v":4},{"$f":"masterlist!C111","v":"LAB"},{"$f":"masterlist!D111","v":"Is there maintenance of existing surveillance activities, including ongoing laboratory investigation, for all suspected cases in dogs in the country?"},{"$f":"masterlist!F111","v":0},{"$f":"IF(masterlist!G111=0,\"\",masterlist!G111)","v":""}]
[{"$f":"masterlist!B112","v":4},{"$f":"masterlist!C112","v":"DPM"},{"$f":"masterlist!D112","v":"Have dog population management and responsible dog ownership campaigns been continued after the elimination of canine-mediated human rabies?"},{"$f":"masterlist!F112","v":1},{"$f":"IF(masterlist!G112=0,\"\",masterlist!G112)","v":""}]
[{"$f":"masterlist!B113","v":4},{"$f":"masterlist!C113","v":"IEC"},{"$f":"masterlist!D113","v":"Has national freedom from dog-transmitted rabies been publically declared? "},{"$f":"masterlist!F113","v":0},{"$f":"IF(masterlist!G113=0,\"\",masterlist!G113)","v":""}]
[{"$f":"masterlist!B114","v":4},{"$f":"masterlist!C114","v":"IEC"},{"$f":"masterlist!D114","v":"Has national freedom from canine-mediated human rabies been publically declared? "},{"$f":"masterlist!F114","v":0},{"$f":"IF(masterlist!G114=0,\"\",masterlist!G114)","v":""}]
[{"$f":"masterlist!B115","v":4},{"$f":"masterlist!C115","v":"CCI"},{"$f":"masterlist!D115","v":"Have veterinary border inspection and quarantine measures been fully implemented in accordance with national regulations?"},{"$f":"masterlist!F115","v":1},{"$f":"IF(masterlist!G115=0,\"\",masterlist!G115)","v":"Import permits issuance done according to national regulations"}]
[{"$f":"masterlist!B116","v":5},{"$f":"masterlist!C116","v":"PCO"},{"$f":"masterlist!D116","v":"Have modified protocols for PEP administration for rabies-free areas been implemented?"},{"$f":"masterlist!F116","v":0},{"$f":"IF(masterlist!G116=0,\"\",masterlist!G116)","v":""}]
[{"$f":"masterlist!B117","v":5},{"$f":"masterlist!C117","v":"PCO"},{"$f":"masterlist!D117","v":"Based on risk assessments, are dog vaccination campaigns being maintained where justified?"},{"$f":"masterlist!F117","v":1},{"$f":"IF(masterlist!G117=0,\"\",masterlist!G117)","v":""}]
[{"$f":"masterlist!B118","v":5},{"$f":"masterlist!C118","v":"PCO"},{"$f":"masterlist!D118","v":"Has the capacity for outbreak and re-introduction response been maintained?"},{"$f":"masterlist!F118","v":0},{"$f":"IF(masterlist!G118=0,\"\",masterlist!G118)","v":""}]
[{"$f":"masterlist!B119","v":5},{"$f":"masterlist!C119","v":"LAB"},{"$f":"masterlist!D119","v":"Are there on-going laboratory investigations of all suspected cases in domestic and wild animal species in the country?"},{"$f":"masterlist!F119","v":0},{"$f":"IF(masterlist!G119=0,\"\",masterlist!G119)","v":""}]
[{"$f":"masterlist!B120","v":5},{"$f":"masterlist!C120","v":"DPM"},{"$f":"masterlist!D120","v":"Have dog population management and responsible dog ownership campaigns been continued as part of the post-elimination strategy?"},{"$f":"masterlist!F120","v":0},{"$f":"IF(masterlist!G120=0,\"\",masterlist!G120)","v":""}]
[{"$f":"masterlist!B121","v":5},{"$f":"masterlist!C121","v":"IEC"},{"$f":"masterlist!D121","v":"Have awareness programmes focusing on the maintenance of freedom from dog and dog transmitted human rabies been implemented?"},{"$f":"masterlist!F121","v":0},{"$f":"IF(masterlist!G121=0,\"\",masterlist!G121)","v":""}]

{"sheet":"RULES","index":15,"n_rows":8,"n_cols":2,"rows_kept":8,"cut":false,"hidden":true,"merged":[]}
["RULES FOR STAGE PROGRESSION"]
[]
["SCORE","RULE"]
["+ 1","All critical activities (see hidden Key Activities worksheet) accomplished"]
["+ 0.5","50% or more of the critical activities checked"]
["+ 0.5","Not all but at least 1 critical activity checked, AND 50% +1 of all activities checked"]
["+ 0","At least 1 critical activity checked, AND 50% or less of all activities checked"]
["+ 0","No critical activity accomplished"]